Workbook

Sheet Presentación

Sheet Huella Minima
A8: Huella Mínima | B8: ='Calculos 1'!C251 -> 0 | C8: kg CO2
A11: Para compensar el impacto de huella mínima la producción en emisiones de gases de efecto invernadero:
A13: =CONCATENATE("Habria que plantar ",compensacion_hm," árboles y mantenerlos durante 30 años.") -> Habria que plantar 0 árboles y mantenerlos durante 30 años.
A15: Este resultado no es el impacto al completo tán solo una aproximación.

Sheet Huella Completa
A6: 0.1 | B6: Título de la producción:
A7: 0.2 | B7: Presupuesto total en €:
C9: Nº de días de trabajo | D9: Nº de personas | E9: Presupuesto en €
A10: 0.3 | B10: Preproducción
A11: 0.4 | B11: Producción
A12: 0.5 | B12: Postproducción
B22: ¿Se ha usado vehículo compartido en los traslados de preproducción?
B23: ¿Ha usado vehículos híbridos o electrícos en para el transporte?
C25: Cantidad en litros | D25: Tipo de Combustible
A26: 1.1 | B26: Combustible consumido en viajes en coche o furgoneta.
A27: 1.2 | B27: Combustible consumido en viajes en coche o furgoneta.
A28: 1.3 | B28: Combustible consumido en viajes en coche o furgoneta.
A29: 1.4 | B29: Combustible consumido en viajes en coche o furgoneta.
A30: 1.5 | B30: Combustible consumido en viajes en coche o furgoneta.
A31: 1.6 | B31: Combustible consumido en viajes en coche o furgoneta.
A32: 1.7 | B32: Combustible consumido en viajes en coche o furgoneta.
A33: 1.8 | B33: Combustible consumido en viajes en coche o furgoneta.
A34: 1.9 | B34: Combustible consumido en viajes en coche o furgoneta.
A35: 1.10 | B35: Combustible consumido en viajes en coche o furgoneta.
C39: Medio de transporte | D39: Nº de personas | E39: Km Aproximados
A40: 2.1 | B40: Viaje 1
A41: 2.2 | B41: Viaje 2
A42: 2.3 | B42: Viaje 3
A43: 2.4 | B43: Viaje 4
A44: 2.5 | B44: Viaje 5
A45: 2.6 | B45: Viaje 6
A46: 2.7 | B46: Viaje 7
A47: 2.8 | B47: Viaje 8
A48: 2.9 | B48: Viaje 9
A49: 2.10 | B49: Viaje 10
B53: ¿Se ha tenido en cuenta contratar hoteles con certificado de sostenibilidad?
C55: Nº de noches | D55: Nº de personas
A56: 3.1 | B56: Hotel 1
A57: 3.2 | B57: Hotel 2
A58: 3.3 | B58: Hotel 3
A59: 3.4 | B59: Hotel 4
A60: 3.5 | B60: Hotel 5
A61: 3.6 | B61: Hotel 6
A62: 3.7 | B62: Hotel 7
A63: 3.8 | B63: Hotel 8
A64: 3.9 | B64: Hotel 9
A65: 3.10 | B65: Hotel 10
B73: ¿Se ha usado vehículo compartido en los traslados de la producción?
B74: ¿Ha usado vehículos híbrido o eléctricos en para el transporte?
C76: Cantidad en litros | D76: Tipo de Combustible
A77: 4.1 | B77: Combustible consumido en viajes en coche o furgon.
A78: 4.2 | B78: Combustible consumido en viajes en coche o furgon.
A79: 4.3 | B79: Combustible consumido en viajes en coche o furgon.
A80: 4.4 | B80: Combustible consumido en viajes en coche o furgon.
A81: 4.5 | B81: Combustible consumido en viajes en coche o furgon.
A82: 4.6 | B82: Combustible consumido en viajes en coche o furgon.
A83: 4.7 | B83: Combustible consumido en viajes en coche o furgon.
A84: 4.8 | B84: Combustible consumido en viajes en coche o furgon.
A85: 4.9 | B85: Combustible consumido en viajes en coche o furgon.
A86: 4.10 | B86: Combustible consumido en viajes en coche o furgon.
C90: Medio | D90: Nº de personas | E90: Km Aproximados
A91: 5.1 | B91: Viaje 1
A92: 5.2 | B92: Viaje 2
A93: 5.3 | B93: Viaje 3
A94: 5.4 | B94: Viaje 4
A95: 5.5 | B95: Viaje 5
A96: 5.6 | B96: Viaje 6
A97: 5.7 | B97: Viaje 7
A98: 5.8 | B98: Viaje 8
A99: 5.9 | B99: Viaje 9
A100: 5.10 | B100: Viaje 10
B105: ¿Se ha buscado minimizar la distancia entre el hotel y el set de rodaje?
B106: ¿Se ha tenido en cuenta contratar hoteles con certificado de sostenibilidad?
C108: Nº de noches | D108: Nº de personas
A109: 6.1 | B109: Hotel 1
A110: 6.2 | B110: Hotel 2
A111: 6.3 | B111: Hotel 3
A112: 6.4 | B112: Hotel 4
A113: 6.5 | B113: Hotel 5
A114: 6.6 | B114: Hotel 6
A115: 6.7 | B115: Hotel 7
A116: 6.8 | B116: Hotel 8
A117: 6.9 | B117: Hotel 9
A118: 6.10 | B118: Hotel 10
B122: ¿Se ha contado con opción de catering vegetariano?
B123: ¿Se ha contratado un catering que provea productos locales o de cercania?
C125: Nº de comidas | D125: Nº de personas | E125: Tipo de Catering
A126: 7.1 | B126: Localización 1
A127: 7.2 | B127: Localización 2
A128: 7.3 | B128: Localización 3
A129: 7.4 | B129: Localización 4
A130: 7.5 | B130: Localización 5
A131: 7.6 | B131: Localización 6
A132: 7.7 | B132: Localización 7
A133: 7.8 | B133: Localización 8
A134: 7.9 | B134: Localización 9
A135: 7.10 | B135: Localización 10
B140: ¿Se han utilizado generadores de electricos de gas o equipados con baterías?
B142: Consumo de combustible del grupo electrógeno | C142: Nº de litros | D142: Tipo de Combustible
A143: 8.1 | B143: Grupo Electrógeno 1
A144: 8.2 | B144: Grupo Electrógeno 2
A145: 8.3 | B145: Grupo Electrógeno 3
B149: Electricidad consumida | C149: Kwh | D149: Proveedor
A150: 9.1 | B150: Lozalización 1
A151: 9.2 | B151: Lozalización 2
A152: 9.3 | B152: Localización 3
A153: 9.4 | B153: Localización 4
A154: 9.5 | B154: Localización 5
A155: 9.6 | B155: Localización 6
A156: 9.7 | B156: Localización 7
A157: 9.8 | B157: Localización 8
A158: 9.9 | B158: Localización 9
A159: 9.10 | B159: Localización 10
A164: 10.1 | B164: ¿Se ha utilizado iluminación eficiente tipo led?
C165: Potencia en Kw
A166: 10.2 | B166: Potencia de la iluminación en el set de grabación
A171: 11.1 | B171: ¿Se ha priorizado la reutilización o el alquiler de decorados?
A172: 11.2 | B172: ¿Se ha priorizado el alquiler o reutilización de vesturario?
A178: 12.1 | B178: ¿Se han fomentado las compras de productos con bajos residuos?
A179: 12.2 | B179: ¿Se han separado los residuos para su reciclaje?
A180: 12.3 | B180: ¿Se ha tenido en cuenta reducir el número de envases utilizando fuentes de agua, vasos y platos reutilizables, etc?
A181: 12.4 | B181: ¿Se ha priorizado la los alimentos a granel y con menor embalaje?
A182: 12.5 | B182: ¿Se ha priorizado usar los guiones y las hojas de rodaje en formato digital en lugar de impreso?
A183: 12.6 | B183: ¿Si se ha tenido que imprimir algún guión u hoja de rodaje se ha usado papel reciclado?
B189: ¿Se ha intentado reutilizar el agua que se ha necesitado en el rodaje y no se ha usado?
B191: Consumo de agua en litros | C191: Nº de litros
A192: 13.1 | B192: Localización 1
A193: 13.2 | B193: Localización 2
A194: 13.3 | B194: Localización 3
C204: Nº de días
A205: 14.1 | B205: Edición de video
A206: 14.2 | B206: Edición de sonido
A207: 14.3 | B207: Foley
C208: Gasto en €
A209: 14.4 | B209: Efectos especiales
A210: 14.5 | B210: Laboratorio

Sheet Resultados
B12: =CONCATENATE("La huella de carbono de: ",Titulo," es de ",'Calculos 2'!N2," Toneladas de CO2 equivalentes (tonCO2eq)", "",) -> La huella de carbono de: es de 0 Toneladas de CO2 equivalentes (tonCO2eq)
B15: Emisiones por tipo de actividad | J15: Emisiones por fase de la producción.
D17: tonCO2eq | L17: tonCO2eq
C18: Transporte | D18: ='Calculos 2'!G2 -> 0 | K18: Preproducción | L18: ='Calculos 2'!K2 -> 0
C19: Hospedaje | D19: ='Calculos 2'!G3 -> 0 | K19: Producción | L19: ='Calculos 2'!K3 -> 0
C20: Electricidad generada y consumida | D20: ='Calculos 2'!G4 -> 0 | K20: Postproducción | L20: ='Calculos 2'!K4 -> 0
C21: Catering | D21: ='Calculos 2'!G5 -> 0
C22: Escenografía | D22: ='Calculos 2'!G6 -> 0
C23: Adquisición y alquiler de maquinaría y elementos para el rodaje | D23: ='Calculos 2'!G7 -> 0
B31: Para compensar el impacto de la producción en emisiones de gases de efecto invernadero:
B33: =CONCATENATE("Habria que plantar ",compensacion," árboles y mantenerlos durante 30 años.") -> Habria que plantar 0 árboles y mantenerlos durante 30 años.
B36: Indicadores
B37: Kilogramos de CO2eq por € de presupuesto | F37: ='Calculos 2'!O2 -> 
B38: Kilogramos de CO2eq por persona/dia de trabajo | F38: ='Calculos 2'!Q2 -> 
C47: ='Calculos 2'!E17 -> 
D51: ='Calculos 2'!E18 -> ¡Recuerda! para los transportes en bus, tren o avión el tren es el transporte con menor huella de carbono, selecciónalo siempre que sea posible.
C55: ='Calculos 2'!E19 -> 
C64: ='Calculos 2'!E21 -> 
D68: ='Calculos 2'!E22 -> ¡Recuerda! para los transportes en bus, tren o avión el tren es el transporte con menor huella de carbono, selecciónalo siempre que sea posible.
C72: ='Calculos 2'!E23 -> 
C73: ='Calculos 2'!E24 -> 
C77: ='Calculos 2'!E25 -> 
C78: ='Calculos 2'!E26 -> 
C81: ='Calculos 2'!E27 -> 
C85: ='Calculos 2'!E28 -> Contratando proveedores eléctricos de energía renovables te garantizas que todo tu consumo eléctrico de la red es libre de emisiones de gases de efecto invernadero.
C88: ='Calculos 2'!E29 -> 
C92: ='Calculos 2'!E30 -> Priorizar en el alquiler en lugar de la compra de decorados, vestuario, etc siempre repercute en la reducción de la huella de carbono de la producción.
C96: ='Calculos 2'!E31 -> En la gestión de residuos hay una máxima reducir, reutilizar y reciclar. Está máxima además va por orden: reducir el número de productos que se comprar y que luego se desechan. Reutilizar siempre que sea posible. En ultimo caso todos nuestros residuos deben reciclarse. Con esta regla además de optimizar los recursos estamos reduciendo la huella de carbono de la producción audiovisual.
C99: ='Calculos 2'!E34 -> 
C109: La postproducción puede ser más sostenible si se usan provedores de energía electrica que provengan de fuentes renovables para realizar todas las acciones que requieran consumo eléctrico.

Sheet Datos_presupuesto

Sheet Calculos 1
A1: Códigos | B1: Formula | H1: Escenografía | I1: emi_04.01 | J1: Decorados y escenarios
A2: 04.01.01 | B2: =VLOOKUP(A2,Datos_presupuesto!A1:H252,5,FALSE)+VLOOKUP(A2,Datos_presupuesto!A1:H252,6,FALSE)+VLOOKUP(A2,Datos_presupuesto!A1:H252,7,FALSE)+VLOOKUP(A2,Datos_presupuesto!A1:H252,8,FALSE) ->  | I2: emi_04.02 | J2: Ambientación
A3: 04.01.02 | B3: =VLOOKUP(A3,Datos_presupuesto!A2:H253,5,FALSE)+VLOOKUP(A3,Datos_presupuesto!A2:H253,6,FALSE)+VLOOKUP(A3,Datos_presupuesto!A2:H253,7,FALSE)+VLOOKUP(A3,Datos_presupuesto!A2:H253,8,FALSE) ->  | I3: emi_04.03 | J3: Vestuario
A4: 04.01.03 | B4: =VLOOKUP(A4,Datos_presupuesto!A3:H254,5,FALSE)+VLOOKUP(A4,Datos_presupuesto!A3:H254,6,FALSE)+VLOOKUP(A4,Datos_presupuesto!A3:H254,7,FALSE)+VLOOKUP(A4,Datos_presupuesto!A3:H254,8,FALSE) -> 
A5: 04.01.04 | B5: =VLOOKUP(A5,Datos_presupuesto!A4:H255,5,FALSE)+VLOOKUP(A5,Datos_presupuesto!A4:H255,6,FALSE)+VLOOKUP(A5,Datos_presupuesto!A4:H255,7,FALSE)+VLOOKUP(A5,Datos_presupuesto!A4:H255,8,FALSE) ->  | I5: emi_05.03 | J5: Varios producción
A6: 04.01.05 | B6: =VLOOKUP(A6,Datos_presupuesto!A5:H256,5,FALSE)+VLOOKUP(A6,Datos_presupuesto!A5:H256,6,FALSE)+VLOOKUP(A6,Datos_presupuesto!A5:H256,7,FALSE)+VLOOKUP(A6,Datos_presupuesto!A5:H256,8,FALSE) ->  | I6: emi_06.01 | J6: Adquisición de alquiler de maquinaria y elementos de rodaje
A7: 04.01.06 | B7: =VLOOKUP(A7,Datos_presupuesto!A6:H257,5,FALSE)+VLOOKUP(A7,Datos_presupuesto!A6:H257,6,FALSE)+VLOOKUP(A7,Datos_presupuesto!A6:H257,7,FALSE)+VLOOKUP(A7,Datos_presupuesto!A6:H257,8,FALSE) ->  | C7: =SUM(B2:B7)*'Factores de emision'!D28 -> 
A9: 04.01.07 | B9: =VLOOKUP(A9,Datos_presupuesto!A8:H259,5,FALSE)+VLOOKUP(A9,Datos_presupuesto!A8:H259,6,FALSE)+VLOOKUP(A9,Datos_presupuesto!A8:H259,7,FALSE)+VLOOKUP(A9,Datos_presupuesto!A8:H259,8,FALSE) -> 
A10: 04.01.08 | B10: =VLOOKUP(A10,Datos_presupuesto!A9:H260,5,FALSE)+VLOOKUP(A10,Datos_presupuesto!A9:H260,6,FALSE)+VLOOKUP(A10,Datos_presupuesto!A9:H260,7,FALSE)+VLOOKUP(A10,Datos_presupuesto!A9:H260,8,FALSE) ->  | C10: =B9+B10*'Factores de emision'!D28/10 ->  | E10: emi_04.01 | F10: =C7+C10 -> 
A12: 04.02.01 | B12: =VLOOKUP(A12,Datos_presupuesto!A11:H262,5,FALSE)+VLOOKUP(A12,Datos_presupuesto!A11:H262,6,FALSE)+VLOOKUP(A12,Datos_presupuesto!A11:H262,7,FALSE)+VLOOKUP(A12,Datos_presupuesto!A11:H262,8,FALSE) -> 
A13: 04.02.02 | B13: =VLOOKUP(A13,Datos_presupuesto!A12:H263,5,FALSE)+VLOOKUP(A13,Datos_presupuesto!A12:H263,6,FALSE)+VLOOKUP(A13,Datos_presupuesto!A12:H263,7,FALSE)+VLOOKUP(A13,Datos_presupuesto!A12:H263,8,FALSE) ->  | C13: =B12+B13*'Factores de emision'!D28/10 -> 
A15: 04.02.03 | B15: =VLOOKUP(A15,Datos_presupuesto!A14:H265,5,FALSE)+VLOOKUP(A15,Datos_presupuesto!A14:H265,6,FALSE)+VLOOKUP(A15,Datos_presupuesto!A14:H265,7,FALSE)+VLOOKUP(A15,Datos_presupuesto!A14:H265,8,FALSE) -> 
A16: 02.08.06 | B16: =VLOOKUP(A16,Datos_presupuesto!A15:H266,5,FALSE)+VLOOKUP(A16,Datos_presupuesto!A15:H266,6,FALSE)+VLOOKUP(A16,Datos_presupuesto!A15:H266,7,FALSE)+VLOOKUP(A16,Datos_presupuesto!A15:H266,8,FALSE) -> 
A17: 04.02.05 | B17: =VLOOKUP(A17,Datos_presupuesto!A16:H267,5,FALSE)+VLOOKUP(A17,Datos_presupuesto!A16:H267,6,FALSE)+VLOOKUP(A17,Datos_presupuesto!A16:H267,7,FALSE)+VLOOKUP(A17,Datos_presupuesto!A16:H267,8,FALSE) -> 
A18: 04.02.06 | B18: =VLOOKUP(A18,Datos_presupuesto!A17:H268,5,FALSE)+VLOOKUP(A18,Datos_presupuesto!A17:H268,6,FALSE)+VLOOKUP(A18,Datos_presupuesto!A17:H268,7,FALSE)+VLOOKUP(A18,Datos_presupuesto!A17:H268,8,FALSE) ->  | C18: =SUM(B15:B18)*'Factores de emision'!D28 ->  | E18: emi_04.02 | F18: =C18 -> 
A20: 04.03.01 | B20: =VLOOKUP(A20,Datos_presupuesto!A19:H270,5,FALSE)+VLOOKUP(A20,Datos_presupuesto!A19:H270,6,FALSE)+VLOOKUP(A20,Datos_presupuesto!A19:H270,7,FALSE)+VLOOKUP(A20,Datos_presupuesto!A19:H270,8,FALSE) -> 
A21: 04.03.02 | B21: =VLOOKUP(A21,Datos_presupuesto!A20:H271,5,FALSE)+VLOOKUP(A21,Datos_presupuesto!A20:H271,6,FALSE)+VLOOKUP(A21,Datos_presupuesto!A20:H271,7,FALSE)+VLOOKUP(A21,Datos_presupuesto!A20:H271,8,FALSE) -> 
A22: 04.03.03 | B22: =VLOOKUP(A22,Datos_presupuesto!A21:H272,5,FALSE)+VLOOKUP(A22,Datos_presupuesto!A21:H272,6,FALSE)+VLOOKUP(A22,Datos_presupuesto!A21:H272,7,FALSE)+VLOOKUP(A22,Datos_presupuesto!A21:H272,8,FALSE) -> 
A23: 04.03.04 | B23: =VLOOKUP(A23,Datos_presupuesto!A22:H273,5,FALSE)+VLOOKUP(A23,Datos_presupuesto!A22:H273,6,FALSE)+VLOOKUP(A23,Datos_presupuesto!A22:H273,7,FALSE)+VLOOKUP(A23,Datos_presupuesto!A22:H273,8,FALSE) -> 
A24: 04.03.05 | B24: =VLOOKUP(A24,Datos_presupuesto!A23:H274,5,FALSE)+VLOOKUP(A24,Datos_presupuesto!A23:H274,6,FALSE)+VLOOKUP(A24,Datos_presupuesto!A23:H274,7,FALSE)+VLOOKUP(A24,Datos_presupuesto!A23:H274,8,FALSE) -> 
A25: 04.03.06 | B25: =VLOOKUP(A25,Datos_presupuesto!A24:H275,5,FALSE)+VLOOKUP(A25,Datos_presupuesto!A24:H275,6,FALSE)+VLOOKUP(A25,Datos_presupuesto!A24:H275,7,FALSE)+VLOOKUP(A25,Datos_presupuesto!A24:H275,8,FALSE) ->  | C25: =SUM((B20/10)+B21+B22+B23+B24+B25)*'Factores de emision'!D42 ->  | E25: emi_04.03 | F25: =C25 -> 
A27: 05.03.01 | B27: =VLOOKUP(A27,Datos_presupuesto!A26:H277,5,FALSE)+VLOOKUP(A27,Datos_presupuesto!A26:H277,6,FALSE)+VLOOKUP(A27,Datos_presupuesto!A26:H277,7,FALSE)+VLOOKUP(A27,Datos_presupuesto!A26:H277,8,FALSE) -> 
A28: 05.03.02 | B28: =VLOOKUP(A28,Datos_presupuesto!A27:H278,5,FALSE)+VLOOKUP(A28,Datos_presupuesto!A27:H278,6,FALSE)+VLOOKUP(A28,Datos_presupuesto!A27:H278,7,FALSE)+VLOOKUP(A28,Datos_presupuesto!A27:H278,8,FALSE) -> 
A29: 05.03.03 | B29: =VLOOKUP(A29,Datos_presupuesto!A28:H279,5,FALSE)+VLOOKUP(A29,Datos_presupuesto!A28:H279,6,FALSE)+VLOOKUP(A29,Datos_presupuesto!A28:H279,7,FALSE)+VLOOKUP(A29,Datos_presupuesto!A28:H279,8,FALSE) -> 
A30: 05.03.04 | B30: =VLOOKUP(A30,Datos_presupuesto!A29:H280,5,FALSE)+VLOOKUP(A30,Datos_presupuesto!A29:H280,6,FALSE)+VLOOKUP(A30,Datos_presupuesto!A29:H280,7,FALSE)+VLOOKUP(A30,Datos_presupuesto!A29:H280,8,FALSE) -> 
A31: 05.03.05 | B31: =VLOOKUP(A31,Datos_presupuesto!A30:H281,5,FALSE)+VLOOKUP(A31,Datos_presupuesto!A30:H281,6,FALSE)+VLOOKUP(A31,Datos_presupuesto!A30:H281,7,FALSE)+VLOOKUP(A31,Datos_presupuesto!A30:H281,8,FALSE) -> 
A32: 05.03.06 | B32: =VLOOKUP(A32,Datos_presupuesto!A31:H282,5,FALSE)+VLOOKUP(A32,Datos_presupuesto!A31:H282,6,FALSE)+VLOOKUP(A32,Datos_presupuesto!A31:H282,7,FALSE)+VLOOKUP(A32,Datos_presupuesto!A31:H282,8,FALSE) -> 
A33: 05.03.07 | B33: =VLOOKUP(A33,Datos_presupuesto!A32:H283,5,FALSE)+VLOOKUP(A33,Datos_presupuesto!A32:H283,6,FALSE)+VLOOKUP(A33,Datos_presupuesto!A32:H283,7,FALSE)+VLOOKUP(A33,Datos_presupuesto!A32:H283,8,FALSE) -> 
A34: 05.03.08 | B34: =VLOOKUP(A34,Datos_presupuesto!A33:H284,5,FALSE)+VLOOKUP(A34,Datos_presupuesto!A33:H284,6,FALSE)+VLOOKUP(A34,Datos_presupuesto!A33:H284,7,FALSE)+VLOOKUP(A34,Datos_presupuesto!A33:H284,8,FALSE) -> 
A35: 05.03.09 | B35: =VLOOKUP(A35,Datos_presupuesto!A34:H285,5,FALSE)+VLOOKUP(A35,Datos_presupuesto!A34:H285,6,FALSE)+VLOOKUP(A35,Datos_presupuesto!A34:H285,7,FALSE)+VLOOKUP(A35,Datos_presupuesto!A34:H285,8,FALSE) -> 
A36: 05.03.10 | B36: =VLOOKUP(A36,Datos_presupuesto!A35:H286,5,FALSE)+VLOOKUP(A36,Datos_presupuesto!A35:H286,6,FALSE)+VLOOKUP(A36,Datos_presupuesto!A35:H286,7,FALSE)+VLOOKUP(A36,Datos_presupuesto!A35:H286,8,FALSE) -> 
A37: 05.03.11 | B37: =VLOOKUP(A37,Datos_presupuesto!A36:H287,5,FALSE)+VLOOKUP(A37,Datos_presupuesto!A36:H287,6,FALSE)+VLOOKUP(A37,Datos_presupuesto!A36:H287,7,FALSE)+VLOOKUP(A37,Datos_presupuesto!A36:H287,8,FALSE) -> 
C38: =(B27+B28)*'Factores de emision'!D33+B29*'Factores de emision'!D43+('Calculos 1'!B35+'Calculos 1'!B36)*'Factores de emision'!D30 ->  | E38: emi_05.03 | F38: =C38 -> 
A39: 06.01.01 | B39: =VLOOKUP(A39,Datos_presupuesto!A38:H289,5,FALSE)+VLOOKUP(A39,Datos_presupuesto!A38:H289,6,FALSE)+VLOOKUP(A39,Datos_presupuesto!A38:H289,7,FALSE)+VLOOKUP(A39,Datos_presupuesto!A38:H289,8,FALSE) -> 
A40: 06.01.02 | B40: =VLOOKUP(A40,Datos_presupuesto!A39:H290,5,FALSE)+VLOOKUP(A40,Datos_presupuesto!A39:H290,6,FALSE)+VLOOKUP(A40,Datos_presupuesto!A39:H290,7,FALSE)+VLOOKUP(A40,Datos_presupuesto!A39:H290,8,FALSE) -> 
A41: 06.01.03 | B41: =VLOOKUP(A41,Datos_presupuesto!A40:H291,5,FALSE)+VLOOKUP(A41,Datos_presupuesto!A40:H291,6,FALSE)+VLOOKUP(A41,Datos_presupuesto!A40:H291,7,FALSE)+VLOOKUP(A41,Datos_presupuesto!A40:H291,8,FALSE) -> 
A42: 06.01.04 | B42: =VLOOKUP(A42,Datos_presupuesto!A41:H292,5,FALSE)+VLOOKUP(A42,Datos_presupuesto!A41:H292,6,FALSE)+VLOOKUP(A42,Datos_presupuesto!A41:H292,7,FALSE)+VLOOKUP(A42,Datos_presupuesto!A41:H292,8,FALSE) -> 
A43: 06.01.05 | B43: =VLOOKUP(A43,Datos_presupuesto!A42:H293,5,FALSE)+VLOOKUP(A43,Datos_presupuesto!A42:H293,6,FALSE)+VLOOKUP(A43,Datos_presupuesto!A42:H293,7,FALSE)+VLOOKUP(A43,Datos_presupuesto!A42:H293,8,FALSE) -> 
A44: 06.01.06 | B44: =VLOOKUP(A44,Datos_presupuesto!A43:H294,5,FALSE)+VLOOKUP(A44,Datos_presupuesto!A43:H294,6,FALSE)+VLOOKUP(A44,Datos_presupuesto!A43:H294,7,FALSE)+VLOOKUP(A44,Datos_presupuesto!A43:H294,8,FALSE) -> 
A45: 06.01.07 | B45: =VLOOKUP(A45,Datos_presupuesto!A44:H295,5,FALSE)+VLOOKUP(A45,Datos_presupuesto!A44:H295,6,FALSE)+VLOOKUP(A45,Datos_presupuesto!A44:H295,7,FALSE)+VLOOKUP(A45,Datos_presupuesto!A44:H295,8,FALSE) -> 
A46: 06.01.08 | B46: =VLOOKUP(A46,Datos_presupuesto!A45:H296,5,FALSE)+VLOOKUP(A46,Datos_presupuesto!A45:H296,6,FALSE)+VLOOKUP(A46,Datos_presupuesto!A45:H296,7,FALSE)+VLOOKUP(A46,Datos_presupuesto!A45:H296,8,FALSE) -> 
A47: 06.01.09 | B47: =VLOOKUP(A47,Datos_presupuesto!A46:H297,5,FALSE)+VLOOKUP(A47,Datos_presupuesto!A46:H297,6,FALSE)+VLOOKUP(A47,Datos_presupuesto!A46:H297,7,FALSE)+VLOOKUP(A47,Datos_presupuesto!A46:H297,8,FALSE) -> 
A48: 06.01.10 | B48: =VLOOKUP(A48,Datos_presupuesto!A47:H298,5,FALSE)+VLOOKUP(A48,Datos_presupuesto!A47:H298,6,FALSE)+VLOOKUP(A48,Datos_presupuesto!A47:H298,7,FALSE)+VLOOKUP(A48,Datos_presupuesto!A47:H298,8,FALSE) -> 
A49: 06.01.11 | B49: =VLOOKUP(A49,Datos_presupuesto!A48:H299,5,FALSE)+VLOOKUP(A49,Datos_presupuesto!A48:H299,6,FALSE)+VLOOKUP(A49,Datos_presupuesto!A48:H299,7,FALSE)+VLOOKUP(A49,Datos_presupuesto!A48:H299,8,FALSE) -> 
A50: 06.01.12 | B50: =VLOOKUP(A50,Datos_presupuesto!A49:H300,5,FALSE)+VLOOKUP(A50,Datos_presupuesto!A49:H300,6,FALSE)+VLOOKUP(A50,Datos_presupuesto!A49:H300,7,FALSE)+VLOOKUP(A50,Datos_presupuesto!A49:H300,8,FALSE) -> 
A51: 06.01.13 | B51: =VLOOKUP(A51,Datos_presupuesto!A50:H301,5,FALSE)+VLOOKUP(A51,Datos_presupuesto!A50:H301,6,FALSE)+VLOOKUP(A51,Datos_presupuesto!A50:H301,7,FALSE)+VLOOKUP(A51,Datos_presupuesto!A50:H301,8,FALSE) -> 
A52: 06.01.14 | B52: =VLOOKUP(A52,Datos_presupuesto!A51:H302,5,FALSE)+VLOOKUP(A52,Datos_presupuesto!A51:H302,6,FALSE)+VLOOKUP(A52,Datos_presupuesto!A51:H302,7,FALSE)+VLOOKUP(A52,Datos_presupuesto!A51:H302,8,FALSE) -> 
A53: 06.01.15 | B53: =VLOOKUP(A53,Datos_presupuesto!A52:H303,5,FALSE)+VLOOKUP(A53,Datos_presupuesto!A52:H303,6,FALSE)+VLOOKUP(A53,Datos_presupuesto!A52:H303,7,FALSE)+VLOOKUP(A53,Datos_presupuesto!A52:H303,8,FALSE) -> 
A54: 06.01.16 | B54: =VLOOKUP(A54,Datos_presupuesto!A53:H304,5,FALSE)+VLOOKUP(A54,Datos_presupuesto!A53:H304,6,FALSE)+VLOOKUP(A54,Datos_presupuesto!A53:H304,7,FALSE)+VLOOKUP(A54,Datos_presupuesto!A53:H304,8,FALSE) -> 
A55: 06.01.17 | B55: =VLOOKUP(A55,Datos_presupuesto!A54:H305,5,FALSE)+VLOOKUP(A55,Datos_presupuesto!A54:H305,6,FALSE)+VLOOKUP(A55,Datos_presupuesto!A54:H305,7,FALSE)+VLOOKUP(A55,Datos_presupuesto!A54:H305,8,FALSE) -> 
A56: 06.01.18 | B56: =VLOOKUP(A56,Datos_presupuesto!A55:H306,5,FALSE)+VLOOKUP(A56,Datos_presupuesto!A55:H306,6,FALSE)+VLOOKUP(A56,Datos_presupuesto!A55:H306,7,FALSE)+VLOOKUP(A56,Datos_presupuesto!A55:H306,8,FALSE) -> 
A57: 02.08.06 | B57: =VLOOKUP(A57,Datos_presupuesto!A56:H307,5,FALSE)+VLOOKUP(A57,Datos_presupuesto!A56:H307,6,FALSE)+VLOOKUP(A57,Datos_presupuesto!A56:H307,7,FALSE)+VLOOKUP(A57,Datos_presupuesto!A56:H307,8,FALSE) -> 
A58: 06.01.20 | B58: =VLOOKUP(A58,Datos_presupuesto!A57:H308,5,FALSE)+VLOOKUP(A58,Datos_presupuesto!A57:H308,6,FALSE)+VLOOKUP(A58,Datos_presupuesto!A57:H308,7,FALSE)+VLOOKUP(A58,Datos_presupuesto!A57:H308,8,FALSE) -> 
A59: 06.01.21 | B59: =VLOOKUP(A59,Datos_presupuesto!A58:H309,5,FALSE)+VLOOKUP(A59,Datos_presupuesto!A58:H309,6,FALSE)+VLOOKUP(A59,Datos_presupuesto!A58:H309,7,FALSE)+VLOOKUP(A59,Datos_presupuesto!A58:H309,8,FALSE) -> 
A60: 06.01.22 | B60: =VLOOKUP(A60,Datos_presupuesto!A59:H310,5,FALSE)+VLOOKUP(A60,Datos_presupuesto!A59:H310,6,FALSE)+VLOOKUP(A60,Datos_presupuesto!A59:H310,7,FALSE)+VLOOKUP(A60,Datos_presupuesto!A59:H310,8,FALSE) -> 
A61: 06.01.23 | B61: =VLOOKUP(A61,Datos_presupuesto!A60:H311,5,FALSE)+VLOOKUP(A61,Datos_presupuesto!A60:H311,6,FALSE)+VLOOKUP(A61,Datos_presupuesto!A60:H311,7,FALSE)+VLOOKUP(A61,Datos_presupuesto!A60:H311,8,FALSE) -> 
C62: =SUM(B39:B44)*'Factores de emision'!D41+'Calculos 1'!B45*'Factores de emision'!D41/10+'Calculos 1'!B46*'Factores de emision'!D38/10+'Calculos 1'!B47*'Factores de emision'!D41+SUM(B48:B53)*'Factores de emision'!D38+'Calculos 1'!B54/1.25*'Calculos 1'!D8+SUM(B59:B61)*'Factores de emision'!D41 ->  | E62: emi_06.01 | F62: =C62 -> 
A64: 06.02.01 | B64: =VLOOKUP(A64,Datos_presupuesto!A63:H314,5,FALSE)+VLOOKUP(A64,Datos_presupuesto!A63:H314,6,FALSE)+VLOOKUP(A64,Datos_presupuesto!A63:H314,7,FALSE)+VLOOKUP(A64,Datos_presupuesto!A63:H314,8,FALSE) -> 
A65: 06.02.02 | B65: =VLOOKUP(A65,Datos_presupuesto!A64:H315,5,FALSE)+VLOOKUP(A65,Datos_presupuesto!A64:H315,6,FALSE)+VLOOKUP(A65,Datos_presupuesto!A64:H315,7,FALSE)+VLOOKUP(A65,Datos_presupuesto!A64:H315,8,FALSE) -> 
A66: 06.02.03 | B66: =VLOOKUP(A66,Datos_presupuesto!A65:H316,5,FALSE)+VLOOKUP(A66,Datos_presupuesto!A65:H316,6,FALSE)+VLOOKUP(A66,Datos_presupuesto!A65:H316,7,FALSE)+VLOOKUP(A66,Datos_presupuesto!A65:H316,8,FALSE) -> 
A67: 06.02.04 | B67: =VLOOKUP(A67,Datos_presupuesto!A66:H317,5,FALSE)+VLOOKUP(A67,Datos_presupuesto!A66:H317,6,FALSE)+VLOOKUP(A67,Datos_presupuesto!A66:H317,7,FALSE)+VLOOKUP(A67,Datos_presupuesto!A66:H317,8,FALSE) -> 
A68: 06.02.05 | B68: =VLOOKUP(A68,Datos_presupuesto!A67:H318,5,FALSE)+VLOOKUP(A68,Datos_presupuesto!A67:H318,6,FALSE)+VLOOKUP(A68,Datos_presupuesto!A67:H318,7,FALSE)+VLOOKUP(A68,Datos_presupuesto!A67:H318,8,FALSE) -> 
A69: 06.02.06 | B69: =VLOOKUP(A69,Datos_presupuesto!A68:H319,5,FALSE)+VLOOKUP(A69,Datos_presupuesto!A68:H319,6,FALSE)+VLOOKUP(A69,Datos_presupuesto!A68:H319,7,FALSE)+VLOOKUP(A69,Datos_presupuesto!A68:H319,8,FALSE) -> 
A70: 06.02.07 | B70: =VLOOKUP(A70,Datos_presupuesto!A69:H320,5,FALSE)+VLOOKUP(A70,Datos_presupuesto!A69:H320,6,FALSE)+VLOOKUP(A70,Datos_presupuesto!A69:H320,7,FALSE)+VLOOKUP(A70,Datos_presupuesto!A69:H320,8,FALSE) -> 
A71: 06.02.08 | B71: =VLOOKUP(A71,Datos_presupuesto!A70:H321,5,FALSE)+VLOOKUP(A71,Datos_presupuesto!A70:H321,6,FALSE)+VLOOKUP(A71,Datos_presupuesto!A70:H321,7,FALSE)+VLOOKUP(A71,Datos_presupuesto!A70:H321,8,FALSE) -> 
A72: 06.02.09 | B72: =VLOOKUP(A72,Datos_presupuesto!A71:H322,5,FALSE)+VLOOKUP(A72,Datos_presupuesto!A71:H322,6,FALSE)+VLOOKUP(A72,Datos_presupuesto!A71:H322,7,FALSE)+VLOOKUP(A72,Datos_presupuesto!A71:H322,8,FALSE) -> 
A73: 06.02.10 | B73: =VLOOKUP(A73,Datos_presupuesto!A72:H323,5,FALSE)+VLOOKUP(A73,Datos_presupuesto!A72:H323,6,FALSE)+VLOOKUP(A73,Datos_presupuesto!A72:H323,7,FALSE)+VLOOKUP(A73,Datos_presupuesto!A72:H323,8,FALSE) -> 
A74: 06.02.11 | B74: =VLOOKUP(A74,Datos_presupuesto!A73:H324,5,FALSE)+VLOOKUP(A74,Datos_presupuesto!A73:H324,6,FALSE)+VLOOKUP(A74,Datos_presupuesto!A73:H324,7,FALSE)+VLOOKUP(A74,Datos_presupuesto!A73:H324,8,FALSE) -> 
A75: 06.02.12 | B75: =VLOOKUP(A75,Datos_presupuesto!A74:H325,5,FALSE)+VLOOKUP(A75,Datos_presupuesto!A74:H325,6,FALSE)+VLOOKUP(A75,Datos_presupuesto!A74:H325,7,FALSE)+VLOOKUP(A75,Datos_presupuesto!A74:H325,8,FALSE) -> 
A76: 06.02.13 | B76: =VLOOKUP(A76,Datos_presupuesto!A75:H326,5,FALSE)+VLOOKUP(A76,Datos_presupuesto!A75:H326,6,FALSE)+VLOOKUP(A76,Datos_presupuesto!A75:H326,7,FALSE)+VLOOKUP(A76,Datos_presupuesto!A75:H326,8,FALSE) -> 
A77: 06.02.14 | B77: =VLOOKUP(A77,Datos_presupuesto!A76:H327,5,FALSE)+VLOOKUP(A77,Datos_presupuesto!A76:H327,6,FALSE)+VLOOKUP(A77,Datos_presupuesto!A76:H327,7,FALSE)+VLOOKUP(A77,Datos_presupuesto!A76:H327,8,FALSE) -> 
A78: 06.02.15 | B78: =VLOOKUP(A78,Datos_presupuesto!A77:H328,5,FALSE)+VLOOKUP(A78,Datos_presupuesto!A77:H328,6,FALSE)+VLOOKUP(A78,Datos_presupuesto!A77:H328,7,FALSE)+VLOOKUP(A78,Datos_presupuesto!A77:H328,8,FALSE) -> 
A79: 06.02.16 | B79: =VLOOKUP(A79,Datos_presupuesto!A78:H329,5,FALSE)+VLOOKUP(A79,Datos_presupuesto!A78:H329,6,FALSE)+VLOOKUP(A79,Datos_presupuesto!A78:H329,7,FALSE)+VLOOKUP(A79,Datos_presupuesto!A78:H329,8,FALSE) -> 
A80: 06.02.17 | B80: =VLOOKUP(A80,Datos_presupuesto!A79:H330,5,FALSE)+VLOOKUP(A80,Datos_presupuesto!A79:H330,6,FALSE)+VLOOKUP(A80,Datos_presupuesto!A79:H330,7,FALSE)+VLOOKUP(A80,Datos_presupuesto!A79:H330,8,FALSE) -> 
A81: 06.02.18 | B81: =VLOOKUP(A81,Datos_presupuesto!A80:H331,5,FALSE)+VLOOKUP(A81,Datos_presupuesto!A80:H331,6,FALSE)+VLOOKUP(A81,Datos_presupuesto!A80:H331,7,FALSE)+VLOOKUP(A81,Datos_presupuesto!A80:H331,8,FALSE) -> 
A82: 06.02.19 | B82: =VLOOKUP(A82,Datos_presupuesto!A81:H332,5,FALSE)+VLOOKUP(A82,Datos_presupuesto!A81:H332,6,FALSE)+VLOOKUP(A82,Datos_presupuesto!A81:H332,7,FALSE)+VLOOKUP(A82,Datos_presupuesto!A81:H332,8,FALSE) -> 
A83: 06.02.20 | B83: =VLOOKUP(A83,Datos_presupuesto!A82:H333,5,FALSE)+VLOOKUP(A83,Datos_presupuesto!A82:H333,6,FALSE)+VLOOKUP(A83,Datos_presupuesto!A82:H333,7,FALSE)+VLOOKUP(A83,Datos_presupuesto!A82:H333,8,FALSE) -> 
A84: 06.02.21 | B84: =VLOOKUP(A84,Datos_presupuesto!A83:H334,5,FALSE)+VLOOKUP(A84,Datos_presupuesto!A83:H334,6,FALSE)+VLOOKUP(A84,Datos_presupuesto!A83:H334,7,FALSE)+VLOOKUP(A84,Datos_presupuesto!A83:H334,8,FALSE) -> 
A85: 06.02.22 | B85: =VLOOKUP(A85,Datos_presupuesto!A84:H335,5,FALSE)+VLOOKUP(A85,Datos_presupuesto!A84:H335,6,FALSE)+VLOOKUP(A85,Datos_presupuesto!A84:H335,7,FALSE)+VLOOKUP(A85,Datos_presupuesto!A84:H335,8,FALSE) -> 
A87: 07.01.01 | B87: =VLOOKUP(A87,Datos_presupuesto!A86:H337,5,FALSE)+VLOOKUP(A87,Datos_presupuesto!A86:H337,6,FALSE)+VLOOKUP(A87,Datos_presupuesto!A86:H337,7,FALSE)+VLOOKUP(A87,Datos_presupuesto!A86:H337,8,FALSE) -> 
A88: 07.01.02 | B88: =VLOOKUP(A88,Datos_presupuesto!A87:H338,5,FALSE)+VLOOKUP(A88,Datos_presupuesto!A87:H338,6,FALSE)+VLOOKUP(A88,Datos_presupuesto!A87:H338,7,FALSE)+VLOOKUP(A88,Datos_presupuesto!A87:H338,8,FALSE) -> 
A89: 07.01.03 | B89: =VLOOKUP(A89,Datos_presupuesto!A88:H339,5,FALSE)+VLOOKUP(A89,Datos_presupuesto!A88:H339,6,FALSE)+VLOOKUP(A89,Datos_presupuesto!A88:H339,7,FALSE)+VLOOKUP(A89,Datos_presupuesto!A88:H339,8,FALSE) -> 
A90: 07.01.04 | B90: =VLOOKUP(A90,Datos_presupuesto!A89:H340,5,FALSE)+VLOOKUP(A90,Datos_presupuesto!A89:H340,6,FALSE)+VLOOKUP(A90,Datos_presupuesto!A89:H340,7,FALSE)+VLOOKUP(A90,Datos_presupuesto!A89:H340,8,FALSE) -> 
A91: 07.01.05 | B91: =VLOOKUP(A91,Datos_presupuesto!A90:H341,5,FALSE)+VLOOKUP(A91,Datos_presupuesto!A90:H341,6,FALSE)+VLOOKUP(A91,Datos_presupuesto!A90:H341,7,FALSE)+VLOOKUP(A91,Datos_presupuesto!A90:H341,8,FALSE) -> 
A92: 07.01.06 | B92: =VLOOKUP(A92,Datos_presupuesto!A91:H342,5,FALSE)+VLOOKUP(A92,Datos_presupuesto!A91:H342,6,FALSE)+VLOOKUP(A92,Datos_presupuesto!A91:H342,7,FALSE)+VLOOKUP(A92,Datos_presupuesto!A91:H342,8,FALSE) -> 
A93: 07.01.07 | B93: =VLOOKUP(A93,Datos_presupuesto!A92:H343,5,FALSE)+VLOOKUP(A93,Datos_presupuesto!A92:H343,6,FALSE)+VLOOKUP(A93,Datos_presupuesto!A92:H343,7,FALSE)+VLOOKUP(A93,Datos_presupuesto!A92:H343,8,FALSE) -> 
A94: 07.01.08 | B94: =VLOOKUP(A94,Datos_presupuesto!A93:H344,5,FALSE)+VLOOKUP(A94,Datos_presupuesto!A93:H344,6,FALSE)+VLOOKUP(A94,Datos_presupuesto!A93:H344,7,FALSE)+VLOOKUP(A94,Datos_presupuesto!A93:H344,8,FALSE) -> 
A95: 07.01.09 | B95: =VLOOKUP(A95,Datos_presupuesto!A94:H345,5,FALSE)+VLOOKUP(A95,Datos_presupuesto!A94:H345,6,FALSE)+VLOOKUP(A95,Datos_presupuesto!A94:H345,7,FALSE)+VLOOKUP(A95,Datos_presupuesto!A94:H345,8,FALSE) -> 
A96: 07.01.10 | B96: =VLOOKUP(A96,Datos_presupuesto!A95:H346,5,FALSE)+VLOOKUP(A96,Datos_presupuesto!A95:H346,6,FALSE)+VLOOKUP(A96,Datos_presupuesto!A95:H346,7,FALSE)+VLOOKUP(A96,Datos_presupuesto!A95:H346,8,FALSE) -> 
A97: 07.01.11 | B97: =VLOOKUP(A97,Datos_presupuesto!A96:H347,5,FALSE)+VLOOKUP(A97,Datos_presupuesto!A96:H347,6,FALSE)+VLOOKUP(A97,Datos_presupuesto!A96:H347,7,FALSE)+VLOOKUP(A97,Datos_presupuesto!A96:H347,8,FALSE) -> 
A98: 07.01.12 | B98: =VLOOKUP(A98,Datos_presupuesto!A97:H348,5,FALSE)+VLOOKUP(A98,Datos_presupuesto!A97:H348,6,FALSE)+VLOOKUP(A98,Datos_presupuesto!A97:H348,7,FALSE)+VLOOKUP(A98,Datos_presupuesto!A97:H348,8,FALSE) -> 
A99: 07.01.13 | B99: =VLOOKUP(A99,Datos_presupuesto!A98:H349,5,FALSE)+VLOOKUP(A99,Datos_presupuesto!A98:H349,6,FALSE)+VLOOKUP(A99,Datos_presupuesto!A98:H349,7,FALSE)+VLOOKUP(A99,Datos_presupuesto!A98:H349,8,FALSE) -> 
A100: 07.01.14 | B100: =VLOOKUP(A100,Datos_presupuesto!A99:H350,5,FALSE)+VLOOKUP(A100,Datos_presupuesto!A99:H350,6,FALSE)+VLOOKUP(A100,Datos_presupuesto!A99:H350,7,FALSE)+VLOOKUP(A100,Datos_presupuesto!A99:H350,8,FALSE) -> 
A101: 07.01.15 | B101: =VLOOKUP(A101,Datos_presupuesto!A100:H351,5,FALSE)+VLOOKUP(A101,Datos_presupuesto!A100:H351,6,FALSE)+VLOOKUP(A101,Datos_presupuesto!A100:H351,7,FALSE)+VLOOKUP(A101,Datos_presupuesto!A100:H351,8,FALSE) -> 
A102: 07.01.16 | B102: =VLOOKUP(A102,Datos_presupuesto!A101:H352,5,FALSE)+VLOOKUP(A102,Datos_presupuesto!A101:H352,6,FALSE)+VLOOKUP(A102,Datos_presupuesto!A101:H352,7,FALSE)+VLOOKUP(A102,Datos_presupuesto!A101:H352,8,FALSE) -> 
A103: 07.01.17 | B103: =VLOOKUP(A103,Datos_presupuesto!A102:H353,5,FALSE)+VLOOKUP(A103,Datos_presupuesto!A102:H353,6,FALSE)+VLOOKUP(A103,Datos_presupuesto!A102:H353,7,FALSE)+VLOOKUP(A103,Datos_presupuesto!A102:H353,8,FALSE) -> 
A104: 07.01.18 | B104: =VLOOKUP(A104,Datos_presupuesto!A103:H354,5,FALSE)+VLOOKUP(A104,Datos_presupuesto!A103:H354,6,FALSE)+VLOOKUP(A104,Datos_presupuesto!A103:H354,7,FALSE)+VLOOKUP(A104,Datos_presupuesto!A103:H354,8,FALSE) -> 
A105: 07.01.19 | B105: =VLOOKUP(A105,Datos_presupuesto!A104:H355,5,FALSE)+VLOOKUP(A105,Datos_presupuesto!A104:H355,6,FALSE)+VLOOKUP(A105,Datos_presupuesto!A104:H355,7,FALSE)+VLOOKUP(A105,Datos_presupuesto!A104:H355,8,FALSE) -> 
A106: 07.01.20 | B106: =VLOOKUP(A106,Datos_presupuesto!A105:H356,5,FALSE)+VLOOKUP(A106,Datos_presupuesto!A105:H356,6,FALSE)+VLOOKUP(A106,Datos_presupuesto!A105:H356,7,FALSE)+VLOOKUP(A106,Datos_presupuesto!A105:H356,8,FALSE) -> 
A108: 07.02.01 | B108: =VLOOKUP(A108,Datos_presupuesto!A107:H358,5,FALSE)+VLOOKUP(A108,Datos_presupuesto!A107:H358,6,FALSE)+VLOOKUP(A108,Datos_presupuesto!A107:H358,7,FALSE)+VLOOKUP(A108,Datos_presupuesto!A107:H358,8,FALSE) -> 
A109: 07.02.02 | B109: =VLOOKUP(A109,Datos_presupuesto!A108:H359,5,FALSE)+VLOOKUP(A109,Datos_presupuesto!A108:H359,6,FALSE)+VLOOKUP(A109,Datos_presupuesto!A108:H359,7,FALSE)+VLOOKUP(A109,Datos_presupuesto!A108:H359,8,FALSE) -> 
A110: 07.02.03 | B110: =VLOOKUP(A110,Datos_presupuesto!A109:H360,5,FALSE)+VLOOKUP(A110,Datos_presupuesto!A109:H360,6,FALSE)+VLOOKUP(A110,Datos_presupuesto!A109:H360,7,FALSE)+VLOOKUP(A110,Datos_presupuesto!A109:H360,8,FALSE) -> 
A111: 07.02.04 | B111: =VLOOKUP(A111,Datos_presupuesto!A110:H361,5,FALSE)+VLOOKUP(A111,Datos_presupuesto!A110:H361,6,FALSE)+VLOOKUP(A111,Datos_presupuesto!A110:H361,7,FALSE)+VLOOKUP(A111,Datos_presupuesto!A110:H361,8,FALSE) -> 
A112: 07.02.05 | B112: =VLOOKUP(A112,Datos_presupuesto!A111:H362,5,FALSE)+VLOOKUP(A112,Datos_presupuesto!A111:H362,6,FALSE)+VLOOKUP(A112,Datos_presupuesto!A111:H362,7,FALSE)+VLOOKUP(A112,Datos_presupuesto!A111:H362,8,FALSE) -> 
A113: 07.02.06 | B113: =VLOOKUP(A113,Datos_presupuesto!A112:H363,5,FALSE)+VLOOKUP(A113,Datos_presupuesto!A112:H363,6,FALSE)+VLOOKUP(A113,Datos_presupuesto!A112:H363,7,FALSE)+VLOOKUP(A113,Datos_presupuesto!A112:H363,8,FALSE) -> 
A114: 07.02.07 | B114: =VLOOKUP(A114,Datos_presupuesto!A113:H364,5,FALSE)+VLOOKUP(A114,Datos_presupuesto!A113:H364,6,FALSE)+VLOOKUP(A114,Datos_presupuesto!A113:H364,7,FALSE)+VLOOKUP(A114,Datos_presupuesto!A113:H364,8,FALSE) -> 
A115: 07.02.08 | B115: =VLOOKUP(A115,Datos_presupuesto!A114:H365,5,FALSE)+VLOOKUP(A115,Datos_presupuesto!A114:H365,6,FALSE)+VLOOKUP(A115,Datos_presupuesto!A114:H365,7,FALSE)+VLOOKUP(A115,Datos_presupuesto!A114:H365,8,FALSE) -> 
A116: 07.02.09 | B116: =VLOOKUP(A116,Datos_presupuesto!A115:H366,5,FALSE)+VLOOKUP(A116,Datos_presupuesto!A115:H366,6,FALSE)+VLOOKUP(A116,Datos_presupuesto!A115:H366,7,FALSE)+VLOOKUP(A116,Datos_presupuesto!A115:H366,8,FALSE) -> 
A117: 07.02.10 | B117: =VLOOKUP(A117,Datos_presupuesto!A116:H367,5,FALSE)+VLOOKUP(A117,Datos_presupuesto!A116:H367,6,FALSE)+VLOOKUP(A117,Datos_presupuesto!A116:H367,7,FALSE)+VLOOKUP(A117,Datos_presupuesto!A116:H367,8,FALSE) -> 
A118: 07.02.11 | B118: =VLOOKUP(A118,Datos_presupuesto!A117:H368,5,FALSE)+VLOOKUP(A118,Datos_presupuesto!A117:H368,6,FALSE)+VLOOKUP(A118,Datos_presupuesto!A117:H368,7,FALSE)+VLOOKUP(A118,Datos_presupuesto!A117:H368,8,FALSE) -> 
A119: 07.02.12 | B119: =VLOOKUP(A119,Datos_presupuesto!A118:H369,5,FALSE)+VLOOKUP(A119,Datos_presupuesto!A118:H369,6,FALSE)+VLOOKUP(A119,Datos_presupuesto!A118:H369,7,FALSE)+VLOOKUP(A119,Datos_presupuesto!A118:H369,8,FALSE) -> 
A120: 07.02.13 | B120: =VLOOKUP(A120,Datos_presupuesto!A119:H370,5,FALSE)+VLOOKUP(A120,Datos_presupuesto!A119:H370,6,FALSE)+VLOOKUP(A120,Datos_presupuesto!A119:H370,7,FALSE)+VLOOKUP(A120,Datos_presupuesto!A119:H370,8,FALSE) -> 
A121: 07.02.14 | B121: =VLOOKUP(A121,Datos_presupuesto!A120:H371,5,FALSE)+VLOOKUP(A121,Datos_presupuesto!A120:H371,6,FALSE)+VLOOKUP(A121,Datos_presupuesto!A120:H371,7,FALSE)+VLOOKUP(A121,Datos_presupuesto!A120:H371,8,FALSE) -> 
A122: 07.02.15 | B122: =VLOOKUP(A122,Datos_presupuesto!A121:H372,5,FALSE)+VLOOKUP(A122,Datos_presupuesto!A121:H372,6,FALSE)+VLOOKUP(A122,Datos_presupuesto!A121:H372,7,FALSE)+VLOOKUP(A122,Datos_presupuesto!A121:H372,8,FALSE) -> 
A123: 07.02.16 | B123: =VLOOKUP(A123,Datos_presupuesto!A122:H373,5,FALSE)+VLOOKUP(A123,Datos_presupuesto!A122:H373,6,FALSE)+VLOOKUP(A123,Datos_presupuesto!A122:H373,7,FALSE)+VLOOKUP(A123,Datos_presupuesto!A122:H373,8,FALSE) -> 
A124: 07.02.17 | B124: =VLOOKUP(A124,Datos_presupuesto!A123:H374,5,FALSE)+VLOOKUP(A124,Datos_presupuesto!A123:H374,6,FALSE)+VLOOKUP(A124,Datos_presupuesto!A123:H374,7,FALSE)+VLOOKUP(A124,Datos_presupuesto!A123:H374,8,FALSE) -> 
A125: 07.02.18 | B125: =VLOOKUP(A125,Datos_presupuesto!A124:H375,5,FALSE)+VLOOKUP(A125,Datos_presupuesto!A124:H375,6,FALSE)+VLOOKUP(A125,Datos_presupuesto!A124:H375,7,FALSE)+VLOOKUP(A125,Datos_presupuesto!A124:H375,8,FALSE) -> 
A126: 07.02.19 | B126: =VLOOKUP(A126,Datos_presupuesto!A125:H376,5,FALSE)+VLOOKUP(A126,Datos_presupuesto!A125:H376,6,FALSE)+VLOOKUP(A126,Datos_presupuesto!A125:H376,7,FALSE)+VLOOKUP(A126,Datos_presupuesto!A125:H376,8,FALSE) -> 
A127: 07.02.20 | B127: =VLOOKUP(A127,Datos_presupuesto!A126:H377,5,FALSE)+VLOOKUP(A127,Datos_presupuesto!A126:H377,6,FALSE)+VLOOKUP(A127,Datos_presupuesto!A126:H377,7,FALSE)+VLOOKUP(A127,Datos_presupuesto!A126:H377,8,FALSE) -> 
A128: 07.02.21 | B128: =VLOOKUP(A128,Datos_presupuesto!A127:H378,5,FALSE)+VLOOKUP(A128,Datos_presupuesto!A127:H378,6,FALSE)+VLOOKUP(A128,Datos_presupuesto!A127:H378,7,FALSE)+VLOOKUP(A128,Datos_presupuesto!A127:H378,8,FALSE) -> 
A129: 07.02.22 | B129: =VLOOKUP(A129,Datos_presupuesto!A128:H379,5,FALSE)+VLOOKUP(A129,Datos_presupuesto!A128:H379,6,FALSE)+VLOOKUP(A129,Datos_presupuesto!A128:H379,7,FALSE)+VLOOKUP(A129,Datos_presupuesto!A128:H379,8,FALSE) -> 
A130: 07.02.23 | B130: =VLOOKUP(A130,Datos_presupuesto!A129:H380,5,FALSE)+VLOOKUP(A130,Datos_presupuesto!A129:H380,6,FALSE)+VLOOKUP(A130,Datos_presupuesto!A129:H380,7,FALSE)+VLOOKUP(A130,Datos_presupuesto!A129:H380,8,FALSE) -> 
A131: 07.02.24 | B131: =VLOOKUP(A131,Datos_presupuesto!A130:H381,5,FALSE)+VLOOKUP(A131,Datos_presupuesto!A130:H381,6,FALSE)+VLOOKUP(A131,Datos_presupuesto!A130:H381,7,FALSE)+VLOOKUP(A131,Datos_presupuesto!A130:H381,8,FALSE) -> 
A133: 07.04.01 | B133: =VLOOKUP(A133,Datos_presupuesto!A132:H383,5,FALSE)+VLOOKUP(A133,Datos_presupuesto!A132:H383,6,FALSE)+VLOOKUP(A133,Datos_presupuesto!A132:H383,7,FALSE)+VLOOKUP(A133,Datos_presupuesto!A132:H383,8,FALSE) -> 
A134: 07.04.02 | B134: =VLOOKUP(A134,Datos_presupuesto!A133:H384,5,FALSE)+VLOOKUP(A134,Datos_presupuesto!A133:H384,6,FALSE)+VLOOKUP(A134,Datos_presupuesto!A133:H384,7,FALSE)+VLOOKUP(A134,Datos_presupuesto!A133:H384,8,FALSE) -> 
A135: 07.04.03 | B135: =VLOOKUP(A135,Datos_presupuesto!A134:H385,5,FALSE)+VLOOKUP(A135,Datos_presupuesto!A134:H385,6,FALSE)+VLOOKUP(A135,Datos_presupuesto!A134:H385,7,FALSE)+VLOOKUP(A135,Datos_presupuesto!A134:H385,8,FALSE) -> 
A136: 07.04.04 | B136: =VLOOKUP(A136,Datos_presupuesto!A135:H386,5,FALSE)+VLOOKUP(A136,Datos_presupuesto!A135:H386,6,FALSE)+VLOOKUP(A136,Datos_presupuesto!A135:H386,7,FALSE)+VLOOKUP(A136,Datos_presupuesto!A135:H386,8,FALSE) -> 
A137: 07.04.05 | B137: =VLOOKUP(A137,Datos_presupuesto!A136:H387,5,FALSE)+VLOOKUP(A137,Datos_presupuesto!A136:H387,6,FALSE)+VLOOKUP(A137,Datos_presupuesto!A136:H387,7,FALSE)+VLOOKUP(A137,Datos_presupuesto!A136:H387,8,FALSE) -> 
A138: 07.04.06 | B138: =VLOOKUP(A138,Datos_presupuesto!A137:H388,5,FALSE)+VLOOKUP(A138,Datos_presupuesto!A137:H388,6,FALSE)+VLOOKUP(A138,Datos_presupuesto!A137:H388,7,FALSE)+VLOOKUP(A138,Datos_presupuesto!A137:H388,8,FALSE) -> 
A139: 07.04.07 | B139: =VLOOKUP(A139,Datos_presupuesto!A138:H389,5,FALSE)+VLOOKUP(A139,Datos_presupuesto!A138:H389,6,FALSE)+VLOOKUP(A139,Datos_presupuesto!A138:H389,7,FALSE)+VLOOKUP(A139,Datos_presupuesto!A138:H389,8,FALSE) -> 
A140: 07.04.08 | B140: =VLOOKUP(A140,Datos_presupuesto!A139:H390,5,FALSE)+VLOOKUP(A140,Datos_presupuesto!A139:H390,6,FALSE)+VLOOKUP(A140,Datos_presupuesto!A139:H390,7,FALSE)+VLOOKUP(A140,Datos_presupuesto!A139:H390,8,FALSE) -> 
A141: 07.04.09 | B141: =VLOOKUP(A141,Datos_presupuesto!A140:H391,5,FALSE)+VLOOKUP(A141,Datos_presupuesto!A140:H391,6,FALSE)+VLOOKUP(A141,Datos_presupuesto!A140:H391,7,FALSE)+VLOOKUP(A141,Datos_presupuesto!A140:H391,8,FALSE) -> 
A142: 07.04.10 | B142: =VLOOKUP(A142,Datos_presupuesto!A141:H392,5,FALSE)+VLOOKUP(A142,Datos_presupuesto!A141:H392,6,FALSE)+VLOOKUP(A142,Datos_presupuesto!A141:H392,7,FALSE)+VLOOKUP(A142,Datos_presupuesto!A141:H392,8,FALSE) -> 
A144: 11.01.01 | B144: =VLOOKUP(A144,Datos_presupuesto!A143:H394,5,FALSE)+VLOOKUP(A144,Datos_presupuesto!A143:H394,6,FALSE)+VLOOKUP(A144,Datos_presupuesto!A143:H394,7,FALSE)+VLOOKUP(A144,Datos_presupuesto!A143:H394,8,FALSE) -> 
A145: 11.01.02 | B145: =VLOOKUP(A145,Datos_presupuesto!A144:H395,5,FALSE)+VLOOKUP(A145,Datos_presupuesto!A144:H395,6,FALSE)+VLOOKUP(A145,Datos_presupuesto!A144:H395,7,FALSE)+VLOOKUP(A145,Datos_presupuesto!A144:H395,8,FALSE) -> 
A146: 11.01.03 | B146: =VLOOKUP(A146,Datos_presupuesto!A145:H396,5,FALSE)+VLOOKUP(A146,Datos_presupuesto!A145:H396,6,FALSE)+VLOOKUP(A146,Datos_presupuesto!A145:H396,7,FALSE)+VLOOKUP(A146,Datos_presupuesto!A145:H396,8,FALSE) -> 
A147: 11.01.04 | B147: =VLOOKUP(A147,Datos_presupuesto!A146:H397,5,FALSE)+VLOOKUP(A147,Datos_presupuesto!A146:H397,6,FALSE)+VLOOKUP(A147,Datos_presupuesto!A146:H397,7,FALSE)+VLOOKUP(A147,Datos_presupuesto!A146:H397,8,FALSE) -> 
A148: 11.01.05 | B148: =VLOOKUP(A148,Datos_presupuesto!A147:H398,5,FALSE)+VLOOKUP(A148,Datos_presupuesto!A147:H398,6,FALSE)+VLOOKUP(A148,Datos_presupuesto!A147:H398,7,FALSE)+VLOOKUP(A148,Datos_presupuesto!A147:H398,8,FALSE) -> 
A149: 11.01.06 | B149: =VLOOKUP(A149,Datos_presupuesto!A148:H399,5,FALSE)+VLOOKUP(A149,Datos_presupuesto!A148:H399,6,FALSE)+VLOOKUP(A149,Datos_presupuesto!A148:H399,7,FALSE)+VLOOKUP(A149,Datos_presupuesto!A148:H399,8,FALSE) -> 
A150: 11.01.07 | B150: =VLOOKUP(A150,Datos_presupuesto!A149:H400,5,FALSE)+VLOOKUP(A150,Datos_presupuesto!A149:H400,6,FALSE)+VLOOKUP(A150,Datos_presupuesto!A149:H400,7,FALSE)+VLOOKUP(A150,Datos_presupuesto!A149:H400,8,FALSE) -> 
A151: 11.01.08 | B151: =VLOOKUP(A151,Datos_presupuesto!A150:H401,5,FALSE)+VLOOKUP(A151,Datos_presupuesto!A150:H401,6,FALSE)+VLOOKUP(A151,Datos_presupuesto!A150:H401,7,FALSE)+VLOOKUP(A151,Datos_presupuesto!A150:H401,8,FALSE) -> 
A152: 11.01.09 | B152: =VLOOKUP(A152,Datos_presupuesto!A151:H402,5,FALSE)+VLOOKUP(A152,Datos_presupuesto!A151:H402,6,FALSE)+VLOOKUP(A152,Datos_presupuesto!A151:H402,7,FALSE)+VLOOKUP(A152,Datos_presupuesto!A151:H402,8,FALSE) -> 
A153: 11.01.10 | B153: =VLOOKUP(A153,Datos_presupuesto!A152:H403,5,FALSE)+VLOOKUP(A153,Datos_presupuesto!A152:H403,6,FALSE)+VLOOKUP(A153,Datos_presupuesto!A152:H403,7,FALSE)+VLOOKUP(A153,Datos_presupuesto!A152:H403,8,FALSE) -> 
A154: 11.01.11 | B154: =VLOOKUP(A154,Datos_presupuesto!A153:H404,5,FALSE)+VLOOKUP(A154,Datos_presupuesto!A153:H404,6,FALSE)+VLOOKUP(A154,Datos_presupuesto!A153:H404,7,FALSE)+VLOOKUP(A154,Datos_presupuesto!A153:H404,8,FALSE) -> 
A155: 11.01.12 | B155: =VLOOKUP(A155,Datos_presupuesto!A154:H405,5,FALSE)+VLOOKUP(A155,Datos_presupuesto!A154:H405,6,FALSE)+VLOOKUP(A155,Datos_presupuesto!A154:H405,7,FALSE)+VLOOKUP(A155,Datos_presupuesto!A154:H405,8,FALSE) -> 
A156: 11.01.13 | B156: =VLOOKUP(A156,Datos_presupuesto!A155:H406,5,FALSE)+VLOOKUP(A156,Datos_presupuesto!A155:H406,6,FALSE)+VLOOKUP(A156,Datos_presupuesto!A155:H406,7,FALSE)+VLOOKUP(A156,Datos_presupuesto!A155:H406,8,FALSE) -> 
A157: 11.01.14 | B157: =VLOOKUP(A157,Datos_presupuesto!A156:H407,5,FALSE)+VLOOKUP(A157,Datos_presupuesto!A156:H407,6,FALSE)+VLOOKUP(A157,Datos_presupuesto!A156:H407,7,FALSE)+VLOOKUP(A157,Datos_presupuesto!A156:H407,8,FALSE) -> 
A158: 11.01.15 | B158: =VLOOKUP(A158,Datos_presupuesto!A157:H408,5,FALSE)+VLOOKUP(A158,Datos_presupuesto!A157:H408,6,FALSE)+VLOOKUP(A158,Datos_presupuesto!A157:H408,7,FALSE)+VLOOKUP(A158,Datos_presupuesto!A157:H408,8,FALSE) -> 
A159: 11.01.16 | B159: =VLOOKUP(A159,Datos_presupuesto!A158:H409,5,FALSE)+VLOOKUP(A159,Datos_presupuesto!A158:H409,6,FALSE)+VLOOKUP(A159,Datos_presupuesto!A158:H409,7,FALSE)+VLOOKUP(A159,Datos_presupuesto!A158:H409,8,FALSE) -> 
A160: 11.01.17 | B160: =VLOOKUP(A160,Datos_presupuesto!A159:H410,5,FALSE)+VLOOKUP(A160,Datos_presupuesto!A159:H410,6,FALSE)+VLOOKUP(A160,Datos_presupuesto!A159:H410,7,FALSE)+VLOOKUP(A160,Datos_presupuesto!A159:H410,8,FALSE) -> 
A161: 11.01.18 | B161: =VLOOKUP(A161,Datos_presupuesto!A160:H411,5,FALSE)+VLOOKUP(A161,Datos_presupuesto!A160:H411,6,FALSE)+VLOOKUP(A161,Datos_presupuesto!A160:H411,7,FALSE)+VLOOKUP(A161,Datos_presupuesto!A160:H411,8,FALSE) -> 
A162: 11.01.19 | B162: =VLOOKUP(A162,Datos_presupuesto!A161:H412,5,FALSE)+VLOOKUP(A162,Datos_presupuesto!A161:H412,6,FALSE)+VLOOKUP(A162,Datos_presupuesto!A161:H412,7,FALSE)+VLOOKUP(A162,Datos_presupuesto!A161:H412,8,FALSE) -> 
A163: 11.01.20 | B163: =VLOOKUP(A163,Datos_presupuesto!A162:H413,5,FALSE)+VLOOKUP(A163,Datos_presupuesto!A162:H413,6,FALSE)+VLOOKUP(A163,Datos_presupuesto!A162:H413,7,FALSE)+VLOOKUP(A163,Datos_presupuesto!A162:H413,8,FALSE) -> 
A164: 11.01.21 | B164: =VLOOKUP(A164,Datos_presupuesto!A163:H414,5,FALSE)+VLOOKUP(A164,Datos_presupuesto!A163:H414,6,FALSE)+VLOOKUP(A164,Datos_presupuesto!A163:H414,7,FALSE)+VLOOKUP(A164,Datos_presupuesto!A163:H414,8,FALSE) -> 
A165: 11.01.22 | B165: =VLOOKUP(A165,Datos_presupuesto!A164:H415,5,FALSE)+VLOOKUP(A165,Datos_presupuesto!A164:H415,6,FALSE)+VLOOKUP(A165,Datos_presupuesto!A164:H415,7,FALSE)+VLOOKUP(A165,Datos_presupuesto!A164:H415,8,FALSE) -> 
A166: 11.01.23 | B166: =VLOOKUP(A166,Datos_presupuesto!A165:H416,5,FALSE)+VLOOKUP(A166,Datos_presupuesto!A165:H416,6,FALSE)+VLOOKUP(A166,Datos_presupuesto!A165:H416,7,FALSE)+VLOOKUP(A166,Datos_presupuesto!A165:H416,8,FALSE) -> 
A167: 11.01.24 | B167: =VLOOKUP(A167,Datos_presupuesto!A166:H417,5,FALSE)+VLOOKUP(A167,Datos_presupuesto!A166:H417,6,FALSE)+VLOOKUP(A167,Datos_presupuesto!A166:H417,7,FALSE)+VLOOKUP(A167,Datos_presupuesto!A166:H417,8,FALSE) -> 
A168: 11.01.25 | B168: =VLOOKUP(A168,Datos_presupuesto!A167:H418,5,FALSE)+VLOOKUP(A168,Datos_presupuesto!A167:H418,6,FALSE)+VLOOKUP(A168,Datos_presupuesto!A167:H418,7,FALSE)+VLOOKUP(A168,Datos_presupuesto!A167:H418,8,FALSE) -> 
A169: 11.01.26 | B169: =VLOOKUP(A169,Datos_presupuesto!A168:H419,5,FALSE)+VLOOKUP(A169,Datos_presupuesto!A168:H419,6,FALSE)+VLOOKUP(A169,Datos_presupuesto!A168:H419,7,FALSE)+VLOOKUP(A169,Datos_presupuesto!A168:H419,8,FALSE) -> 
A170: 11.01.27 | B170: =VLOOKUP(A170,Datos_presupuesto!A169:H420,5,FALSE)+VLOOKUP(A170,Datos_presupuesto!A169:H420,6,FALSE)+VLOOKUP(A170,Datos_presupuesto!A169:H420,7,FALSE)+VLOOKUP(A170,Datos_presupuesto!A169:H420,8,FALSE) -> 
A171: 11.01.28 | B171: =VLOOKUP(A171,Datos_presupuesto!A170:H421,5,FALSE)+VLOOKUP(A171,Datos_presupuesto!A170:H421,6,FALSE)+VLOOKUP(A171,Datos_presupuesto!A170:H421,7,FALSE)+VLOOKUP(A171,Datos_presupuesto!A170:H421,8,FALSE) -> 
A172: 11.01.29 | B172: =VLOOKUP(A172,Datos_presupuesto!A171:H422,5,FALSE)+VLOOKUP(A172,Datos_presupuesto!A171:H422,6,FALSE)+VLOOKUP(A172,Datos_presupuesto!A171:H422,7,FALSE)+VLOOKUP(A172,Datos_presupuesto!A171:H422,8,FALSE) -> 
A173: 11.01.30 | B173: =VLOOKUP(A173,Datos_presupuesto!A172:H423,5,FALSE)+VLOOKUP(A173,Datos_presupuesto!A172:H423,6,FALSE)+VLOOKUP(A173,Datos_presupuesto!A172:H423,7,FALSE)+VLOOKUP(A173,Datos_presupuesto!A172:H423,8,FALSE) -> 
C251: =_xlfn.AGGREGATE(9,6,C2:C250) -> 0

Sheet Calculos 2
A1: Calculos | B1: kgCO2 | F1: kgCO2 | G1: tonCO2eq | J1: kgCO2 | K1: tonCO2eq | M1: kgCO2 | N1: TonCO2 | O1: € Presupuesto | P1: personas/dia de trabajo | Q1: kg CO2 personas día de trabajo | T1: Compensación | U1: Huella Mínma | V1: Compensación Huella Mínma
A2: 1.1 | B2: =VLOOKUP('Calculos 2'!A2,'Huella Completa'!A16:G702,3,FALSE)*(IF(VLOOKUP('Calculos 2'!A2,'Huella Completa'!A16:G702,4,FALSE)="Gasolina",Gasolina,IF(VLOOKUP('Calculos 2'!A2,'Huella Completa'!A16:G702,4,FALSE)="Diesel",Diesel,IF(VLOOKUP('Calculos 2'!A2,'Huella Completa'!A16:G702,4,FALSE)="GLP",GLP,0)))) -> 0 | E2: Transporte | F2: =VLOOKUP("1.0",A:C,3,FALSE)+VLOOKUP("2.0",A:C,3,FALSE)+VLOOKUP("4.0",A:C,3,FALSE)+VLOOKUP("5.0",A:C,3,FALSE) -> 0 | G2: =F2/1000 -> 0 | I2: Preproducción | J2: =VLOOKUP("1.0",A:C,3,FALSE)+VLOOKUP("2.0",A:C,3,FALSE)+VLOOKUP("3.0",A:C,3,FALSE)+_xlfn.AGGREGATE(9,6,emi_04.01,emi_04.02,emi_04.03) -> 0 | K2: =J2/1000 -> 0 | L2: TOTAL | M2: ='Huella Minima'!$B$8+'Calculos 2'!B1020 -> 0 | N2: =M2/1000 -> 0 | O2: =M2/presupuesto ->  | P2: =P9 -> 0 | Q2: =M2/P2 ->  | T2: =ROUNDUP((N2/0.3*1.4),0) -> 0 | U2: ='Calculos 1'!C251 -> 0 | V2: =ROUNDUP((U2/1000/0.3*1.4),0) -> 0
A3: 1.2 | B3: =VLOOKUP('Calculos 2'!A3,'Huella Completa'!A17:G703,3,FALSE)*(IF(VLOOKUP('Calculos 2'!A3,'Huella Completa'!A17:G703,4,FALSE)="Gasolina",Gasolina,IF(VLOOKUP('Calculos 2'!A3,'Huella Completa'!A17:G703,4,FALSE)="Diesel",Diesel,IF(VLOOKUP('Calculos 2'!A3,'Huella Completa'!A17:G703,4,FALSE)="GLP",GLP,0)))) -> 0 | E3: Hospedaje | F3: =VLOOKUP("3.0",A:C,3,FALSE)+VLOOKUP("6.0",A:C,3,FALSE) -> 0 | G3: =F3/1000 -> 0 | I3: Producción | J3: =VLOOKUP("4.0",A:C,3,FALSE)+VLOOKUP("5.0",A:C,3,FALSE)+VLOOKUP("6.0",A:C,3,FALSE)+VLOOKUP("7.0",A:C,3,FALSE)+VLOOKUP("8.0",A:C,3,FALSE)+VLOOKUP("9.0",A:C,3,FALSE)+_xlfn.AGGREGATE(9,6,emi_06.01,emi_05.03)+VLOOKUP("13.0",A:C,3,FALSE) -> 0 | K3: =J3/1000 -> 0
A4: 1.3 | B4: =VLOOKUP('Calculos 2'!A4,'Huella Completa'!A18:G704,3,FALSE)*(IF(VLOOKUP('Calculos 2'!A4,'Huella Completa'!A18:G704,4,FALSE)="Gasolina",Gasolina,IF(VLOOKUP('Calculos 2'!A4,'Huella Completa'!A18:G704,4,FALSE)="Diesel",Diesel,IF(VLOOKUP('Calculos 2'!A4,'Huella Completa'!A18:G704,4,FALSE)="GLP",GLP,0)))) -> 0 | E4: Electricidad generada y consumida | F4: =VLOOKUP("8.0",A:C,3,FALSE)+VLOOKUP("9.0",A:C,3,FALSE) -> 0 | G4: 0 | I4: Postproducción | J4: =VLOOKUP("14.0",A:C,3,FALSE) -> 0 | K4: 0
A5: 1.4 | B5: =VLOOKUP('Calculos 2'!A5,'Huella Completa'!A19:G705,3,FALSE)*(IF(VLOOKUP('Calculos 2'!A5,'Huella Completa'!A19:G705,4,FALSE)="Gasolina",Gasolina,IF(VLOOKUP('Calculos 2'!A5,'Huella Completa'!A19:G705,4,FALSE)="Diesel",Diesel,IF(VLOOKUP('Calculos 2'!A5,'Huella Completa'!A19:G705,4,FALSE)="GLP",GLP,0)))) -> 0 | E5: Catering | F5: =VLOOKUP("7.0",A:C,3,FALSE) -> 0 | G5: 0 | O5: ='Huella Completa'!C9 -> Nº de días de trabajo | P5: ='Huella Completa'!D9 -> Nº de personas | Q5: ='Huella Completa'!E9 -> Presupuesto en €
A6: 1.5 | B6: =VLOOKUP('Calculos 2'!A6,'Huella Completa'!A20:G706,3,FALSE)*(IF(VLOOKUP('Calculos 2'!A6,'Huella Completa'!A20:G706,4,FALSE)="Gasolina",Gasolina,IF(VLOOKUP('Calculos 2'!A6,'Huella Completa'!A20:G706,4,FALSE)="Diesel",Diesel,IF(VLOOKUP('Calculos 2'!A6,'Huella Completa'!A20:G706,4,FALSE)="GLP",GLP,0)))) -> 0 | E6: Escenografía | F6: =_xlfn.AGGREGATE(9,6,emi_04.01,emi_04.02,emi_04.03) -> 0 | G6: 0 | N6: ='Huella Completa'!B10 -> Preproducción | O6: ='Huella Completa'!C10 -> 0 | P6: ='Huella Completa'!D10 -> 0 | Q6: ='Huella Completa'!E10 -> 0 | R6: =O6*P6 -> 0 | S6: =$Q$2*R6 ->  | T6: =$O$2*Q6 -> 
A7: 1.6 | B7: =VLOOKUP('Calculos 2'!A7,'Huella Completa'!A21:G707,3,FALSE)*(IF(VLOOKUP('Calculos 2'!A7,'Huella Completa'!A21:G707,4,FALSE)="Gasolina",Gasolina,IF(VLOOKUP('Calculos 2'!A7,'Huella Completa'!A21:G707,4,FALSE)="Diesel",Diesel,IF(VLOOKUP('Calculos 2'!A7,'Huella Completa'!A21:G707,4,FALSE)="GLP",GLP,0)))) -> 0 | E7: Adquisición y alquiler de maquinaría y elementos para el rodaje | F7: =_xlfn.AGGREGATE(9,6,emi_06.01,emi_05.03) -> 0 | G7: 0 | N7: ='Huella Completa'!B11 -> Producción | O7: ='Huella Completa'!C11 -> 0 | P7: ='Huella Completa'!D11 -> 0 | Q7: ='Huella Completa'!E11 -> 0 | R7: =O7*P7 -> 0 | S7: =$Q$2*R7 ->  | T7: =$O$2*Q7 -> 
A8: 1.7 | B8: =VLOOKUP('Calculos 2'!A8,'Huella Completa'!A23:G708,3,FALSE)*(IF(VLOOKUP('Calculos 2'!A8,'Huella Completa'!A23:G708,4,FALSE)="Gasolina",Gasolina,IF(VLOOKUP('Calculos 2'!A8,'Huella Completa'!A23:G708,4,FALSE)="Diesel",Diesel,IF(VLOOKUP('Calculos 2'!A8,'Huella Completa'!A23:G708,4,FALSE)="GLP",GLP,0)))) -> 0 | N8: ='Huella Completa'!B12 -> Postproducción | O8: ='Huella Completa'!C12 -> 0 | P8: ='Huella Completa'!D12 -> 0 | Q8: ='Huella Completa'!E12 -> 0 | R8: 0
A9: 1.8 | B9: =VLOOKUP('Calculos 2'!A9,'Huella Completa'!A24:G709,3,FALSE)*(IF(VLOOKUP('Calculos 2'!A9,'Huella Completa'!A24:G709,4,FALSE)="Gasolina",Gasolina,IF(VLOOKUP('Calculos 2'!A9,'Huella Completa'!A24:G709,4,FALSE)="Diesel",Diesel,IF(VLOOKUP('Calculos 2'!A9,'Huella Completa'!A24:G709,4,FALSE)="GLP",GLP,0)))) -> 0 | I9: emi_04.01 | J9: Decorados y escenarios | P9: =O6*P6+O7*P7+O8*P8 -> 0 | R9: TOTAL | S9: =SUM(S6:S8) ->  | T9: =SUM(T6:T8) -> 
A10: 1.9 | B10: =VLOOKUP('Calculos 2'!A10,'Huella Completa'!A25:G710,3,FALSE)*(IF(VLOOKUP('Calculos 2'!A10,'Huella Completa'!A25:G710,4,FALSE)="Gasolina",Gasolina,IF(VLOOKUP('Calculos 2'!A10,'Huella Completa'!A25:G710,4,FALSE)="Diesel",Diesel,IF(VLOOKUP('Calculos 2'!A10,'Huella Completa'!A25:G710,4,FALSE)="GLP",GLP,0)))) -> 0 | I10: emi_04.02 | J10: Ambientación
A11: 1.10 | B11: =VLOOKUP('Calculos 2'!A11,'Huella Completa'!A26:G711,3,FALSE)*(IF(VLOOKUP('Calculos 2'!A11,'Huella Completa'!A26:G711,4,FALSE)="Gasolina",Gasolina,IF(VLOOKUP('Calculos 2'!A11,'Huella Completa'!A26:G711,4,FALSE)="Diesel",Diesel,IF(VLOOKUP('Calculos 2'!A11,'Huella Completa'!A26:G711,4,FALSE)="GLP",GLP,0)))) -> 0 | I11: emi_04.03 | J11: Vestuario
A12: 1.11 | B12: =VLOOKUP('Calculos 2'!A12,'Huella Completa'!A34:G712,3,FALSE)*(IF(VLOOKUP('Calculos 2'!A12,'Huella Completa'!A34:G712,4,FALSE)="Gasolina",Gasolina,IF(VLOOKUP('Calculos 2'!A12,'Huella Completa'!A34:G712,4,FALSE)="Diesel",Diesel,IF(VLOOKUP('Calculos 2'!A12,'Huella Completa'!A34:G712,4,FALSE)="GLP",GLP,0)))) ->  | I12: emi_05.03 | J12: Varios producción
A13: 1.12 | B13: =VLOOKUP('Calculos 2'!A13,'Huella Completa'!A35:G713,3,FALSE)*(IF(VLOOKUP('Calculos 2'!A13,'Huella Completa'!A35:G713,4,FALSE)="Gasolina",Gasolina,IF(VLOOKUP('Calculos 2'!A13,'Huella Completa'!A35:G713,4,FALSE)="Diesel",Diesel,IF(VLOOKUP('Calculos 2'!A13,'Huella Completa'!A35:G713,4,FALSE)="GLP",GLP,0)))) ->  | I13: emi_06.01 | J13: Adquisición de alquiler de maquinaria y elementos de rodaje
A14: 1.13 | B14: =VLOOKUP('Calculos 2'!A14,'Huella Completa'!A36:G714,3,FALSE)*(IF(VLOOKUP('Calculos 2'!A14,'Huella Completa'!A36:G714,4,FALSE)="Gasolina",Gasolina,IF(VLOOKUP('Calculos 2'!A14,'Huella Completa'!A36:G714,4,FALSE)="Diesel",Diesel,IF(VLOOKUP('Calculos 2'!A14,'Huella Completa'!A36:G714,4,FALSE)="GLP",GLP,0)))) -> 
A15: 1.14 | B15: =VLOOKUP('Calculos 2'!A15,'Huella Completa'!A37:G715,3,FALSE)*(IF(VLOOKUP('Calculos 2'!A15,'Huella Completa'!A37:G715,4,FALSE)="Gasolina",Gasolina,IF(VLOOKUP('Calculos 2'!A15,'Huella Completa'!A37:G715,4,FALSE)="Diesel",Diesel,IF(VLOOKUP('Calculos 2'!A15,'Huella Completa'!A37:G715,4,FALSE)="GLP",GLP,0)))) ->  | E15: RECOMENDACIONES
A16: 1.15 | B16: =VLOOKUP('Calculos 2'!A16,'Huella Completa'!A38:G716,3,FALSE)*(IF(VLOOKUP('Calculos 2'!A16,'Huella Completa'!A38:G716,4,FALSE)="Gasolina",Gasolina,IF(VLOOKUP('Calculos 2'!A16,'Huella Completa'!A38:G716,4,FALSE)="Diesel",Diesel,IF(VLOOKUP('Calculos 2'!A16,'Huella Completa'!A38:G716,4,FALSE)="GLP",GLP,0)))) ->  | E16: Preproducción
A17: 1.16 | B17: =VLOOKUP('Calculos 2'!A17,'Huella Completa'!A39:G717,3,FALSE)*(IF(VLOOKUP('Calculos 2'!A17,'Huella Completa'!A39:G717,4,FALSE)="Gasolina",Gasolina,IF(VLOOKUP('Calculos 2'!A17,'Huella Completa'!A39:G717,4,FALSE)="Diesel",Diesel,IF(VLOOKUP('Calculos 2'!A17,'Huella Completa'!A39:G717,4,FALSE)="GLP",GLP,0)))) ->  | E17: =IF(pre_vehiculo="siempre","¡Genial! Has usado vehículo eléctrico o híbrido para el transporte en la fase de preproducción.",IF(pre_vehiculo="normalmente","¡Muy bien! has intentado usar el vehículo eléctrico o híbrido siempre que has podido en la preproducción sigue así.",IF(pre_vehiculo="a veces","Un primer paso siempre es importante. Sigue intentando usar el vehículo eléctrico o híbrido en tus viajes.",IF(pre_vehiculo="nunca","Plantéate usar el vehículo eléctrico o híbrido en tus viajes de la preproducción. Con esta decisión puedes bajar significativamente la huella de carbono."," ")))) -> 
A18: 1.17 | B18: =VLOOKUP('Calculos 2'!A18,'Huella Completa'!A40:G718,3,FALSE)*(IF(VLOOKUP('Calculos 2'!A18,'Huella Completa'!A40:G718,4,FALSE)="Gasolina",Gasolina,IF(VLOOKUP('Calculos 2'!A18,'Huella Completa'!A40:G718,4,FALSE)="Diesel",Diesel,IF(VLOOKUP('Calculos 2'!A18,'Huella Completa'!A40:G718,4,FALSE)="GLP",GLP,0)))) ->  | E18: ¡Recuerda! para los transportes en bus, tren o avión el tren es el transporte con menor huella de carbono, selecciónalo siempre que sea posible.
A19: 1.18 | B19: =VLOOKUP('Calculos 2'!A19,'Huella Completa'!A41:G719,3,FALSE)*(IF(VLOOKUP('Calculos 2'!A19,'Huella Completa'!A41:G719,4,FALSE)="Gasolina",Gasolina,IF(VLOOKUP('Calculos 2'!A19,'Huella Completa'!A41:G719,4,FALSE)="Diesel",Diesel,IF(VLOOKUP('Calculos 2'!A19,'Huella Completa'!A41:G719,4,FALSE)="GLP",GLP,0)))) ->  | E19: =IF(Elec_hotel1="siempre","¡Genial! Has elegido contratar hoteles y hospedaje con certificado de sostenibilidad.",IF(Elec_hotel1="normalmente","¡Muy bien! has intentado contratar hoteles certificado de sostenibilidad.",IF(Elec_hotel1="a veces","Un primer paso siempre es importante. Sigue intentando contratar alojamientos con certificado de sostenibilidad para mejorar tu huella de carbono.",IF(Elec_hotel1="nunca","Plantéate contratar alojamientos con certificado de sostenibilidad. Con esta decisión puedes bajar significativamente la huella de carbono."," ")))) -> 
A20: 1.19 | B20: =VLOOKUP('Calculos 2'!A20,'Huella Completa'!A42:G720,3,FALSE)*(IF(VLOOKUP('Calculos 2'!A20,'Huella Completa'!A42:G720,4,FALSE)="Gasolina",Gasolina,IF(VLOOKUP('Calculos 2'!A20,'Huella Completa'!A42:G720,4,FALSE)="Diesel",Diesel,IF(VLOOKUP('Calculos 2'!A20,'Huella Completa'!A42:G720,4,FALSE)="GLP",GLP,0)))) ->  | E20: Producción
A21: 1.20 | B21: =VLOOKUP('Calculos 2'!A21,'Huella Completa'!A43:G721,3,FALSE)*(IF(VLOOKUP('Calculos 2'!A21,'Huella Completa'!A43:G721,4,FALSE)="Gasolina",Gasolina,IF(VLOOKUP('Calculos 2'!A21,'Huella Completa'!A43:G721,4,FALSE)="Diesel",Diesel,IF(VLOOKUP('Calculos 2'!A21,'Huella Completa'!A43:G721,4,FALSE)="GLP",GLP,0)))) ->  | E21: =IF(pro_vehiculo="siempre","¡Genial! Has usado vehículo eléctrico o híbrido para el transporte.",IF(pro_vehiculo="normalmente","¡Muy bien! has intentado usar el vehículo eléctrico o híbrido siempre que has podido, sigue así.",IF(pro_vehiculo="a veces","Un primer paso siempre es importante. Sigue intentando usar el vehículo eléctrico o híbrido en tus viajes.",IF(pro_vehiculo="nunca","Plantéate usar el vehículo eléctrico o híbrido en tus viajes. Con esta decisión puedes bajar significativamente la huella de carbono."," ")))) -> 
A22: 1.21 | B22: =VLOOKUP('Calculos 2'!A22,'Huella Completa'!A44:G722,3,FALSE)*(IF(VLOOKUP('Calculos 2'!A22,'Huella Completa'!A44:G722,4,FALSE)="Gasolina",Gasolina,IF(VLOOKUP('Calculos 2'!A22,'Huella Completa'!A44:G722,4,FALSE)="Diesel",Diesel,IF(VLOOKUP('Calculos 2'!A22,'Huella Completa'!A44:G722,4,FALSE)="GLP",GLP,0)))) ->  | E22: ¡Recuerda! para los transportes en bus, tren o avión el tren es el transporte con menor huella de carbono, selecciónalo siempre que sea posible.
A23: 1.22 | B23: =VLOOKUP('Calculos 2'!A23,'Huella Completa'!A45:G723,3,FALSE)*(IF(VLOOKUP('Calculos 2'!A23,'Huella Completa'!A45:G723,4,FALSE)="Gasolina",Gasolina,IF(VLOOKUP('Calculos 2'!A23,'Huella Completa'!A45:G723,4,FALSE)="Diesel",Diesel,IF(VLOOKUP('Calculos 2'!A23,'Huella Completa'!A45:G723,4,FALSE)="GLP",GLP,0)))) ->  | E23: =IF(pro_distancia="siempre","¡Estupendo! Tener el alojamiento cerca del set de rodaje hace reducir mucho la huella de carbono por transporte.",IF(pro_distancia="normalmente","Muy bien, sigue buscando alojamientos cercanos al set de rodaje eso hace tu huella de carbono menor.",IF(pro_distancia="a veces","A veces no es fácil encontrar el alojamiento adecuado cerca del set de rodaje sigue intentándolo para tus próximos rodajes.",IF(pro_distancia="nunca","Te proponemos que intentes buscar alojamientos lo más cercanos posible al set de rodaje para reducir tu huella de carbono."," ")))) -> 
A24: 1.23 | B24: =VLOOKUP('Calculos 2'!A24,'Huella Completa'!A46:G724,3,FALSE)*(IF(VLOOKUP('Calculos 2'!A24,'Huella Completa'!A46:G724,4,FALSE)="Gasolina",Gasolina,IF(VLOOKUP('Calculos 2'!A24,'Huella Completa'!A46:G724,4,FALSE)="Diesel",Diesel,IF(VLOOKUP('Calculos 2'!A24,'Huella Completa'!A46:G724,4,FALSE)="GLP",GLP,0)))) ->  | E24: =IF(Elec_hotel2="siempre","¡Genial! Has elegido contratar hoteles y hospedaje con certificado de sostenibilidad.",IF(Elec_hotel2="normalmente","¡Muy bien! has intentado contratar hoteles certificado de sostenibilidad.",IF(Elec_hotel2="a veces","Un primer paso siempre es importante. Sigue intentando contratar alojamientos con certificado de sostenibilidad para mejorar tu huella de carbono.",IF(Elec_hotel2="nunca","Plantéate contratar alojamientos con certificado de sostenibilidad. Con esta decisión puedes bajar significativamente la huella de carbono."," ")))) -> 
A25: 1.24 | B25: =VLOOKUP('Calculos 2'!A25,'Huella Completa'!A47:G725,3,FALSE)*(IF(VLOOKUP('Calculos 2'!A25,'Huella Completa'!A47:G725,4,FALSE)="Gasolina",Gasolina,IF(VLOOKUP('Calculos 2'!A25,'Huella Completa'!A47:G725,4,FALSE)="Diesel",Diesel,IF(VLOOKUP('Calculos 2'!A25,'Huella Completa'!A47:G725,4,FALSE)="GLP",GLP,0)))) ->  | E25: =IF(pro_cate_veg="siempre","Muy bien, dar siempre una opción vegetariana en el catering reduce tu huella de carbono.",IF(pro_cate_veg="normalmente","Sigue trabajando para dar siempre una opción de catering vegetariano en tus producciones y reducirás tu huella de carbono.",IF(pro_cate_veg="a veces","Sigue intentándolo, dar opción vegetariana en el catering reduce tu huella de carbono.",IF(pro_cate_veg="nunca","Te sugerimos introducir la opción de catering vegetariano en la producción, es una forma saludable de reducir tu huella de carbono."," ")))) -> 
A26: 1.25 | B26: =VLOOKUP('Calculos 2'!A26,'Huella Completa'!A48:G726,3,FALSE)*(IF(VLOOKUP('Calculos 2'!A26,'Huella Completa'!A48:G726,4,FALSE)="Gasolina",Gasolina,IF(VLOOKUP('Calculos 2'!A26,'Huella Completa'!A48:G726,4,FALSE)="Diesel",Diesel,IF(VLOOKUP('Calculos 2'!A26,'Huella Completa'!A48:G726,4,FALSE)="GLP",GLP,0)))) ->  | E26: =IF(pro_cate_loc="siempre","¡Fenomenal! contratar siempre un catering que utilice productos locales y de cercanía es la mejor opción para reducir tu huella de carbono.",IF(pro_cate_loc="normalmente","Sigue trabajando para contratar siempre catering que utilice productos locales y de cercanía es la mejor opción para reducir tu huella de carbono.",IF(pro_cate_loc="a veces","Sigue intentándolo, contratar siempre catering que utilice productos locales y de cercanía es la mejor opción para reducir tu huella de carbono.",IF(pro_cate_loc="nunca","Te sugerimos contratar siempre catering que utilice productos locales y de cercanía es la mejor opción para reducir tu huella de carbono."," ")))) -> 
A27: 1.26 | B27: =VLOOKUP('Calculos 2'!A27,'Huella Completa'!A49:G727,3,FALSE)*(IF(VLOOKUP('Calculos 2'!A27,'Huella Completa'!A49:G727,4,FALSE)="Gasolina",Gasolina,IF(VLOOKUP('Calculos 2'!A27,'Huella Completa'!A49:G727,4,FALSE)="Diesel",Diesel,IF(VLOOKUP('Calculos 2'!A27,'Huella Completa'!A49:G727,4,FALSE)="GLP",GLP,0)))) ->  | E27: =IF(pro_gen_ele="siempre","¡Estupendo! la generación de electricidad provoca emisiones directas a la atmósfera, si utilizas sistemas más sostenibles tu huella se reduce directamente.",IF(pro_gen_ele="normalmente","Muy bien, la generación de electricidad provoca emisiones directas a la atmósfera, si utilizas sistemas más sostenibles tu huella se reduce directamente.",IF(pro_gen_ele="a veces","Sigue intentándolo, la generación de electricidad provoca emisiones directas a la atmósfera, si utilizas sistemas más sostenibles tu huella se reduce directamente.",IF(pro_gen_ele="nunca","Como consejo utiliza siempre que puedas grupos electrógenos más sostenibles. La generación de electricidad provoca emisiones directas a la atmósfera, si utilizas sistemas más sostenibles tu huella se reduce directamente."," ")))) -> 
A28: 1.27 | B28: =VLOOKUP('Calculos 2'!A28,'Huella Completa'!A50:G728,3,FALSE)*(IF(VLOOKUP('Calculos 2'!A28,'Huella Completa'!A50:G728,4,FALSE)="Gasolina",Gasolina,IF(VLOOKUP('Calculos 2'!A28,'Huella Completa'!A50:G728,4,FALSE)="Diesel",Diesel,IF(VLOOKUP('Calculos 2'!A28,'Huella Completa'!A50:G728,4,FALSE)="GLP",GLP,0)))) ->  | E28: Contratando proveedores eléctricos de energía renovables te garantizas que todo tu consumo eléctrico de la red es libre de emisiones de gases de efecto invernadero.
A29: 1.28 | B29: =VLOOKUP('Calculos 2'!A29,'Huella Completa'!A51:G729,3,FALSE)*(IF(VLOOKUP('Calculos 2'!A29,'Huella Completa'!A51:G729,4,FALSE)="Gasolina",Gasolina,IF(VLOOKUP('Calculos 2'!A29,'Huella Completa'!A51:G729,4,FALSE)="Diesel",Diesel,IF(VLOOKUP('Calculos 2'!A29,'Huella Completa'!A51:G729,4,FALSE)="GLP",GLP,0)))) ->  | E29: =IF(pro_ilu_efi="siempre","¡Genial! Una iluminación eficiente puede suponer el descenso de hasta el 70% de tu huella de carbono producida por la iluminación.",IF(pro_ilu_efi="normalmente","¡Estupendo! Una iluminación eficiente puede suponer el descenso de hasta el 70% de tu huella de carbono producida por la iluminación.",IF(pro_ilu_efi="a veces","Sigue intentado utilizar iluminación eficiente. Una iluminación eficiente puede suponer el descenso de hasta el 70% de tu huella de carbono producida por la iluminación.",IF(pro_ilu_efi="nunca","Te proponemos que intentes utilizar una iluminación más eficiente. Una iluminación eficiente puede suponer el descenso de hasta el 70% de tu huella de carbono producida por la iluminación."," ")))) -> 
A30: 1.29 | B30: =VLOOKUP('Calculos 2'!A30,'Huella Completa'!A52:G730,3,FALSE)*(IF(VLOOKUP('Calculos 2'!A30,'Huella Completa'!A52:G730,4,FALSE)="Gasolina",Gasolina,IF(VLOOKUP('Calculos 2'!A30,'Huella Completa'!A52:G730,4,FALSE)="Diesel",Diesel,IF(VLOOKUP('Calculos 2'!A30,'Huella Completa'!A52:G730,4,FALSE)="GLP",GLP,0)))) ->  | E30: Priorizar en el alquiler en lugar de la compra de decorados, vestuario, etc siempre repercute en la reducción de la huella de carbono de la producción.
A31: 1.30 | B31: =VLOOKUP('Calculos 2'!A31,'Huella Completa'!A53:G731,3,FALSE)*(IF(VLOOKUP('Calculos 2'!A31,'Huella Completa'!A53:G731,4,FALSE)="Gasolina",Gasolina,IF(VLOOKUP('Calculos 2'!A31,'Huella Completa'!A53:G731,4,FALSE)="Diesel",Diesel,IF(VLOOKUP('Calculos 2'!A31,'Huella Completa'!A53:G731,4,FALSE)="GLP",GLP,0)))) ->  | E31: En la gestión de residuos hay una máxima reducir, reutilizar y reciclar. Está máxima además va por orden: reducir el número de productos que se comprar y que luego se desechan. Reutilizar siempre que sea posible. En ultimo caso todos nuestros residuos deben reciclarse. Con esta regla además de optimizar los recursos estamos reduciendo la huella de carbono de la producción audiovisual.
A32: 1.0 | C32: =_xlfn.AGGREGATE(9,6,B2:B32) -> 0
A34: 2.1 | B34: =VLOOKUP('Calculos 2'!A34,'Huella Completa'!A16:G702,4,FALSE)*VLOOKUP('Calculos 2'!A34,'Huella Completa'!A16:G702,5,FALSE)*(IF(VLOOKUP('Calculos 2'!A34,'Huella Completa'!A16:G702,3,FALSE)="Tren",Tren,IF(VLOOKUP('Calculos 2'!A34,'Huella Completa'!A16:G702,3,FALSE)="Autobús",Autobús,IF(VLOOKUP('Calculos 2'!A34,'Huella Completa'!A16:G702,3,FALSE)="Avión",Avión,0)))) -> 0 | E34: =IF(pro_con_agua="siempre","¡Genial! El agua es un recurso escaso en muchas localizaciones reutilizarla te hace tener menor huella hídrica y de carbono.",IF(pro_con_agua="normalmente","¡Estupendo! El agua es un recurso escaso en muchas localizaciones reutilizarla te hace tener menor huella hídrica y de carbono.",IF(pro_con_agua="a veces","Sigue intentado reutilizar el agua. El agua es un recurso escaso en muchas localizaciones.",IF(pro_con_agua="nunca","Te proponemos que intentes reutilizar el agua gastada en las localizaciones."," ")))) -> 
A35: 2.2 | B35: =VLOOKUP('Calculos 2'!A35,'Huella Completa'!A17:G703,4,FALSE)*VLOOKUP('Calculos 2'!A35,'Huella Completa'!A17:G703,5,FALSE)*(IF(VLOOKUP('Calculos 2'!A35,'Huella Completa'!A17:G703,3,FALSE)="Tren",Tren,IF(VLOOKUP('Calculos 2'!A35,'Huella Completa'!A17:G703,3,FALSE)="Autobús",Autobús,IF(VLOOKUP('Calculos 2'!A35,'Huella Completa'!A17:G703,3,FALSE)="Avión",Avión,0)))) -> 0
A36: 2.3 | B36: =VLOOKUP('Calculos 2'!A36,'Huella Completa'!A18:G704,4,FALSE)*VLOOKUP('Calculos 2'!A36,'Huella Completa'!A18:G704,5,FALSE)*(IF(VLOOKUP('Calculos 2'!A36,'Huella Completa'!A18:G704,3,FALSE)="Tren",Tren,IF(VLOOKUP('Calculos 2'!A36,'Huella Completa'!A18:G704,3,FALSE)="Autobús",Autobús,IF(VLOOKUP('Calculos 2'!A36,'Huella Completa'!A18:G704,3,FALSE)="Avión",Avión,0)))) -> 0
A37: 2.4 | B37: =VLOOKUP('Calculos 2'!A37,'Huella Completa'!A19:G705,4,FALSE)*VLOOKUP('Calculos 2'!A37,'Huella Completa'!A19:G705,5,FALSE)*(IF(VLOOKUP('Calculos 2'!A37,'Huella Completa'!A19:G705,3,FALSE)="Tren",Tren,IF(VLOOKUP('Calculos 2'!A37,'Huella Completa'!A19:G705,3,FALSE)="Autobús",Autobús,IF(VLOOKUP('Calculos 2'!A37,'Huella Completa'!A19:G705,3,FALSE)="Avión",Avión,0)))) -> 0
A38: 2.5 | B38: =VLOOKUP('Calculos 2'!A38,'Huella Completa'!A20:G706,4,FALSE)*VLOOKUP('Calculos 2'!A38,'Huella Completa'!A20:G706,5,FALSE)*(IF(VLOOKUP('Calculos 2'!A38,'Huella Completa'!A20:G706,3,FALSE)="Tren",Tren,IF(VLOOKUP('Calculos 2'!A38,'Huella Completa'!A20:G706,3,FALSE)="Autobús",Autobús,IF(VLOOKUP('Calculos 2'!A38,'Huella Completa'!A20:G706,3,FALSE)="Avión",Avión,0)))) -> 0
A39: 2.6 | B39: =VLOOKUP('Calculos 2'!A39,'Huella Completa'!A21:G707,4,FALSE)*VLOOKUP('Calculos 2'!A39,'Huella Completa'!A21:G707,5,FALSE)*(IF(VLOOKUP('Calculos 2'!A39,'Huella Completa'!A21:G707,3,FALSE)="Tren",Tren,IF(VLOOKUP('Calculos 2'!A39,'Huella Completa'!A21:G707,3,FALSE)="Autobús",Autobús,IF(VLOOKUP('Calculos 2'!A39,'Huella Completa'!A21:G707,3,FALSE)="Avión",Avión,0)))) -> 0
A40: 2.7 | B40: =VLOOKUP('Calculos 2'!A40,'Huella Completa'!A23:G708,4,FALSE)*VLOOKUP('Calculos 2'!A40,'Huella Completa'!A23:G708,5,FALSE)*(IF(VLOOKUP('Calculos 2'!A40,'Huella Completa'!A23:G708,3,FALSE)="Tren",Tren,IF(VLOOKUP('Calculos 2'!A40,'Huella Completa'!A23:G708,3,FALSE)="Autobús",Autobús,IF(VLOOKUP('Calculos 2'!A40,'Huella Completa'!A23:G708,3,FALSE)="Avión",Avión,0)))) -> 0
A41: 2.8 | B41: =VLOOKUP('Calculos 2'!A41,'Huella Completa'!A24:G709,4,FALSE)*VLOOKUP('Calculos 2'!A41,'Huella Completa'!A24:G709,5,FALSE)*(IF(VLOOKUP('Calculos 2'!A41,'Huella Completa'!A24:G709,3,FALSE)="Tren",Tren,IF(VLOOKUP('Calculos 2'!A41,'Huella Completa'!A24:G709,3,FALSE)="Autobús",Autobús,IF(VLOOKUP('Calculos 2'!A41,'Huella Completa'!A24:G709,3,FALSE)="Avión",Avión,0)))) -> 0
A42: 2.9 | B42: =VLOOKUP('Calculos 2'!A42,'Huella Completa'!A25:G710,4,FALSE)*VLOOKUP('Calculos 2'!A42,'Huella Completa'!A25:G710,5,FALSE)*(IF(VLOOKUP('Calculos 2'!A42,'Huella Completa'!A25:G710,3,FALSE)="Tren",Tren,IF(VLOOKUP('Calculos 2'!A42,'Huella Completa'!A25:G710,3,FALSE)="Autobús",Autobús,IF(VLOOKUP('Calculos 2'!A42,'Huella Completa'!A25:G710,3,FALSE)="Avión",Avión,0)))) -> 0
A43: 2.10 | B43: =VLOOKUP('Calculos 2'!A43,'Huella Completa'!A26:G711,4,FALSE)*VLOOKUP('Calculos 2'!A43,'Huella Completa'!A26:G711,5,FALSE)*(IF(VLOOKUP('Calculos 2'!A43,'Huella Completa'!A26:G711,3,FALSE)="Tren",Tren,IF(VLOOKUP('Calculos 2'!A43,'Huella Completa'!A26:G711,3,FALSE)="Autobús",Autobús,IF(VLOOKUP('Calculos 2'!A43,'Huella Completa'!A26:G711,3,FALSE)="Avión",Avión,0)))) -> 0
A44: 2.11 | B44: =VLOOKUP('Calculos 2'!A44,'Huella Completa'!A34:G712,4,FALSE)*VLOOKUP('Calculos 2'!A44,'Huella Completa'!A34:G712,5,FALSE)*(IF(VLOOKUP('Calculos 2'!A44,'Huella Completa'!A34:G712,3,FALSE)="Tren",Tren,IF(VLOOKUP('Calculos 2'!A44,'Huella Completa'!A34:G712,3,FALSE)="Autobús",Autobús,IF(VLOOKUP('Calculos 2'!A44,'Huella Completa'!A34:G712,3,FALSE)="Avión",Avión,0)))) -> 
A45: 2.12 | B45: =VLOOKUP('Calculos 2'!A45,'Huella Completa'!A35:G713,4,FALSE)*VLOOKUP('Calculos 2'!A45,'Huella Completa'!A35:G713,5,FALSE)*(IF(VLOOKUP('Calculos 2'!A45,'Huella Completa'!A35:G713,3,FALSE)="Tren",Tren,IF(VLOOKUP('Calculos 2'!A45,'Huella Completa'!A35:G713,3,FALSE)="Autobús",Autobús,IF(VLOOKUP('Calculos 2'!A45,'Huella Completa'!A35:G713,3,FALSE)="Avión",Avión,0)))) -> 
A46: 2.13 | B46: =VLOOKUP('Calculos 2'!A46,'Huella Completa'!A36:G714,4,FALSE)*VLOOKUP('Calculos 2'!A46,'Huella Completa'!A36:G714,5,FALSE)*(IF(VLOOKUP('Calculos 2'!A46,'Huella Completa'!A36:G714,3,FALSE)="Tren",Tren,IF(VLOOKUP('Calculos 2'!A46,'Huella Completa'!A36:G714,3,FALSE)="Autobús",Autobús,IF(VLOOKUP('Calculos 2'!A46,'Huella Completa'!A36:G714,3,FALSE)="Avión",Avión,0)))) -> 
A47: 2.14 | B47: =VLOOKUP('Calculos 2'!A47,'Huella Completa'!A37:G715,4,FALSE)*VLOOKUP('Calculos 2'!A47,'Huella Completa'!A37:G715,5,FALSE)*(IF(VLOOKUP('Calculos 2'!A47,'Huella Completa'!A37:G715,3,FALSE)="Tren",Tren,IF(VLOOKUP('Calculos 2'!A47,'Huella Completa'!A37:G715,3,FALSE)="Autobús",Autobús,IF(VLOOKUP('Calculos 2'!A47,'Huella Completa'!A37:G715,3,FALSE)="Avión",Avión,0)))) -> 
A48: 2.15 | B48: =VLOOKUP('Calculos 2'!A48,'Huella Completa'!A38:G716,4,FALSE)*VLOOKUP('Calculos 2'!A48,'Huella Completa'!A38:G716,5,FALSE)*(IF(VLOOKUP('Calculos 2'!A48,'Huella Completa'!A38:G716,3,FALSE)="Tren",Tren,IF(VLOOKUP('Calculos 2'!A48,'Huella Completa'!A38:G716,3,FALSE)="Autobús",Autobús,IF(VLOOKUP('Calculos 2'!A48,'Huella Completa'!A38:G716,3,FALSE)="Avión",Avión,0)))) -> 
A49: 2.16 | B49: =VLOOKUP('Calculos 2'!A49,'Huella Completa'!A39:G717,4,FALSE)*VLOOKUP('Calculos 2'!A49,'Huella Completa'!A39:G717,5,FALSE)*(IF(VLOOKUP('Calculos 2'!A49,'Huella Completa'!A39:G717,3,FALSE)="Tren",Tren,IF(VLOOKUP('Calculos 2'!A49,'Huella Completa'!A39:G717,3,FALSE)="Autobús",Autobús,IF(VLOOKUP('Calculos 2'!A49,'Huella Completa'!A39:G717,3,FALSE)="Avión",Avión,0)))) -> 
A50: 2.17 | B50: =VLOOKUP('Calculos 2'!A50,'Huella Completa'!A40:G718,4,FALSE)*VLOOKUP('Calculos 2'!A50,'Huella Completa'!A40:G718,5,FALSE)*(IF(VLOOKUP('Calculos 2'!A50,'Huella Completa'!A40:G718,3,FALSE)="Tren",Tren,IF(VLOOKUP('Calculos 2'!A50,'Huella Completa'!A40:G718,3,FALSE)="Autobús",Autobús,IF(VLOOKUP('Calculos 2'!A50,'Huella Completa'!A40:G718,3,FALSE)="Avión",Avión,0)))) -> 
A51: 2.18 | B51: =VLOOKUP('Calculos 2'!A51,'Huella Completa'!A41:G719,4,FALSE)*VLOOKUP('Calculos 2'!A51,'Huella Completa'!A41:G719,5,FALSE)*(IF(VLOOKUP('Calculos 2'!A51,'Huella Completa'!A41:G719,3,FALSE)="Tren",Tren,IF(VLOOKUP('Calculos 2'!A51,'Huella Completa'!A41:G719,3,FALSE)="Autobús",Autobús,IF(VLOOKUP('Calculos 2'!A51,'Huella Completa'!A41:G719,3,FALSE)="Avión",Avión,0)))) -> 
A52: 2.19 | B52: =VLOOKUP('Calculos 2'!A52,'Huella Completa'!A42:G720,4,FALSE)*VLOOKUP('Calculos 2'!A52,'Huella Completa'!A42:G720,5,FALSE)*(IF(VLOOKUP('Calculos 2'!A52,'Huella Completa'!A42:G720,3,FALSE)="Tren",Tren,IF(VLOOKUP('Calculos 2'!A52,'Huella Completa'!A42:G720,3,FALSE)="Autobús",Autobús,IF(VLOOKUP('Calculos 2'!A52,'Huella Completa'!A42:G720,3,FALSE)="Avión",Avión,0)))) -> 
A53: 2.20 | B53: =VLOOKUP('Calculos 2'!A53,'Huella Completa'!A43:G721,4,FALSE)*VLOOKUP('Calculos 2'!A53,'Huella Completa'!A43:G721,5,FALSE)*(IF(VLOOKUP('Calculos 2'!A53,'Huella Completa'!A43:G721,3,FALSE)="Tren",Tren,IF(VLOOKUP('Calculos 2'!A53,'Huella Completa'!A43:G721,3,FALSE)="Autobús",Autobús,IF(VLOOKUP('Calculos 2'!A53,'Huella Completa'!A43:G721,3,FALSE)="Avión",Avión,0)))) -> 
A54: 2.21 | B54: =VLOOKUP('Calculos 2'!A54,'Huella Completa'!A44:G722,4,FALSE)*VLOOKUP('Calculos 2'!A54,'Huella Completa'!A44:G722,5,FALSE)*(IF(VLOOKUP('Calculos 2'!A54,'Huella Completa'!A44:G722,3,FALSE)="Tren",Tren,IF(VLOOKUP('Calculos 2'!A54,'Huella Completa'!A44:G722,3,FALSE)="Autobús",Autobús,IF(VLOOKUP('Calculos 2'!A54,'Huella Completa'!A44:G722,3,FALSE)="Avión",Avión,0)))) -> 
A55: 2.22 | B55: =VLOOKUP('Calculos 2'!A55,'Huella Completa'!A45:G723,4,FALSE)*VLOOKUP('Calculos 2'!A55,'Huella Completa'!A45:G723,5,FALSE)*(IF(VLOOKUP('Calculos 2'!A55,'Huella Completa'!A45:G723,3,FALSE)="Tren",Tren,IF(VLOOKUP('Calculos 2'!A55,'Huella Completa'!A45:G723,3,FALSE)="Autobús",Autobús,IF(VLOOKUP('Calculos 2'!A55,'Huella Completa'!A45:G723,3,FALSE)="Avión",Avión,0)))) -> 
A56: 2.23 | B56: =VLOOKUP('Calculos 2'!A56,'Huella Completa'!A46:G724,4,FALSE)*VLOOKUP('Calculos 2'!A56,'Huella Completa'!A46:G724,5,FALSE)*(IF(VLOOKUP('Calculos 2'!A56,'Huella Completa'!A46:G724,3,FALSE)="Tren",Tren,IF(VLOOKUP('Calculos 2'!A56,'Huella Completa'!A46:G724,3,FALSE)="Autobús",Autobús,IF(VLOOKUP('Calculos 2'!A56,'Huella Completa'!A46:G724,3,FALSE)="Avión",Avión,0)))) -> 
A57: 2.24 | B57: =VLOOKUP('Calculos 2'!A57,'Huella Completa'!A47:G725,4,FALSE)*VLOOKUP('Calculos 2'!A57,'Huella Completa'!A47:G725,5,FALSE)*(IF(VLOOKUP('Calculos 2'!A57,'Huella Completa'!A47:G725,3,FALSE)="Tren",Tren,IF(VLOOKUP('Calculos 2'!A57,'Huella Completa'!A47:G725,3,FALSE)="Autobús",Autobús,IF(VLOOKUP('Calculos 2'!A57,'Huella Completa'!A47:G725,3,FALSE)="Avión",Avión,0)))) -> 
A58: 2.25 | B58: =VLOOKUP('Calculos 2'!A58,'Huella Completa'!A48:G726,4,FALSE)*VLOOKUP('Calculos 2'!A58,'Huella Completa'!A48:G726,5,FALSE)*(IF(VLOOKUP('Calculos 2'!A58,'Huella Completa'!A48:G726,3,FALSE)="Tren",Tren,IF(VLOOKUP('Calculos 2'!A58,'Huella Completa'!A48:G726,3,FALSE)="Autobús",Autobús,IF(VLOOKUP('Calculos 2'!A58,'Huella Completa'!A48:G726,3,FALSE)="Avión",Avión,0)))) -> 
A59: 2.26 | B59: =VLOOKUP('Calculos 2'!A59,'Huella Completa'!A49:G727,4,FALSE)*VLOOKUP('Calculos 2'!A59,'Huella Completa'!A49:G727,5,FALSE)*(IF(VLOOKUP('Calculos 2'!A59,'Huella Completa'!A49:G727,3,FALSE)="Tren",Tren,IF(VLOOKUP('Calculos 2'!A59,'Huella Completa'!A49:G727,3,FALSE)="Autobús",Autobús,IF(VLOOKUP('Calculos 2'!A59,'Huella Completa'!A49:G727,3,FALSE)="Avión",Avión,0)))) -> 
A60: 2.27 | B60: =VLOOKUP('Calculos 2'!A60,'Huella Completa'!A50:G728,4,FALSE)*VLOOKUP('Calculos 2'!A60,'Huella Completa'!A50:G728,5,FALSE)*(IF(VLOOKUP('Calculos 2'!A60,'Huella Completa'!A50:G728,3,FALSE)="Tren",Tren,IF(VLOOKUP('Calculos 2'!A60,'Huella Completa'!A50:G728,3,FALSE)="Autobús",Autobús,IF(VLOOKUP('Calculos 2'!A60,'Huella Completa'!A50:G728,3,FALSE)="Avión",Avión,0)))) -> 
A61: 2.28 | B61: =VLOOKUP('Calculos 2'!A61,'Huella Completa'!A51:G729,4,FALSE)*VLOOKUP('Calculos 2'!A61,'Huella Completa'!A51:G729,5,FALSE)*(IF(VLOOKUP('Calculos 2'!A61,'Huella Completa'!A51:G729,3,FALSE)="Tren",Tren,IF(VLOOKUP('Calculos 2'!A61,'Huella Completa'!A51:G729,3,FALSE)="Autobús",Autobús,IF(VLOOKUP('Calculos 2'!A61,'Huella Completa'!A51:G729,3,FALSE)="Avión",Avión,0)))) -> 
A62: 2.29 | B62: =VLOOKUP('Calculos 2'!A62,'Huella Completa'!A52:G730,4,FALSE)*VLOOKUP('Calculos 2'!A62,'Huella Completa'!A52:G730,5,FALSE)*(IF(VLOOKUP('Calculos 2'!A62,'Huella Completa'!A52:G730,3,FALSE)="Tren",Tren,IF(VLOOKUP('Calculos 2'!A62,'Huella Completa'!A52:G730,3,FALSE)="Autobús",Autobús,IF(VLOOKUP('Calculos 2'!A62,'Huella Completa'!A52:G730,3,FALSE)="Avión",Avión,0)))) -> 
A63: 2.30 | B63: =VLOOKUP('Calculos 2'!A63,'Huella Completa'!A53:G731,4,FALSE)*VLOOKUP('Calculos 2'!A63,'Huella Completa'!A53:G731,5,FALSE)*(IF(VLOOKUP('Calculos 2'!A63,'Huella Completa'!A53:G731,3,FALSE)="Tren",Tren,IF(VLOOKUP('Calculos 2'!A63,'Huella Completa'!A53:G731,3,FALSE)="Autobús",Autobús,IF(VLOOKUP('Calculos 2'!A63,'Huella Completa'!A53:G731,3,FALSE)="Avión",Avión,0)))) -> 
A64: 2.0 | C64: =_xlfn.AGGREGATE(9,6,B34:B63) -> 0
A66: 3.1 | B66: =VLOOKUP('Calculos 2'!A66,'Huella Completa'!A16:G702,4,FALSE)*VLOOKUP('Calculos 2'!A66,'Huella Completa'!A16:G702,4,FALSE)*Hotel*(_xlfn.IFS(Elec_hotel1="siempre",0.6,Elec_hotel1="normalmente",0.75,Elec_hotel1="a veces",0.9,Elec_hotel1="nunca",1)) -> 
A67: 3.2 | B67: =VLOOKUP('Calculos 2'!A67,'Huella Completa'!A17:G703,4,FALSE)*VLOOKUP('Calculos 2'!A67,'Huella Completa'!A17:G703,4,FALSE)*Hotel*(_xlfn.IFS(Elec_hotel1="siempre",0.6,Elec_hotel1="normalmente",0.75,Elec_hotel1="a veces",0.9,Elec_hotel1="nunca",1)) -> 
A68: 3.3 | B68: =VLOOKUP('Calculos 2'!A68,'Huella Completa'!A18:G704,4,FALSE)*VLOOKUP('Calculos 2'!A68,'Huella Completa'!A18:G704,4,FALSE)*Hotel*(_xlfn.IFS(Elec_hotel1="siempre",0.6,Elec_hotel1="normalmente",0.75,Elec_hotel1="a veces",0.9,Elec_hotel1="nunca",1)) -> 
A69: 3.4 | B69: =VLOOKUP('Calculos 2'!A69,'Huella Completa'!A19:G705,4,FALSE)*VLOOKUP('Calculos 2'!A69,'Huella Completa'!A19:G705,4,FALSE)*Hotel*(_xlfn.IFS(Elec_hotel1="siempre",0.6,Elec_hotel1="normalmente",0.75,Elec_hotel1="a veces",0.9,Elec_hotel1="nunca",1)) -> 
A70: 3.5 | B70: =VLOOKUP('Calculos 2'!A70,'Huella Completa'!A20:G706,4,FALSE)*VLOOKUP('Calculos 2'!A70,'Huella Completa'!A20:G706,4,FALSE)*Hotel*(_xlfn.IFS(Elec_hotel1="siempre",0.6,Elec_hotel1="normalmente",0.75,Elec_hotel1="a veces",0.9,Elec_hotel1="nunca",1)) -> 
A71: 3.6 | B71: =VLOOKUP('Calculos 2'!A71,'Huella Completa'!A21:G707,4,FALSE)*VLOOKUP('Calculos 2'!A71,'Huella Completa'!A21:G707,4,FALSE)*Hotel*(_xlfn.IFS(Elec_hotel1="siempre",0.6,Elec_hotel1="normalmente",0.75,Elec_hotel1="a veces",0.9,Elec_hotel1="nunca",1)) -> 
A72: 3.7 | B72: =VLOOKUP('Calculos 2'!A72,'Huella Completa'!A23:G708,4,FALSE)*VLOOKUP('Calculos 2'!A72,'Huella Completa'!A23:G708,4,FALSE)*Hotel*(_xlfn.IFS(Elec_hotel1="siempre",0.6,Elec_hotel1="normalmente",0.75,Elec_hotel1="a veces",0.9,Elec_hotel1="nunca",1)) -> 
A73: 3.8 | B73: =VLOOKUP('Calculos 2'!A73,'Huella Completa'!A24:G709,4,FALSE)*VLOOKUP('Calculos 2'!A73,'Huella Completa'!A24:G709,4,FALSE)*Hotel*(_xlfn.IFS(Elec_hotel1="siempre",0.6,Elec_hotel1="normalmente",0.75,Elec_hotel1="a veces",0.9,Elec_hotel1="nunca",1)) -> 
A74: 3.9 | B74: =VLOOKUP('Calculos 2'!A74,'Huella Completa'!A25:G710,4,FALSE)*VLOOKUP('Calculos 2'!A74,'Huella Completa'!A25:G710,4,FALSE)*Hotel*(_xlfn.IFS(Elec_hotel1="siempre",0.6,Elec_hotel1="normalmente",0.75,Elec_hotel1="a veces",0.9,Elec_hotel1="nunca",1)) -> 
A75: 3.10 | B75: =VLOOKUP('Calculos 2'!A75,'Huella Completa'!A26:G711,4,FALSE)*VLOOKUP('Calculos 2'!A75,'Huella Completa'!A26:G711,4,FALSE)*Hotel*(_xlfn.IFS(Elec_hotel1="siempre",0.6,Elec_hotel1="normalmente",0.75,Elec_hotel1="a veces",0.9,Elec_hotel1="nunca",1)) -> 
A76: 3.11 | B76: =VLOOKUP('Calculos 2'!A76,'Huella Completa'!A34:G712,4,FALSE)*VLOOKUP('Calculos 2'!A76,'Huella Completa'!A34:G712,4,FALSE)*Hotel*(_xlfn.IFS(Elec_hotel1="siempre",0.6,Elec_hotel1="normalmente",0.75,Elec_hotel1="a veces",0.9,Elec_hotel1="nunca",1)) -> 
A77: 3.12 | B77: =VLOOKUP('Calculos 2'!A77,'Huella Completa'!A35:G713,4,FALSE)*VLOOKUP('Calculos 2'!A77,'Huella Completa'!A35:G713,4,FALSE)*Hotel*(_xlfn.IFS(Elec_hotel1="siempre",0.6,Elec_hotel1="normalmente",0.75,Elec_hotel1="a veces",0.9,Elec_hotel1="nunca",1)) -> 
A78: 3.13 | B78: =VLOOKUP('Calculos 2'!A78,'Huella Completa'!A36:G714,4,FALSE)*VLOOKUP('Calculos 2'!A78,'Huella Completa'!A36:G714,4,FALSE)*Hotel*(_xlfn.IFS(Elec_hotel1="siempre",0.6,Elec_hotel1="normalmente",0.75,Elec_hotel1="a veces",0.9,Elec_hotel1="nunca",1)) -> 
A79: 3.14 | B79: =VLOOKUP('Calculos 2'!A79,'Huella Completa'!A37:G715,4,FALSE)*VLOOKUP('Calculos 2'!A79,'Huella Completa'!A37:G715,4,FALSE)*Hotel*(_xlfn.IFS(Elec_hotel1="siempre",0.6,Elec_hotel1="normalmente",0.75,Elec_hotel1="a veces",0.9,Elec_hotel1="nunca",1)) -> 
A80: 3.15 | B80: =VLOOKUP('Calculos 2'!A80,'Huella Completa'!A38:G716,4,FALSE)*VLOOKUP('Calculos 2'!A80,'Huella Completa'!A38:G716,4,FALSE)*Hotel*(_xlfn.IFS(Elec_hotel1="siempre",0.6,Elec_hotel1="normalmente",0.75,Elec_hotel1="a veces",0.9,Elec_hotel1="nunca",1)) -> 
A81: 3.16 | B81: =VLOOKUP('Calculos 2'!A81,'Huella Completa'!A39:G717,4,FALSE)*VLOOKUP('Calculos 2'!A81,'Huella Completa'!A39:G717,4,FALSE)*Hotel*(_xlfn.IFS(Elec_hotel1="siempre",0.6,Elec_hotel1="normalmente",0.75,Elec_hotel1="a veces",0.9,Elec_hotel1="nunca",1)) -> 
A82: 3.17 | B82: =VLOOKUP('Calculos 2'!A82,'Huella Completa'!A40:G718,4,FALSE)*VLOOKUP('Calculos 2'!A82,'Huella Completa'!A40:G718,4,FALSE)*Hotel*(_xlfn.IFS(Elec_hotel1="siempre",0.6,Elec_hotel1="normalmente",0.75,Elec_hotel1="a veces",0.9,Elec_hotel1="nunca",1)) -> 
A83: 3.18 | B83: =VLOOKUP('Calculos 2'!A83,'Huella Completa'!A41:G719,4,FALSE)*VLOOKUP('Calculos 2'!A83,'Huella Completa'!A41:G719,4,FALSE)*Hotel*(_xlfn.IFS(Elec_hotel1="siempre",0.6,Elec_hotel1="normalmente",0.75,Elec_hotel1="a veces",0.9,Elec_hotel1="nunca",1)) -> 
A84: 3.19 | B84: =VLOOKUP('Calculos 2'!A84,'Huella Completa'!A42:G720,4,FALSE)*VLOOKUP('Calculos 2'!A84,'Huella Completa'!A42:G720,4,FALSE)*Hotel*(_xlfn.IFS(Elec_hotel1="siempre",0.6,Elec_hotel1="normalmente",0.75,Elec_hotel1="a veces",0.9,Elec_hotel1="nunca",1)) -> 
A85: 3.20 | B85: =VLOOKUP('Calculos 2'!A85,'Huella Completa'!A43:G721,4,FALSE)*VLOOKUP('Calculos 2'!A85,'Huella Completa'!A43:G721,4,FALSE)*Hotel*(_xlfn.IFS(Elec_hotel1="siempre",0.6,Elec_hotel1="normalmente",0.75,Elec_hotel1="a veces",0.9,Elec_hotel1="nunca",1)) -> 
A86: 3.21 | B86: =VLOOKUP('Calculos 2'!A86,'Huella Completa'!A44:G722,4,FALSE)*VLOOKUP('Calculos 2'!A86,'Huella Completa'!A44:G722,4,FALSE)*Hotel*(_xlfn.IFS(Elec_hotel1="siempre",0.6,Elec_hotel1="normalmente",0.75,Elec_hotel1="a veces",0.9,Elec_hotel1="nunca",1)) -> 
A87: 3.22 | B87: =VLOOKUP('Calculos 2'!A87,'Huella Completa'!A45:G723,4,FALSE)*VLOOKUP('Calculos 2'!A87,'Huella Completa'!A45:G723,4,FALSE)*Hotel*(_xlfn.IFS(Elec_hotel1="siempre",0.6,Elec_hotel1="normalmente",0.75,Elec_hotel1="a veces",0.9,Elec_hotel1="nunca",1)) -> 
A88: 3.23 | B88: =VLOOKUP('Calculos 2'!A88,'Huella Completa'!A46:G724,4,FALSE)*VLOOKUP('Calculos 2'!A88,'Huella Completa'!A46:G724,4,FALSE)*Hotel*(_xlfn.IFS(Elec_hotel1="siempre",0.6,Elec_hotel1="normalmente",0.75,Elec_hotel1="a veces",0.9,Elec_hotel1="nunca",1)) -> 
A89: 3.24 | B89: =VLOOKUP('Calculos 2'!A89,'Huella Completa'!A47:G725,4,FALSE)*VLOOKUP('Calculos 2'!A89,'Huella Completa'!A47:G725,4,FALSE)*Hotel*(_xlfn.IFS(Elec_hotel1="siempre",0.6,Elec_hotel1="normalmente",0.75,Elec_hotel1="a veces",0.9,Elec_hotel1="nunca",1)) -> 
A90: 3.25 | B90: =VLOOKUP('Calculos 2'!A90,'Huella Completa'!A48:G726,4,FALSE)*VLOOKUP('Calculos 2'!A90,'Huella Completa'!A48:G726,4,FALSE)*Hotel*(_xlfn.IFS(Elec_hotel1="siempre",0.6,Elec_hotel1="normalmente",0.75,Elec_hotel1="a veces",0.9,Elec_hotel1="nunca",1)) -> 
A91: 3.26 | B91: =VLOOKUP('Calculos 2'!A91,'Huella Completa'!A49:G727,4,FALSE)*VLOOKUP('Calculos 2'!A91,'Huella Completa'!A49:G727,4,FALSE)*Hotel*(_xlfn.IFS(Elec_hotel1="siempre",0.6,Elec_hotel1="normalmente",0.75,Elec_hotel1="a veces",0.9,Elec_hotel1="nunca",1)) -> 
A92: 3.27 | B92: =VLOOKUP('Calculos 2'!A92,'Huella Completa'!A50:G728,4,FALSE)*VLOOKUP('Calculos 2'!A92,'Huella Completa'!A50:G728,4,FALSE)*Hotel*(_xlfn.IFS(Elec_hotel1="siempre",0.6,Elec_hotel1="normalmente",0.75,Elec_hotel1="a veces",0.9,Elec_hotel1="nunca",1)) -> 
A93: 3.28 | B93: =VLOOKUP('Calculos 2'!A93,'Huella Completa'!A51:G729,4,FALSE)*VLOOKUP('Calculos 2'!A93,'Huella Completa'!A51:G729,4,FALSE)*Hotel*(_xlfn.IFS(Elec_hotel1="siempre",0.6,Elec_hotel1="normalmente",0.75,Elec_hotel1="a veces",0.9,Elec_hotel1="nunca",1)) -> 
A94: 3.29 | B94: =VLOOKUP('Calculos 2'!A94,'Huella Completa'!A52:G730,4,FALSE)*VLOOKUP('Calculos 2'!A94,'Huella Completa'!A52:G730,4,FALSE)*Hotel*(_xlfn.IFS(Elec_hotel1="siempre",0.6,Elec_hotel1="normalmente",0.75,Elec_hotel1="a veces",0.9,Elec_hotel1="nunca",1)) -> 
A95: 3.30 | B95: =VLOOKUP('Calculos 2'!A95,'Huella Completa'!A53:G731,4,FALSE)*VLOOKUP('Calculos 2'!A95,'Huella Completa'!A53:G731,4,FALSE)*Hotel*(_xlfn.IFS(Elec_hotel1="siempre",0.6,Elec_hotel1="normalmente",0.75,Elec_hotel1="a veces",0.9,Elec_hotel1="nunca",1)) -> 
A96: 3.0 | C96: =_xlfn.AGGREGATE(9,6,B66:B95) -> 0
A98: 4.1 | B98: =VLOOKUP('Calculos 2'!A98,'Huella Completa'!A16:G702,3,FALSE)*(IF(VLOOKUP('Calculos 2'!A98,'Huella Completa'!A16:G702,4,FALSE)="Gasolina",Gasolina,IF(VLOOKUP('Calculos 2'!A98,'Huella Completa'!A16:G702,4,FALSE)="Diesel",Diesel,IF(VLOOKUP('Calculos 2'!A98,'Huella Completa'!A16:G702,4,FALSE)="GLP",GLP,0)))) -> 0
A99: 4.2 | B99: =VLOOKUP('Calculos 2'!A99,'Huella Completa'!A17:G703,3,FALSE)*(IF(VLOOKUP('Calculos 2'!A99,'Huella Completa'!A17:G703,4,FALSE)="Gasolina",Gasolina,IF(VLOOKUP('Calculos 2'!A99,'Huella Completa'!A17:G703,4,FALSE)="Diesel",Diesel,IF(VLOOKUP('Calculos 2'!A99,'Huella Completa'!A17:G703,4,FALSE)="GLP",GLP,0)))) -> 0
A100: 4.3 | B100: =VLOOKUP('Calculos 2'!A100,'Huella Completa'!A18:G704,3,FALSE)*(IF(VLOOKUP('Calculos 2'!A100,'Huella Completa'!A18:G704,4,FALSE)="Gasolina",Gasolina,IF(VLOOKUP('Calculos 2'!A100,'Huella Completa'!A18:G704,4,FALSE)="Diesel",Diesel,IF(VLOOKUP('Calculos 2'!A100,'Huella Completa'!A18:G704,4,FALSE)="GLP",GLP,0)))) -> 0
A101: 4.4 | B101: =VLOOKUP('Calculos 2'!A101,'Huella Completa'!A19:G705,3,FALSE)*(IF(VLOOKUP('Calculos 2'!A101,'Huella Completa'!A19:G705,4,FALSE)="Gasolina",Gasolina,IF(VLOOKUP('Calculos 2'!A101,'Huella Completa'!A19:G705,4,FALSE)="Diesel",Diesel,IF(VLOOKUP('Calculos 2'!A101,'Huella Completa'!A19:G705,4,FALSE)="GLP",GLP,0)))) -> 0
A102: 4.5 | B102: =VLOOKUP('Calculos 2'!A102,'Huella Completa'!A20:G706,3,FALSE)*(IF(VLOOKUP('Calculos 2'!A102,'Huella Completa'!A20:G706,4,FALSE)="Gasolina",Gasolina,IF(VLOOKUP('Calculos 2'!A102,'Huella Completa'!A20:G706,4,FALSE)="Diesel",Diesel,IF(VLOOKUP('Calculos 2'!A102,'Huella Completa'!A20:G706,4,FALSE)="GLP",GLP,0)))) -> 0
A103: 4.6 | B103: =VLOOKUP('Calculos 2'!A103,'Huella Completa'!A21:G707,3,FALSE)*(IF(VLOOKUP('Calculos 2'!A103,'Huella Completa'!A21:G707,4,FALSE)="Gasolina",Gasolina,IF(VLOOKUP('Calculos 2'!A103,'Huella Completa'!A21:G707,4,FALSE)="Diesel",Diesel,IF(VLOOKUP('Calculos 2'!A103,'Huella Completa'!A21:G707,4,FALSE)="GLP",GLP,0)))) -> 0
A104: 4.7 | B104: =VLOOKUP('Calculos 2'!A104,'Huella Completa'!A23:G708,3,FALSE)*(IF(VLOOKUP('Calculos 2'!A104,'Huella Completa'!A23:G708,4,FALSE)="Gasolina",Gasolina,IF(VLOOKUP('Calculos 2'!A104,'Huella Completa'!A23:G708,4,FALSE)="Diesel",Diesel,IF(VLOOKUP('Calculos 2'!A104,'Huella Completa'!A23:G708,4,FALSE)="GLP",GLP,0)))) -> 0
A105: 4.8 | B105: =VLOOKUP('Calculos 2'!A105,'Huella Completa'!A24:G709,3,FALSE)*(IF(VLOOKUP('Calculos 2'!A105,'Huella Completa'!A24:G709,4,FALSE)="Gasolina",Gasolina,IF(VLOOKUP('Calculos 2'!A105,'Huella Completa'!A24:G709,4,FALSE)="Diesel",Diesel,IF(VLOOKUP('Calculos 2'!A105,'Huella Completa'!A24:G709,4,FALSE)="GLP",GLP,0)))) -> 0
A106: 4.9 | B106: =VLOOKUP('Calculos 2'!A106,'Huella Completa'!A25:G710,3,FALSE)*(IF(VLOOKUP('Calculos 2'!A106,'Huella Completa'!A25:G710,4,FALSE)="Gasolina",Gasolina,IF(VLOOKUP('Calculos 2'!A106,'Huella Completa'!A25:G710,4,FALSE)="Diesel",Diesel,IF(VLOOKUP('Calculos 2'!A106,'Huella Completa'!A25:G710,4,FALSE)="GLP",GLP,0)))) -> 0
A107: 4.10 | B107: =VLOOKUP('Calculos 2'!A107,'Huella Completa'!A26:G711,3,FALSE)*(IF(VLOOKUP('Calculos 2'!A107,'Huella Completa'!A26:G711,4,FALSE)="Gasolina",Gasolina,IF(VLOOKUP('Calculos 2'!A107,'Huella Completa'!A26:G711,4,FALSE)="Diesel",Diesel,IF(VLOOKUP('Calculos 2'!A107,'Huella Completa'!A26:G711,4,FALSE)="GLP",GLP,0)))) -> 0
A108: 4.11 | B108: =VLOOKUP('Calculos 2'!A108,'Huella Completa'!A34:G712,3,FALSE)*(IF(VLOOKUP('Calculos 2'!A108,'Huella Completa'!A34:G712,4,FALSE)="Gasolina",Gasolina,IF(VLOOKUP('Calculos 2'!A108,'Huella Completa'!A34:G712,4,FALSE)="Diesel",Diesel,IF(VLOOKUP('Calculos 2'!A108,'Huella Completa'!A34:G712,4,FALSE)="GLP",GLP,0)))) -> 
A109: 4.12 | B109: =VLOOKUP('Calculos 2'!A109,'Huella Completa'!A35:G713,3,FALSE)*(IF(VLOOKUP('Calculos 2'!A109,'Huella Completa'!A35:G713,4,FALSE)="Gasolina",Gasolina,IF(VLOOKUP('Calculos 2'!A109,'Huella Completa'!A35:G713,4,FALSE)="Diesel",Diesel,IF(VLOOKUP('Calculos 2'!A109,'Huella Completa'!A35:G713,4,FALSE)="GLP",GLP,0)))) -> 
A110: 4.13 | B110: =VLOOKUP('Calculos 2'!A110,'Huella Completa'!A36:G714,3,FALSE)*(IF(VLOOKUP('Calculos 2'!A110,'Huella Completa'!A36:G714,4,FALSE)="Gasolina",Gasolina,IF(VLOOKUP('Calculos 2'!A110,'Huella Completa'!A36:G714,4,FALSE)="Diesel",Diesel,IF(VLOOKUP('Calculos 2'!A110,'Huella Completa'!A36:G714,4,FALSE)="GLP",GLP,0)))) -> 
A111: 4.14 | B111: =VLOOKUP('Calculos 2'!A111,'Huella Completa'!A37:G715,3,FALSE)*(IF(VLOOKUP('Calculos 2'!A111,'Huella Completa'!A37:G715,4,FALSE)="Gasolina",Gasolina,IF(VLOOKUP('Calculos 2'!A111,'Huella Completa'!A37:G715,4,FALSE)="Diesel",Diesel,IF(VLOOKUP('Calculos 2'!A111,'Huella Completa'!A37:G715,4,FALSE)="GLP",GLP,0)))) -> 
A112: 4.15 | B112: =VLOOKUP('Calculos 2'!A112,'Huella Completa'!A38:G716,3,FALSE)*(IF(VLOOKUP('Calculos 2'!A112,'Huella Completa'!A38:G716,4,FALSE)="Gasolina",Gasolina,IF(VLOOKUP('Calculos 2'!A112,'Huella Completa'!A38:G716,4,FALSE)="Diesel",Diesel,IF(VLOOKUP('Calculos 2'!A112,'Huella Completa'!A38:G716,4,FALSE)="GLP",GLP,0)))) -> 
A113: 4.16 | B113: =VLOOKUP('Calculos 2'!A113,'Huella Completa'!A39:G717,3,FALSE)*(IF(VLOOKUP('Calculos 2'!A113,'Huella Completa'!A39:G717,4,FALSE)="Gasolina",Gasolina,IF(VLOOKUP('Calculos 2'!A113,'Huella Completa'!A39:G717,4,FALSE)="Diesel",Diesel,IF(VLOOKUP('Calculos 2'!A113,'Huella Completa'!A39:G717,4,FALSE)="GLP",GLP,0)))) -> 
A114: 4.17 | B114: =VLOOKUP('Calculos 2'!A114,'Huella Completa'!A40:G718,3,FALSE)*(IF(VLOOKUP('Calculos 2'!A114,'Huella Completa'!A40:G718,4,FALSE)="Gasolina",Gasolina,IF(VLOOKUP('Calculos 2'!A114,'Huella Completa'!A40:G718,4,FALSE)="Diesel",Diesel,IF(VLOOKUP('Calculos 2'!A114,'Huella Completa'!A40:G718,4,FALSE)="GLP",GLP,0)))) -> 
A115: 4.18 | B115: =VLOOKUP('Calculos 2'!A115,'Huella Completa'!A41:G719,3,FALSE)*(IF(VLOOKUP('Calculos 2'!A115,'Huella Completa'!A41:G719,4,FALSE)="Gasolina",Gasolina,IF(VLOOKUP('Calculos 2'!A115,'Huella Completa'!A41:G719,4,FALSE)="Diesel",Diesel,IF(VLOOKUP('Calculos 2'!A115,'Huella Completa'!A41:G719,4,FALSE)="GLP",GLP,0)))) -> 
A116: 4.19 | B116: =VLOOKUP('Calculos 2'!A116,'Huella Completa'!A42:G720,3,FALSE)*(IF(VLOOKUP('Calculos 2'!A116,'Huella Completa'!A42:G720,4,FALSE)="Gasolina",Gasolina,IF(VLOOKUP('Calculos 2'!A116,'Huella Completa'!A42:G720,4,FALSE)="Diesel",Diesel,IF(VLOOKUP('Calculos 2'!A116,'Huella Completa'!A42:G720,4,FALSE)="GLP",GLP,0)))) -> 
A117: 4.20 | B117: =VLOOKUP('Calculos 2'!A117,'Huella Completa'!A43:G721,3,FALSE)*(IF(VLOOKUP('Calculos 2'!A117,'Huella Completa'!A43:G721,4,FALSE)="Gasolina",Gasolina,IF(VLOOKUP('Calculos 2'!A117,'Huella Completa'!A43:G721,4,FALSE)="Diesel",Diesel,IF(VLOOKUP('Calculos 2'!A117,'Huella Completa'!A43:G721,4,FALSE)="GLP",GLP,0)))) -> 
A118: 4.21 | B118: =VLOOKUP('Calculos 2'!A118,'Huella Completa'!A44:G722,3,FALSE)*(IF(VLOOKUP('Calculos 2'!A118,'Huella Completa'!A44:G722,4,FALSE)="Gasolina",Gasolina,IF(VLOOKUP('Calculos 2'!A118,'Huella Completa'!A44:G722,4,FALSE)="Diesel",Diesel,IF(VLOOKUP('Calculos 2'!A118,'Huella Completa'!A44:G722,4,FALSE)="GLP",GLP,0)))) -> 
A119: 4.22 | B119: =VLOOKUP('Calculos 2'!A119,'Huella Completa'!A45:G723,3,FALSE)*(IF(VLOOKUP('Calculos 2'!A119,'Huella Completa'!A45:G723,4,FALSE)="Gasolina",Gasolina,IF(VLOOKUP('Calculos 2'!A119,'Huella Completa'!A45:G723,4,FALSE)="Diesel",Diesel,IF(VLOOKUP('Calculos 2'!A119,'Huella Completa'!A45:G723,4,FALSE)="GLP",GLP,0)))) -> 
A120: 4.23 | B120: =VLOOKUP('Calculos 2'!A120,'Huella Completa'!A46:G724,3,FALSE)*(IF(VLOOKUP('Calculos 2'!A120,'Huella Completa'!A46:G724,4,FALSE)="Gasolina",Gasolina,IF(VLOOKUP('Calculos 2'!A120,'Huella Completa'!A46:G724,4,FALSE)="Diesel",Diesel,IF(VLOOKUP('Calculos 2'!A120,'Huella Completa'!A46:G724,4,FALSE)="GLP",GLP,0)))) -> 
A121: 4.24 | B121: =VLOOKUP('Calculos 2'!A121,'Huella Completa'!A47:G725,3,FALSE)*(IF(VLOOKUP('Calculos 2'!A121,'Huella Completa'!A47:G725,4,FALSE)="Gasolina",Gasolina,IF(VLOOKUP('Calculos 2'!A121,'Huella Completa'!A47:G725,4,FALSE)="Diesel",Diesel,IF(VLOOKUP('Calculos 2'!A121,'Huella Completa'!A47:G725,4,FALSE)="GLP",GLP,0)))) -> 
A122: 4.25 | B122: =VLOOKUP('Calculos 2'!A122,'Huella Completa'!A48:G726,3,FALSE)*(IF(VLOOKUP('Calculos 2'!A122,'Huella Completa'!A48:G726,4,FALSE)="Gasolina",Gasolina,IF(VLOOKUP('Calculos 2'!A122,'Huella Completa'!A48:G726,4,FALSE)="Diesel",Diesel,IF(VLOOKUP('Calculos 2'!A122,'Huella Completa'!A48:G726,4,FALSE)="GLP",GLP,0)))) -> 
A123: 4.26 | B123: =VLOOKUP('Calculos 2'!A123,'Huella Completa'!A49:G727,3,FALSE)*(IF(VLOOKUP('Calculos 2'!A123,'Huella Completa'!A49:G727,4,FALSE)="Gasolina",Gasolina,IF(VLOOKUP('Calculos 2'!A123,'Huella Completa'!A49:G727,4,FALSE)="Diesel",Diesel,IF(VLOOKUP('Calculos 2'!A123,'Huella Completa'!A49:G727,4,FALSE)="GLP",GLP,0)))) -> 
A124: 4.27 | B124: =VLOOKUP('Calculos 2'!A124,'Huella Completa'!A50:G728,3,FALSE)*(IF(VLOOKUP('Calculos 2'!A124,'Huella Completa'!A50:G728,4,FALSE)="Gasolina",Gasolina,IF(VLOOKUP('Calculos 2'!A124,'Huella Completa'!A50:G728,4,FALSE)="Diesel",Diesel,IF(VLOOKUP('Calculos 2'!A124,'Huella Completa'!A50:G728,4,FALSE)="GLP",GLP,0)))) -> 
A125: 4.28 | B125: =VLOOKUP('Calculos 2'!A125,'Huella Completa'!A51:G729,3,FALSE)*(IF(VLOOKUP('Calculos 2'!A125,'Huella Completa'!A51:G729,4,FALSE)="Gasolina",Gasolina,IF(VLOOKUP('Calculos 2'!A125,'Huella Completa'!A51:G729,4,FALSE)="Diesel",Diesel,IF(VLOOKUP('Calculos 2'!A125,'Huella Completa'!A51:G729,4,FALSE)="GLP",GLP,0)))) -> 
A126: 4.29 | B126: =VLOOKUP('Calculos 2'!A126,'Huella Completa'!A52:G730,3,FALSE)*(IF(VLOOKUP('Calculos 2'!A126,'Huella Completa'!A52:G730,4,FALSE)="Gasolina",Gasolina,IF(VLOOKUP('Calculos 2'!A126,'Huella Completa'!A52:G730,4,FALSE)="Diesel",Diesel,IF(VLOOKUP('Calculos 2'!A126,'Huella Completa'!A52:G730,4,FALSE)="GLP",GLP,0)))) -> 
A127: 4.30 | B127: =VLOOKUP('Calculos 2'!A127,'Huella Completa'!A53:G731,3,FALSE)*(IF(VLOOKUP('Calculos 2'!A127,'Huella Completa'!A53:G731,4,FALSE)="Gasolina",Gasolina,IF(VLOOKUP('Calculos 2'!A127,'Huella Completa'!A53:G731,4,FALSE)="Diesel",Diesel,IF(VLOOKUP('Calculos 2'!A127,'Huella Completa'!A53:G731,4,FALSE)="GLP",GLP,0)))) -> 
A128: 4.0 | C128: =_xlfn.AGGREGATE(9,6,B98:B127) -> 0
A130: 5.1 | B130: =VLOOKUP('Calculos 2'!A130,'Huella Completa'!A16:G702,4,FALSE)*VLOOKUP('Calculos 2'!A130,'Huella Completa'!A16:G702,5,FALSE)*(IF(VLOOKUP('Calculos 2'!A130,'Huella Completa'!A16:G702,3,FALSE)="Tren",Tren,IF(VLOOKUP('Calculos 2'!A130,'Huella Completa'!A16:G702,3,FALSE)="Autobús",Autobús,IF(VLOOKUP('Calculos 2'!A130,'Huella Completa'!A16:G702,3,FALSE)="Avión",Avión,0)))) -> 0
A131: 5.2 | B131: =VLOOKUP('Calculos 2'!A131,'Huella Completa'!A17:G703,4,FALSE)*VLOOKUP('Calculos 2'!A131,'Huella Completa'!A17:G703,5,FALSE)*(IF(VLOOKUP('Calculos 2'!A131,'Huella Completa'!A17:G703,3,FALSE)="Tren",Tren,IF(VLOOKUP('Calculos 2'!A131,'Huella Completa'!A17:G703,3,FALSE)="Autobús",Autobús,IF(VLOOKUP('Calculos 2'!A131,'Huella Completa'!A17:G703,3,FALSE)="Avión",Avión,0)))) -> 0
A132: 5.3 | B132: =VLOOKUP('Calculos 2'!A132,'Huella Completa'!A18:G704,4,FALSE)*VLOOKUP('Calculos 2'!A132,'Huella Completa'!A18:G704,5,FALSE)*(IF(VLOOKUP('Calculos 2'!A132,'Huella Completa'!A18:G704,3,FALSE)="Tren",Tren,IF(VLOOKUP('Calculos 2'!A132,'Huella Completa'!A18:G704,3,FALSE)="Autobús",Autobús,IF(VLOOKUP('Calculos 2'!A132,'Huella Completa'!A18:G704,3,FALSE)="Avión",Avión,0)))) -> 0
A133: 5.4 | B133: =VLOOKUP('Calculos 2'!A133,'Huella Completa'!A19:G705,4,FALSE)*VLOOKUP('Calculos 2'!A133,'Huella Completa'!A19:G705,5,FALSE)*(IF(VLOOKUP('Calculos 2'!A133,'Huella Completa'!A19:G705,3,FALSE)="Tren",Tren,IF(VLOOKUP('Calculos 2'!A133,'Huella Completa'!A19:G705,3,FALSE)="Autobús",Autobús,IF(VLOOKUP('Calculos 2'!A133,'Huella Completa'!A19:G705,3,FALSE)="Avión",Avión,0)))) -> 0
A134: 5.5 | B134: =VLOOKUP('Calculos 2'!A134,'Huella Completa'!A20:G706,4,FALSE)*VLOOKUP('Calculos 2'!A134,'Huella Completa'!A20:G706,5,FALSE)*(IF(VLOOKUP('Calculos 2'!A134,'Huella Completa'!A20:G706,3,FALSE)="Tren",Tren,IF(VLOOKUP('Calculos 2'!A134,'Huella Completa'!A20:G706,3,FALSE)="Autobús",Autobús,IF(VLOOKUP('Calculos 2'!A134,'Huella Completa'!A20:G706,3,FALSE)="Avión",Avión,0)))) -> 0
A135: 5.6 | B135: =VLOOKUP('Calculos 2'!A135,'Huella Completa'!A21:G707,4,FALSE)*VLOOKUP('Calculos 2'!A135,'Huella Completa'!A21:G707,5,FALSE)*(IF(VLOOKUP('Calculos 2'!A135,'Huella Completa'!A21:G707,3,FALSE)="Tren",Tren,IF(VLOOKUP('Calculos 2'!A135,'Huella Completa'!A21:G707,3,FALSE)="Autobús",Autobús,IF(VLOOKUP('Calculos 2'!A135,'Huella Completa'!A21:G707,3,FALSE)="Avión",Avión,0)))) -> 0
A136: 5.7 | B136: =VLOOKUP('Calculos 2'!A136,'Huella Completa'!A23:G708,4,FALSE)*VLOOKUP('Calculos 2'!A136,'Huella Completa'!A23:G708,5,FALSE)*(IF(VLOOKUP('Calculos 2'!A136,'Huella Completa'!A23:G708,3,FALSE)="Tren",Tren,IF(VLOOKUP('Calculos 2'!A136,'Huella Completa'!A23:G708,3,FALSE)="Autobús",Autobús,IF(VLOOKUP('Calculos 2'!A136,'Huella Completa'!A23:G708,3,FALSE)="Avión",Avión,0)))) -> 0
A137: 5.8 | B137: =VLOOKUP('Calculos 2'!A137,'Huella Completa'!A24:G709,4,FALSE)*VLOOKUP('Calculos 2'!A137,'Huella Completa'!A24:G709,5,FALSE)*(IF(VLOOKUP('Calculos 2'!A137,'Huella Completa'!A24:G709,3,FALSE)="Tren",Tren,IF(VLOOKUP('Calculos 2'!A137,'Huella Completa'!A24:G709,3,FALSE)="Autobús",Autobús,IF(VLOOKUP('Calculos 2'!A137,'Huella Completa'!A24:G709,3,FALSE)="Avión",Avión,0)))) -> 0
A138: 5.9 | B138: =VLOOKUP('Calculos 2'!A138,'Huella Completa'!A25:G710,4,FALSE)*VLOOKUP('Calculos 2'!A138,'Huella Completa'!A25:G710,5,FALSE)*(IF(VLOOKUP('Calculos 2'!A138,'Huella Completa'!A25:G710,3,FALSE)="Tren",Tren,IF(VLOOKUP('Calculos 2'!A138,'Huella Completa'!A25:G710,3,FALSE)="Autobús",Autobús,IF(VLOOKUP('Calculos 2'!A138,'Huella Completa'!A25:G710,3,FALSE)="Avión",Avión,0)))) -> 0
A139: 5.10 | B139: =VLOOKUP('Calculos 2'!A139,'Huella Completa'!A26:G711,4,FALSE)*VLOOKUP('Calculos 2'!A139,'Huella Completa'!A26:G711,5,FALSE)*(IF(VLOOKUP('Calculos 2'!A139,'Huella Completa'!A26:G711,3,FALSE)="Tren",Tren,IF(VLOOKUP('Calculos 2'!A139,'Huella Completa'!A26:G711,3,FALSE)="Autobús",Autobús,IF(VLOOKUP('Calculos 2'!A139,'Huella Completa'!A26:G711,3,FALSE)="Avión",Avión,0)))) -> 0
A140: 5.11 | B140: =VLOOKUP('Calculos 2'!A140,'Huella Completa'!A34:G712,4,FALSE)*VLOOKUP('Calculos 2'!A140,'Huella Completa'!A34:G712,5,FALSE)*(IF(VLOOKUP('Calculos 2'!A140,'Huella Completa'!A34:G712,3,FALSE)="Tren",Tren,IF(VLOOKUP('Calculos 2'!A140,'Huella Completa'!A34:G712,3,FALSE)="Autobús",Autobús,IF(VLOOKUP('Calculos 2'!A140,'Huella Completa'!A34:G712,3,FALSE)="Avión",Avión,0)))) -> 
A141: 5.12 | B141: =VLOOKUP('Calculos 2'!A141,'Huella Completa'!A35:G713,4,FALSE)*VLOOKUP('Calculos 2'!A141,'Huella Completa'!A35:G713,5,FALSE)*(IF(VLOOKUP('Calculos 2'!A141,'Huella Completa'!A35:G713,3,FALSE)="Tren",Tren,IF(VLOOKUP('Calculos 2'!A141,'Huella Completa'!A35:G713,3,FALSE)="Autobús",Autobús,IF(VLOOKUP('Calculos 2'!A141,'Huella Completa'!A35:G713,3,FALSE)="Avión",Avión,0)))) -> 
A142: 5.13 | B142: =VLOOKUP('Calculos 2'!A142,'Huella Completa'!A36:G714,4,FALSE)*VLOOKUP('Calculos 2'!A142,'Huella Completa'!A36:G714,5,FALSE)*(IF(VLOOKUP('Calculos 2'!A142,'Huella Completa'!A36:G714,3,FALSE)="Tren",Tren,IF(VLOOKUP('Calculos 2'!A142,'Huella Completa'!A36:G714,3,FALSE)="Autobús",Autobús,IF(VLOOKUP('Calculos 2'!A142,'Huella Completa'!A36:G714,3,FALSE)="Avión",Avión,0)))) -> 
A143: 5.14 | B143: =VLOOKUP('Calculos 2'!A143,'Huella Completa'!A37:G715,4,FALSE)*VLOOKUP('Calculos 2'!A143,'Huella Completa'!A37:G715,5,FALSE)*(IF(VLOOKUP('Calculos 2'!A143,'Huella Completa'!A37:G715,3,FALSE)="Tren",Tren,IF(VLOOKUP('Calculos 2'!A143,'Huella Completa'!A37:G715,3,FALSE)="Autobús",Autobús,IF(VLOOKUP('Calculos 2'!A143,'Huella Completa'!A37:G715,3,FALSE)="Avión",Avión,0)))) -> 
A144: 5.15 | B144: =VLOOKUP('Calculos 2'!A144,'Huella Completa'!A38:G716,4,FALSE)*VLOOKUP('Calculos 2'!A144,'Huella Completa'!A38:G716,5,FALSE)*(IF(VLOOKUP('Calculos 2'!A144,'Huella Completa'!A38:G716,3,FALSE)="Tren",Tren,IF(VLOOKUP('Calculos 2'!A144,'Huella Completa'!A38:G716,3,FALSE)="Autobús",Autobús,IF(VLOOKUP('Calculos 2'!A144,'Huella Completa'!A38:G716,3,FALSE)="Avión",Avión,0)))) -> 
A145: 5.16 | B145: =VLOOKUP('Calculos 2'!A145,'Huella Completa'!A39:G717,4,FALSE)*VLOOKUP('Calculos 2'!A145,'Huella Completa'!A39:G717,5,FALSE)*(IF(VLOOKUP('Calculos 2'!A145,'Huella Completa'!A39:G717,3,FALSE)="Tren",Tren,IF(VLOOKUP('Calculos 2'!A145,'Huella Completa'!A39:G717,3,FALSE)="Autobús",Autobús,IF(VLOOKUP('Calculos 2'!A145,'Huella Completa'!A39:G717,3,FALSE)="Avión",Avión,0)))) -> 
A146: 5.17 | B146: =VLOOKUP('Calculos 2'!A146,'Huella Completa'!A40:G718,4,FALSE)*VLOOKUP('Calculos 2'!A146,'Huella Completa'!A40:G718,5,FALSE)*(IF(VLOOKUP('Calculos 2'!A146,'Huella Completa'!A40:G718,3,FALSE)="Tren",Tren,IF(VLOOKUP('Calculos 2'!A146,'Huella Completa'!A40:G718,3,FALSE)="Autobús",Autobús,IF(VLOOKUP('Calculos 2'!A146,'Huella Completa'!A40:G718,3,FALSE)="Avión",Avión,0)))) -> 
A147: 5.18 | B147: =VLOOKUP('Calculos 2'!A147,'Huella Completa'!A41:G719,4,FALSE)*VLOOKUP('Calculos 2'!A147,'Huella Completa'!A41:G719,5,FALSE)*(IF(VLOOKUP('Calculos 2'!A147,'Huella Completa'!A41:G719,3,FALSE)="Tren",Tren,IF(VLOOKUP('Calculos 2'!A147,'Huella Completa'!A41:G719,3,FALSE)="Autobús",Autobús,IF(VLOOKUP('Calculos 2'!A147,'Huella Completa'!A41:G719,3,FALSE)="Avión",Avión,0)))) -> 
A148: 5.19 | B148: =VLOOKUP('Calculos 2'!A148,'Huella Completa'!A42:G720,4,FALSE)*VLOOKUP('Calculos 2'!A148,'Huella Completa'!A42:G720,5,FALSE)*(IF(VLOOKUP('Calculos 2'!A148,'Huella Completa'!A42:G720,3,FALSE)="Tren",Tren,IF(VLOOKUP('Calculos 2'!A148,'Huella Completa'!A42:G720,3,FALSE)="Autobús",Autobús,IF(VLOOKUP('Calculos 2'!A148,'Huella Completa'!A42:G720,3,FALSE)="Avión",Avión,0)))) -> 
A149: 5.20 | B149: =VLOOKUP('Calculos 2'!A149,'Huella Completa'!A43:G721,4,FALSE)*VLOOKUP('Calculos 2'!A149,'Huella Completa'!A43:G721,5,FALSE)*(IF(VLOOKUP('Calculos 2'!A149,'Huella Completa'!A43:G721,3,FALSE)="Tren",Tren,IF(VLOOKUP('Calculos 2'!A149,'Huella Completa'!A43:G721,3,FALSE)="Autobús",Autobús,IF(VLOOKUP('Calculos 2'!A149,'Huella Completa'!A43:G721,3,FALSE)="Avión",Avión,0)))) -> 
A150: 5.21 | B150: =VLOOKUP('Calculos 2'!A150,'Huella Completa'!A44:G722,4,FALSE)*VLOOKUP('Calculos 2'!A150,'Huella Completa'!A44:G722,5,FALSE)*(IF(VLOOKUP('Calculos 2'!A150,'Huella Completa'!A44:G722,3,FALSE)="Tren",Tren,IF(VLOOKUP('Calculos 2'!A150,'Huella Completa'!A44:G722,3,FALSE)="Autobús",Autobús,IF(VLOOKUP('Calculos 2'!A150,'Huella Completa'!A44:G722,3,FALSE)="Avión",Avión,0)))) -> 
A151: 5.22 | B151: =VLOOKUP('Calculos 2'!A151,'Huella Completa'!A45:G723,4,FALSE)*VLOOKUP('Calculos 2'!A151,'Huella Completa'!A45:G723,5,FALSE)*(IF(VLOOKUP('Calculos 2'!A151,'Huella Completa'!A45:G723,3,FALSE)="Tren",Tren,IF(VLOOKUP('Calculos 2'!A151,'Huella Completa'!A45:G723,3,FALSE)="Autobús",Autobús,IF(VLOOKUP('Calculos 2'!A151,'Huella Completa'!A45:G723,3,FALSE)="Avión",Avión,0)))) -> 
A152: 5.23 | B152: =VLOOKUP('Calculos 2'!A152,'Huella Completa'!A46:G724,4,FALSE)*VLOOKUP('Calculos 2'!A152,'Huella Completa'!A46:G724,5,FALSE)*(IF(VLOOKUP('Calculos 2'!A152,'Huella Completa'!A46:G724,3,FALSE)="Tren",Tren,IF(VLOOKUP('Calculos 2'!A152,'Huella Completa'!A46:G724,3,FALSE)="Autobús",Autobús,IF(VLOOKUP('Calculos 2'!A152,'Huella Completa'!A46:G724,3,FALSE)="Avión",Avión,0)))) -> 
A153: 5.24 | B153: =VLOOKUP('Calculos 2'!A153,'Huella Completa'!A47:G725,4,FALSE)*VLOOKUP('Calculos 2'!A153,'Huella Completa'!A47:G725,5,FALSE)*(IF(VLOOKUP('Calculos 2'!A153,'Huella Completa'!A47:G725,3,FALSE)="Tren",Tren,IF(VLOOKUP('Calculos 2'!A153,'Huella Completa'!A47:G725,3,FALSE)="Autobús",Autobús,IF(VLOOKUP('Calculos 2'!A153,'Huella Completa'!A47:G725,3,FALSE)="Avión",Avión,0)))) -> 
A154: 5.25 | B154: =VLOOKUP('Calculos 2'!A154,'Huella Completa'!A48:G726,4,FALSE)*VLOOKUP('Calculos 2'!A154,'Huella Completa'!A48:G726,5,FALSE)*(IF(VLOOKUP('Calculos 2'!A154,'Huella Completa'!A48:G726,3,FALSE)="Tren",Tren,IF(VLOOKUP('Calculos 2'!A154,'Huella Completa'!A48:G726,3,FALSE)="Autobús",Autobús,IF(VLOOKUP('Calculos 2'!A154,'Huella Completa'!A48:G726,3,FALSE)="Avión",Avión,0)))) -> 
A155: 5.26 | B155: =VLOOKUP('Calculos 2'!A155,'Huella Completa'!A49:G727,4,FALSE)*VLOOKUP('Calculos 2'!A155,'Huella Completa'!A49:G727,5,FALSE)*(IF(VLOOKUP('Calculos 2'!A155,'Huella Completa'!A49:G727,3,FALSE)="Tren",Tren,IF(VLOOKUP('Calculos 2'!A155,'Huella Completa'!A49:G727,3,FALSE)="Autobús",Autobús,IF(VLOOKUP('Calculos 2'!A155,'Huella Completa'!A49:G727,3,FALSE)="Avión",Avión,0)))) -> 
A156: 5.27 | B156: =VLOOKUP('Calculos 2'!A156,'Huella Completa'!A50:G728,4,FALSE)*VLOOKUP('Calculos 2'!A156,'Huella Completa'!A50:G728,5,FALSE)*(IF(VLOOKUP('Calculos 2'!A156,'Huella Completa'!A50:G728,3,FALSE)="Tren",Tren,IF(VLOOKUP('Calculos 2'!A156,'Huella Completa'!A50:G728,3,FALSE)="Autobús",Autobús,IF(VLOOKUP('Calculos 2'!A156,'Huella Completa'!A50:G728,3,FALSE)="Avión",Avión,0)))) -> 
A157: 5.28 | B157: =VLOOKUP('Calculos 2'!A157,'Huella Completa'!A51:G729,4,FALSE)*VLOOKUP('Calculos 2'!A157,'Huella Completa'!A51:G729,5,FALSE)*(IF(VLOOKUP('Calculos 2'!A157,'Huella Completa'!A51:G729,3,FALSE)="Tren",Tren,IF(VLOOKUP('Calculos 2'!A157,'Huella Completa'!A51:G729,3,FALSE)="Autobús",Autobús,IF(VLOOKUP('Calculos 2'!A157,'Huella Completa'!A51:G729,3,FALSE)="Avión",Avión,0)))) -> 
A158: 5.29 | B158: =VLOOKUP('Calculos 2'!A158,'Huella Completa'!A52:G730,4,FALSE)*VLOOKUP('Calculos 2'!A158,'Huella Completa'!A52:G730,5,FALSE)*(IF(VLOOKUP('Calculos 2'!A158,'Huella Completa'!A52:G730,3,FALSE)="Tren",Tren,IF(VLOOKUP('Calculos 2'!A158,'Huella Completa'!A52:G730,3,FALSE)="Autobús",Autobús,IF(VLOOKUP('Calculos 2'!A158,'Huella Completa'!A52:G730,3,FALSE)="Avión",Avión,0)))) -> 
A159: 5.30 | B159: =VLOOKUP('Calculos 2'!A159,'Huella Completa'!A53:G731,4,FALSE)*VLOOKUP('Calculos 2'!A159,'Huella Completa'!A53:G731,5,FALSE)*(IF(VLOOKUP('Calculos 2'!A159,'Huella Completa'!A53:G731,3,FALSE)="Tren",Tren,IF(VLOOKUP('Calculos 2'!A159,'Huella Completa'!A53:G731,3,FALSE)="Autobús",Autobús,IF(VLOOKUP('Calculos 2'!A159,'Huella Completa'!A53:G731,3,FALSE)="Avión",Avión,0)))) -> 
A160: 5.31 | B160: =VLOOKUP('Calculos 2'!A160,'Huella Completa'!A54:G732,4,FALSE)*VLOOKUP('Calculos 2'!A160,'Huella Completa'!A54:G732,5,FALSE)*(IF(VLOOKUP('Calculos 2'!A160,'Huella Completa'!A54:G732,3,FALSE)="Tren",Tren,IF(VLOOKUP('Calculos 2'!A160,'Huella Completa'!A54:G732,3,FALSE)="Autobús",Autobús,IF(VLOOKUP('Calculos 2'!A160,'Huella Completa'!A54:G732,3,FALSE)="Avión",Avión,0)))) -> 
A161: 5.32 | B161: =VLOOKUP('Calculos 2'!A161,'Huella Completa'!A55:G733,4,FALSE)*VLOOKUP('Calculos 2'!A161,'Huella Completa'!A55:G733,5,FALSE)*(IF(VLOOKUP('Calculos 2'!A161,'Huella Completa'!A55:G733,3,FALSE)="Tren",Tren,IF(VLOOKUP('Calculos 2'!A161,'Huella Completa'!A55:G733,3,FALSE)="Autobús",Autobús,IF(VLOOKUP('Calculos 2'!A161,'Huella Completa'!A55:G733,3,FALSE)="Avión",Avión,0)))) -> 
A162: 5.33 | B162: =VLOOKUP('Calculos 2'!A162,'Huella Completa'!A56:G734,4,FALSE)*VLOOKUP('Calculos 2'!A162,'Huella Completa'!A56:G734,5,FALSE)*(IF(VLOOKUP('Calculos 2'!A162,'Huella Completa'!A56:G734,3,FALSE)="Tren",Tren,IF(VLOOKUP('Calculos 2'!A162,'Huella Completa'!A56:G734,3,FALSE)="Autobús",Autobús,IF(VLOOKUP('Calculos 2'!A162,'Huella Completa'!A56:G734,3,FALSE)="Avión",Avión,0)))) -> 
A163: 5.34 | B163: =VLOOKUP('Calculos 2'!A163,'Huella Completa'!A57:G735,4,FALSE)*VLOOKUP('Calculos 2'!A163,'Huella Completa'!A57:G735,5,FALSE)*(IF(VLOOKUP('Calculos 2'!A163,'Huella Completa'!A57:G735,3,FALSE)="Tren",Tren,IF(VLOOKUP('Calculos 2'!A163,'Huella Completa'!A57:G735,3,FALSE)="Autobús",Autobús,IF(VLOOKUP('Calculos 2'!A163,'Huella Completa'!A57:G735,3,FALSE)="Avión",Avión,0)))) -> 
A164: 5.35 | B164: =VLOOKUP('Calculos 2'!A164,'Huella Completa'!A58:G736,4,FALSE)*VLOOKUP('Calculos 2'!A164,'Huella Completa'!A58:G736,5,FALSE)*(IF(VLOOKUP('Calculos 2'!A164,'Huella Completa'!A58:G736,3,FALSE)="Tren",Tren,IF(VLOOKUP('Calculos 2'!A164,'Huella Completa'!A58:G736,3,FALSE)="Autobús",Autobús,IF(VLOOKUP('Calculos 2'!A164,'Huella Completa'!A58:G736,3,FALSE)="Avión",Avión,0)))) -> 
A165: 5.36 | B165: =VLOOKUP('Calculos 2'!A165,'Huella Completa'!A59:G737,4,FALSE)*VLOOKUP('Calculos 2'!A165,'Huella Completa'!A59:G737,5,FALSE)*(IF(VLOOKUP('Calculos 2'!A165,'Huella Completa'!A59:G737,3,FALSE)="Tren",Tren,IF(VLOOKUP('Calculos 2'!A165,'Huella Completa'!A59:G737,3,FALSE)="Autobús",Autobús,IF(VLOOKUP('Calculos 2'!A165,'Huella Completa'!A59:G737,3,FALSE)="Avión",Avión,0)))) -> 
A166: 5.37 | B166: =VLOOKUP('Calculos 2'!A166,'Huella Completa'!A60:G738,4,FALSE)*VLOOKUP('Calculos 2'!A166,'Huella Completa'!A60:G738,5,FALSE)*(IF(VLOOKUP('Calculos 2'!A166,'Huella Completa'!A60:G738,3,FALSE)="Tren",Tren,IF(VLOOKUP('Calculos 2'!A166,'Huella Completa'!A60:G738,3,FALSE)="Autobús",Autobús,IF(VLOOKUP('Calculos 2'!A166,'Huella Completa'!A60:G738,3,FALSE)="Avión",Avión,0)))) -> 
A167: 5.38 | B167: =VLOOKUP('Calculos 2'!A167,'Huella Completa'!A61:G739,4,FALSE)*VLOOKUP('Calculos 2'!A167,'Huella Completa'!A61:G739,5,FALSE)*(IF(VLOOKUP('Calculos 2'!A167,'Huella Completa'!A61:G739,3,FALSE)="Tren",Tren,IF(VLOOKUP('Calculos 2'!A167,'Huella Completa'!A61:G739,3,FALSE)="Autobús",Autobús,IF(VLOOKUP('Calculos 2'!A167,'Huella Completa'!A61:G739,3,FALSE)="Avión",Avión,0)))) -> 
A168: 5.39 | B168: =VLOOKUP('Calculos 2'!A168,'Huella Completa'!A62:G740,4,FALSE)*VLOOKUP('Calculos 2'!A168,'Huella Completa'!A62:G740,5,FALSE)*(IF(VLOOKUP('Calculos 2'!A168,'Huella Completa'!A62:G740,3,FALSE)="Tren",Tren,IF(VLOOKUP('Calculos 2'!A168,'Huella Completa'!A62:G740,3,FALSE)="Autobús",Autobús,IF(VLOOKUP('Calculos 2'!A168,'Huella Completa'!A62:G740,3,FALSE)="Avión",Avión,0)))) -> 
A169: 5.40 | B169: =VLOOKUP('Calculos 2'!A169,'Huella Completa'!A63:G741,4,FALSE)*VLOOKUP('Calculos 2'!A169,'Huella Completa'!A63:G741,5,FALSE)*(IF(VLOOKUP('Calculos 2'!A169,'Huella Completa'!A63:G741,3,FALSE)="Tren",Tren,IF(VLOOKUP('Calculos 2'!A169,'Huella Completa'!A63:G741,3,FALSE)="Autobús",Autobús,IF(VLOOKUP('Calculos 2'!A169,'Huella Completa'!A63:G741,3,FALSE)="Avión",Avión,0)))) -> 
A170: 5.41 | B170: =VLOOKUP('Calculos 2'!A170,'Huella Completa'!A64:G742,4,FALSE)*VLOOKUP('Calculos 2'!A170,'Huella Completa'!A64:G742,5,FALSE)*(IF(VLOOKUP('Calculos 2'!A170,'Huella Completa'!A64:G742,3,FALSE)="Tren",Tren,IF(VLOOKUP('Calculos 2'!A170,'Huella Completa'!A64:G742,3,FALSE)="Autobús",Autobús,IF(VLOOKUP('Calculos 2'!A170,'Huella Completa'!A64:G742,3,FALSE)="Avión",Avión,0)))) -> 
A171: 5.42 | B171: =VLOOKUP('Calculos 2'!A171,'Huella Completa'!A65:G743,4,FALSE)*VLOOKUP('Calculos 2'!A171,'Huella Completa'!A65:G743,5,FALSE)*(IF(VLOOKUP('Calculos 2'!A171,'Huella Completa'!A65:G743,3,FALSE)="Tren",Tren,IF(VLOOKUP('Calculos 2'!A171,'Huella Completa'!A65:G743,3,FALSE)="Autobús",Autobús,IF(VLOOKUP('Calculos 2'!A171,'Huella Completa'!A65:G743,3,FALSE)="Avión",Avión,0)))) -> 
A172: 5.43 | B172: =VLOOKUP('Calculos 2'!A172,'Huella Completa'!A66:G744,4,FALSE)*VLOOKUP('Calculos 2'!A172,'Huella Completa'!A66:G744,5,FALSE)*(IF(VLOOKUP('Calculos 2'!A172,'Huella Completa'!A66:G744,3,FALSE)="Tren",Tren,IF(VLOOKUP('Calculos 2'!A172,'Huella Completa'!A66:G744,3,FALSE)="Autobús",Autobús,IF(VLOOKUP('Calculos 2'!A172,'Huella Completa'!A66:G744,3,FALSE)="Avión",Avión,0)))) -> 
A173: 5.44 | B173: =VLOOKUP('Calculos 2'!A173,'Huella Completa'!A67:G745,4,FALSE)*VLOOKUP('Calculos 2'!A173,'Huella Completa'!A67:G745,5,FALSE)*(IF(VLOOKUP('Calculos 2'!A173,'Huella Completa'!A67:G745,3,FALSE)="Tren",Tren,IF(VLOOKUP('Calculos 2'!A173,'Huella Completa'!A67:G745,3,FALSE)="Autobús",Autobús,IF(VLOOKUP('Calculos 2'!A173,'Huella Completa'!A67:G745,3,FALSE)="Avión",Avión,0)))) -> 
A174: 5.45 | B174: =VLOOKUP('Calculos 2'!A174,'Huella Completa'!A68:G746,4,FALSE)*VLOOKUP('Calculos 2'!A174,'Huella Completa'!A68:G746,5,FALSE)*(IF(VLOOKUP('Calculos 2'!A174,'Huella Completa'!A68:G746,3,FALSE)="Tren",Tren,IF(VLOOKUP('Calculos 2'!A174,'Huella Completa'!A68:G746,3,FALSE)="Autobús",Autobús,IF(VLOOKUP('Calculos 2'!A174,'Huella Completa'!A68:G746,3,FALSE)="Avión",Avión,0)))) -> 
A175: 5.46 | B175: =VLOOKUP('Calculos 2'!A175,'Huella Completa'!A69:G747,4,FALSE)*VLOOKUP('Calculos 2'!A175,'Huella Completa'!A69:G747,5,FALSE)*(IF(VLOOKUP('Calculos 2'!A175,'Huella Completa'!A69:G747,3,FALSE)="Tren",Tren,IF(VLOOKUP('Calculos 2'!A175,'Huella Completa'!A69:G747,3,FALSE)="Autobús",Autobús,IF(VLOOKUP('Calculos 2'!A175,'Huella Completa'!A69:G747,3,FALSE)="Avión",Avión,0)))) -> 
A176: 5.47 | B176: =VLOOKUP('Calculos 2'!A176,'Huella Completa'!A70:G748,4,FALSE)*VLOOKUP('Calculos 2'!A176,'Huella Completa'!A70:G748,5,FALSE)*(IF(VLOOKUP('Calculos 2'!A176,'Huella Completa'!A70:G748,3,FALSE)="Tren",Tren,IF(VLOOKUP('Calculos 2'!A176,'Huella Completa'!A70:G748,3,FALSE)="Autobús",Autobús,IF(VLOOKUP('Calculos 2'!A176,'Huella Completa'!A70:G748,3,FALSE)="Avión",Avión,0)))) -> 
A177: 5.48 | B177: =VLOOKUP('Calculos 2'!A177,'Huella Completa'!A71:G749,4,FALSE)*VLOOKUP('Calculos 2'!A177,'Huella Completa'!A71:G749,5,FALSE)*(IF(VLOOKUP('Calculos 2'!A177,'Huella Completa'!A71:G749,3,FALSE)="Tren",Tren,IF(VLOOKUP('Calculos 2'!A177,'Huella Completa'!A71:G749,3,FALSE)="Autobús",Autobús,IF(VLOOKUP('Calculos 2'!A177,'Huella Completa'!A71:G749,3,FALSE)="Avión",Avión,0)))) -> 
A178: 5.49 | B178: =VLOOKUP('Calculos 2'!A178,'Huella Completa'!A72:G750,4,FALSE)*VLOOKUP('Calculos 2'!A178,'Huella Completa'!A72:G750,5,FALSE)*(IF(VLOOKUP('Calculos 2'!A178,'Huella Completa'!A72:G750,3,FALSE)="Tren",Tren,IF(VLOOKUP('Calculos 2'!A178,'Huella Completa'!A72:G750,3,FALSE)="Autobús",Autobús,IF(VLOOKUP('Calculos 2'!A178,'Huella Completa'!A72:G750,3,FALSE)="Avión",Avión,0)))) -> 
A179: 5.50 | B179: =VLOOKUP('Calculos 2'!A179,'Huella Completa'!A74:G751,4,FALSE)*VLOOKUP('Calculos 2'!A179,'Huella Completa'!A74:G751,5,FALSE)*(IF(VLOOKUP('Calculos 2'!A179,'Huella Completa'!A74:G751,3,FALSE)="Tren",Tren,IF(VLOOKUP('Calculos 2'!A179,'Huella Completa'!A74:G751,3,FALSE)="Autobús",Autobús,IF(VLOOKUP('Calculos 2'!A179,'Huella Completa'!A74:G751,3,FALSE)="Avión",Avión,0)))) -> 
A180: 5.51 | B180: =VLOOKUP('Calculos 2'!A180,'Huella Completa'!A75:G752,4,FALSE)*VLOOKUP('Calculos 2'!A180,'Huella Completa'!A75:G752,5,FALSE)*(IF(VLOOKUP('Calculos 2'!A180,'Huella Completa'!A75:G752,3,FALSE)="Tren",Tren,IF(VLOOKUP('Calculos 2'!A180,'Huella Completa'!A75:G752,3,FALSE)="Autobús",Autobús,IF(VLOOKUP('Calculos 2'!A180,'Huella Completa'!A75:G752,3,FALSE)="Avión",Avión,0)))) -> 
A181: 5.52 | B181: =VLOOKUP('Calculos 2'!A181,'Huella Completa'!A76:G753,4,FALSE)*VLOOKUP('Calculos 2'!A181,'Huella Completa'!A76:G753,5,FALSE)*(IF(VLOOKUP('Calculos 2'!A181,'Huella Completa'!A76:G753,3,FALSE)="Tren",Tren,IF(VLOOKUP('Calculos 2'!A181,'Huella Completa'!A76:G753,3,FALSE)="Autobús",Autobús,IF(VLOOKUP('Calculos 2'!A181,'Huella Completa'!A76:G753,3,FALSE)="Avión",Avión,0)))) -> 
A182: 5.53 | B182: =VLOOKUP('Calculos 2'!A182,'Huella Completa'!A77:G754,4,FALSE)*VLOOKUP('Calculos 2'!A182,'Huella Completa'!A77:G754,5,FALSE)*(IF(VLOOKUP('Calculos 2'!A182,'Huella Completa'!A77:G754,3,FALSE)="Tren",Tren,IF(VLOOKUP('Calculos 2'!A182,'Huella Completa'!A77:G754,3,FALSE)="Autobús",Autobús,IF(VLOOKUP('Calculos 2'!A182,'Huella Completa'!A77:G754,3,FALSE)="Avión",Avión,0)))) -> 
A183: 5.54 | B183: =VLOOKUP('Calculos 2'!A183,'Huella Completa'!A84:G755,4,FALSE)*VLOOKUP('Calculos 2'!A183,'Huella Completa'!A84:G755,5,FALSE)*(IF(VLOOKUP('Calculos 2'!A183,'Huella Completa'!A84:G755,3,FALSE)="Tren",Tren,IF(VLOOKUP('Calculos 2'!A183,'Huella Completa'!A84:G755,3,FALSE)="Autobús",Autobús,IF(VLOOKUP('Calculos 2'!A183,'Huella Completa'!A84:G755,3,FALSE)="Avión",Avión,0)))) -> 
A184: 5.55 | B184: =VLOOKUP('Calculos 2'!A184,'Huella Completa'!A86:G756,4,FALSE)*VLOOKUP('Calculos 2'!A184,'Huella Completa'!A86:G756,5,FALSE)*(IF(VLOOKUP('Calculos 2'!A184,'Huella Completa'!A86:G756,3,FALSE)="Tren",Tren,IF(VLOOKUP('Calculos 2'!A184,'Huella Completa'!A86:G756,3,FALSE)="Autobús",Autobús,IF(VLOOKUP('Calculos 2'!A184,'Huella Completa'!A86:G756,3,FALSE)="Avión",Avión,0)))) -> 
A185: 5.56 | B185: =VLOOKUP('Calculos 2'!A185,'Huella Completa'!A87:G757,4,FALSE)*VLOOKUP('Calculos 2'!A185,'Huella Completa'!A87:G757,5,FALSE)*(IF(VLOOKUP('Calculos 2'!A185,'Huella Completa'!A87:G757,3,FALSE)="Tren",Tren,IF(VLOOKUP('Calculos 2'!A185,'Huella Completa'!A87:G757,3,FALSE)="Autobús",Autobús,IF(VLOOKUP('Calculos 2'!A185,'Huella Completa'!A87:G757,3,FALSE)="Avión",Avión,0)))) -> 
A186: 5.57 | B186: =VLOOKUP('Calculos 2'!A186,'Huella Completa'!A88:G758,4,FALSE)*VLOOKUP('Calculos 2'!A186,'Huella Completa'!A88:G758,5,FALSE)*(IF(VLOOKUP('Calculos 2'!A186,'Huella Completa'!A88:G758,3,FALSE)="Tren",Tren,IF(VLOOKUP('Calculos 2'!A186,'Huella Completa'!A88:G758,3,FALSE)="Autobús",Autobús,IF(VLOOKUP('Calculos 2'!A186,'Huella Completa'!A88:G758,3,FALSE)="Avión",Avión,0)))) -> 
A187: 5.58 | B187: =VLOOKUP('Calculos 2'!A187,'Huella Completa'!A89:G759,4,FALSE)*VLOOKUP('Calculos 2'!A187,'Huella Completa'!A89:G759,5,FALSE)*(IF(VLOOKUP('Calculos 2'!A187,'Huella Completa'!A89:G759,3,FALSE)="Tren",Tren,IF(VLOOKUP('Calculos 2'!A187,'Huella Completa'!A89:G759,3,FALSE)="Autobús",Autobús,IF(VLOOKUP('Calculos 2'!A187,'Huella Completa'!A89:G759,3,FALSE)="Avión",Avión,0)))) -> 
A188: 5.59 | B188: =VLOOKUP('Calculos 2'!A188,'Huella Completa'!A90:G760,4,FALSE)*VLOOKUP('Calculos 2'!A188,'Huella Completa'!A90:G760,5,FALSE)*(IF(VLOOKUP('Calculos 2'!A188,'Huella Completa'!A90:G760,3,FALSE)="Tren",Tren,IF(VLOOKUP('Calculos 2'!A188,'Huella Completa'!A90:G760,3,FALSE)="Autobús",Autobús,IF(VLOOKUP('Calculos 2'!A188,'Huella Completa'!A90:G760,3,FALSE)="Avión",Avión,0)))) -> 
A189: 5.60 | B189: =VLOOKUP('Calculos 2'!A189,'Huella Completa'!A91:G761,4,FALSE)*VLOOKUP('Calculos 2'!A189,'Huella Completa'!A91:G761,5,FALSE)*(IF(VLOOKUP('Calculos 2'!A189,'Huella Completa'!A91:G761,3,FALSE)="Tren",Tren,IF(VLOOKUP('Calculos 2'!A189,'Huella Completa'!A91:G761,3,FALSE)="Autobús",Autobús,IF(VLOOKUP('Calculos 2'!A189,'Huella Completa'!A91:G761,3,FALSE)="Avión",Avión,0)))) -> 
A190: 5.61 | B190: =VLOOKUP('Calculos 2'!A190,'Huella Completa'!A92:G762,4,FALSE)*VLOOKUP('Calculos 2'!A190,'Huella Completa'!A92:G762,5,FALSE)*(IF(VLOOKUP('Calculos 2'!A190,'Huella Completa'!A92:G762,3,FALSE)="Tren",Tren,IF(VLOOKUP('Calculos 2'!A190,'Huella Completa'!A92:G762,3,FALSE)="Autobús",Autobús,IF(VLOOKUP('Calculos 2'!A190,'Huella Completa'!A92:G762,3,FALSE)="Avión",Avión,0)))) -> 
A191: 5.62 | B191: =VLOOKUP('Calculos 2'!A191,'Huella Completa'!A93:G763,4,FALSE)*VLOOKUP('Calculos 2'!A191,'Huella Completa'!A93:G763,5,FALSE)*(IF(VLOOKUP('Calculos 2'!A191,'Huella Completa'!A93:G763,3,FALSE)="Tren",Tren,IF(VLOOKUP('Calculos 2'!A191,'Huella Completa'!A93:G763,3,FALSE)="Autobús",Autobús,IF(VLOOKUP('Calculos 2'!A191,'Huella Completa'!A93:G763,3,FALSE)="Avión",Avión,0)))) -> 
A192: 5.63 | B192: =VLOOKUP('Calculos 2'!A192,'Huella Completa'!A94:G764,4,FALSE)*VLOOKUP('Calculos 2'!A192,'Huella Completa'!A94:G764,5,FALSE)*(IF(VLOOKUP('Calculos 2'!A192,'Huella Completa'!A94:G764,3,FALSE)="Tren",Tren,IF(VLOOKUP('Calculos 2'!A192,'Huella Completa'!A94:G764,3,FALSE)="Autobús",Autobús,IF(VLOOKUP('Calculos 2'!A192,'Huella Completa'!A94:G764,3,FALSE)="Avión",Avión,0)))) -> 
A193: 5.64 | B193: =VLOOKUP('Calculos 2'!A193,'Huella Completa'!A95:G765,4,FALSE)*VLOOKUP('Calculos 2'!A193,'Huella Completa'!A95:G765,5,FALSE)*(IF(VLOOKUP('Calculos 2'!A193,'Huella Completa'!A95:G765,3,FALSE)="Tren",Tren,IF(VLOOKUP('Calculos 2'!A193,'Huella Completa'!A95:G765,3,FALSE)="Autobús",Autobús,IF(VLOOKUP('Calculos 2'!A193,'Huella Completa'!A95:G765,3,FALSE)="Avión",Avión,0)))) -> 
A194: 5.65 | B194: =VLOOKUP('Calculos 2'!A194,'Huella Completa'!A96:G766,4,FALSE)*VLOOKUP('Calculos 2'!A194,'Huella Completa'!A96:G766,5,FALSE)*(IF(VLOOKUP('Calculos 2'!A194,'Huella Completa'!A96:G766,3,FALSE)="Tren",Tren,IF(VLOOKUP('Calculos 2'!A194,'Huella Completa'!A96:G766,3,FALSE)="Autobús",Autobús,IF(VLOOKUP('Calculos 2'!A194,'Huella Completa'!A96:G766,3,FALSE)="Avión",Avión,0)))) -> 
A195: 5.66 | B195: =VLOOKUP('Calculos 2'!A195,'Huella Completa'!A97:G767,4,FALSE)*VLOOKUP('Calculos 2'!A195,'Huella Completa'!A97:G767,5,FALSE)*(IF(VLOOKUP('Calculos 2'!A195,'Huella Completa'!A97:G767,3,FALSE)="Tren",Tren,IF(VLOOKUP('Calculos 2'!A195,'Huella Completa'!A97:G767,3,FALSE)="Autobús",Autobús,IF(VLOOKUP('Calculos 2'!A195,'Huella Completa'!A97:G767,3,FALSE)="Avión",Avión,0)))) -> 
A196: 5.67 | B196: =VLOOKUP('Calculos 2'!A196,'Huella Completa'!A98:G768,4,FALSE)*VLOOKUP('Calculos 2'!A196,'Huella Completa'!A98:G768,5,FALSE)*(IF(VLOOKUP('Calculos 2'!A196,'Huella Completa'!A98:G768,3,FALSE)="Tren",Tren,IF(VLOOKUP('Calculos 2'!A196,'Huella Completa'!A98:G768,3,FALSE)="Autobús",Autobús,IF(VLOOKUP('Calculos 2'!A196,'Huella Completa'!A98:G768,3,FALSE)="Avión",Avión,0)))) -> 
A197: 5.68 | B197: =VLOOKUP('Calculos 2'!A197,'Huella Completa'!A99:G769,4,FALSE)*VLOOKUP('Calculos 2'!A197,'Huella Completa'!A99:G769,5,FALSE)*(IF(VLOOKUP('Calculos 2'!A197,'Huella Completa'!A99:G769,3,FALSE)="Tren",Tren,IF(VLOOKUP('Calculos 2'!A197,'Huella Completa'!A99:G769,3,FALSE)="Autobús",Autobús,IF(VLOOKUP('Calculos 2'!A197,'Huella Completa'!A99:G769,3,FALSE)="Avión",Avión,0)))) -> 
A198: 5.69 | B198: =VLOOKUP('Calculos 2'!A198,'Huella Completa'!A100:G770,4,FALSE)*VLOOKUP('Calculos 2'!A198,'Huella Completa'!A100:G770,5,FALSE)*(IF(VLOOKUP('Calculos 2'!A198,'Huella Completa'!A100:G770,3,FALSE)="Tren",Tren,IF(VLOOKUP('Calculos 2'!A198,'Huella Completa'!A100:G770,3,FALSE)="Autobús",Autobús,IF(VLOOKUP('Calculos 2'!A198,'Huella Completa'!A100:G770,3,FALSE)="Avión",Avión,0)))) -> 
A199: 5.70 | B199: =VLOOKUP('Calculos 2'!A199,'Huella Completa'!A101:G771,4,FALSE)*VLOOKUP('Calculos 2'!A199,'Huella Completa'!A101:G771,5,FALSE)*(IF(VLOOKUP('Calculos 2'!A199,'Huella Completa'!A101:G771,3,FALSE)="Tren",Tren,IF(VLOOKUP('Calculos 2'!A199,'Huella Completa'!A101:G771,3,FALSE)="Autobús",Autobús,IF(VLOOKUP('Calculos 2'!A199,'Huella Completa'!A101:G771,3,FALSE)="Avión",Avión,0)))) -> 
A200: 5.71 | B200: =VLOOKUP('Calculos 2'!A200,'Huella Completa'!A102:G772,4,FALSE)*VLOOKUP('Calculos 2'!A200,'Huella Completa'!A102:G772,5,FALSE)*(IF(VLOOKUP('Calculos 2'!A200,'Huella Completa'!A102:G772,3,FALSE)="Tren",Tren,IF(VLOOKUP('Calculos 2'!A200,'Huella Completa'!A102:G772,3,FALSE)="Autobús",Autobús,IF(VLOOKUP('Calculos 2'!A200,'Huella Completa'!A102:G772,3,FALSE)="Avión",Avión,0)))) -> 
A201: 5.72 | B201: =VLOOKUP('Calculos 2'!A201,'Huella Completa'!A103:G773,4,FALSE)*VLOOKUP('Calculos 2'!A201,'Huella Completa'!A103:G773,5,FALSE)*(IF(VLOOKUP('Calculos 2'!A201,'Huella Completa'!A103:G773,3,FALSE)="Tren",Tren,IF(VLOOKUP('Calculos 2'!A201,'Huella Completa'!A103:G773,3,FALSE)="Autobús",Autobús,IF(VLOOKUP('Calculos 2'!A201,'Huella Completa'!A103:G773,3,FALSE)="Avión",Avión,0)))) -> 
A202: 5.73 | B202: =VLOOKUP('Calculos 2'!A202,'Huella Completa'!A104:G774,4,FALSE)*VLOOKUP('Calculos 2'!A202,'Huella Completa'!A104:G774,5,FALSE)*(IF(VLOOKUP('Calculos 2'!A202,'Huella Completa'!A104:G774,3,FALSE)="Tren",Tren,IF(VLOOKUP('Calculos 2'!A202,'Huella Completa'!A104:G774,3,FALSE)="Autobús",Autobús,IF(VLOOKUP('Calculos 2'!A202,'Huella Completa'!A104:G774,3,FALSE)="Avión",Avión,0)))) -> 
A203: 5.74 | B203: =VLOOKUP('Calculos 2'!A203,'Huella Completa'!A106:G775,4,FALSE)*VLOOKUP('Calculos 2'!A203,'Huella Completa'!A106:G775,5,FALSE)*(IF(VLOOKUP('Calculos 2'!A203,'Huella Completa'!A106:G775,3,FALSE)="Tren",Tren,IF(VLOOKUP('Calculos 2'!A203,'Huella Completa'!A106:G775,3,FALSE)="Autobús",Autobús,IF(VLOOKUP('Calculos 2'!A203,'Huella Completa'!A106:G775,3,FALSE)="Avión",Avión,0)))) -> 
A204: 5.75 | B204: =VLOOKUP('Calculos 2'!A204,'Huella Completa'!A107:G776,4,FALSE)*VLOOKUP('Calculos 2'!A204,'Huella Completa'!A107:G776,5,FALSE)*(IF(VLOOKUP('Calculos 2'!A204,'Huella Completa'!A107:G776,3,FALSE)="Tren",Tren,IF(VLOOKUP('Calculos 2'!A204,'Huella Completa'!A107:G776,3,FALSE)="Autobús",Autobús,IF(VLOOKUP('Calculos 2'!A204,'Huella Completa'!A107:G776,3,FALSE)="Avión",Avión,0)))) -> 
... 423 more rows

Sheet Factores de emision
A1: FUENTE DE EMISIÓN
D2: Valor (Uds.)
A3: Combustión fija | B3: Gas natural | D3: 0,253 | E3: kgCO2/kWh
B4: Gasóleo C | D4: 2828 | E4: kCO2/l
A5: Electricidad | B5: Mix eléctrico español sin GdO, 2015 | D5: 0.43 | E5: kgCO2/kWh
A6: Transporte | B6: Avión pasajeros | D6: =0.00027*1000 -> 0.27 | E6: 0.133595138
B7: Buques | C7: Gasolina | D7: 2.205 | E7: kgCO2/l
C8: Gasoil | D8: 2.508 | E8: kgCO2/l
B9: Aeronaves | C9: Gasolina | D9: 69300 | E9: kgCO2/TJ
C10: Queroseno | D10: 71500 | E10: kgCO2/TJ
B11: Tren | D11: 0,017 | E11: kgCO2/km.per
B12: Autobús | D12: 0,05517 | E12: kgCO2/km.per
B13: Moto | D13: 0,13 | E13: kgCO2/km.per
B14: Coches según combustible | C14: Diesel | D14: 2.508 | E14: kgCO2/l
C15: Gasolina | D15: 2.205 | E15: kgCO2/l
C16: E10 | D16: 2.065 | E16: kgCO2/l
C17: GLP | D17: 1.671 | E17: kgCO2/l
C18: B30 | D18: 1.831 | E18: kgCO2/l
B19: Coche genérico (Tr. interno) | D19: 1.669 | E19: kgCO2/km
A20: Residuos | B20: TIPO | D20: Transporte + Tratamiento
B21: Papel y cartón | D21: 0,0669 | E21: kgCO2/kg
B22: Vidrio | D22: 0,0305 | E22: kgCO2/kg
B23: Envases | D23: 0,12009 | E23: kgCO2/kg
B24: Madera | D24: 0,57297 | E24: kgCO2/kg
B25: R.S.U. y escombro | D25: Transporte: 60/1000 | E25: kgCO2 /t.km
D26: Tratamiento: 0,015749 | E26: kgCO2 /k
A27: FUENTE DE EMISIÓN | B27: Nombre | D27: FE DIRECTO (kg CO2 /€)
B28: Obras | D28: 0,011 | E28: kg CO2 /€
B29: Estudios y proyectos | D29: 0,001 | E29: kg CO2 /€
B30: Limpieza y seguridad | D30: 0,007 | E30: kg CO2 /€
B31: Transportes no incluidos en alcance 1 | D31: 0,388 | E31: kg CO2 /€
B32: Otros suministros | D32: 0,03 | E32: kg CO2 /€
B33: Edición | D33: 0,004 | E33: kg CO2 /€
B34: Jurídicos | D34: 0,007 | E34: kg CO2 /€
B35: Mudanzas | D35: 0,388 | E35: kg CO2 /€
B36: Actividades de agencias de viaje | D36: 0,001 | E36: kg CO2 /€
B37: Publicidad y propaganda | D37: 0,004 | E37: kg CO2 /€
B38: Suministro maquinaria | D38: 0,024 | E38: kg CO2 /€
B39: Reparación de vehículos | D39: 0,026 | E39: kg CO2 /€
B40: Mensajería | D40: 0,049 | E40: kg CO2 /€
B41: Suministro material electrónico | D41: 0,036 | E41: kg CO2 /€
B42: Vestuario | D42: 0,032 | E42: kg CO2 /€
B43: Servicios telecomunicaciones | D43: 0,005 | E43: kg CO2 /€
B44: Productos farmacéuticos | D44: 0,006 | E44: kg CO2 /€
B45: Reuniones / conferencias | D45: 0,005 | E45: kg CO2 /€
B46: Suministro de agua | D46: 0,014 | E46: kg CO2 /€
B47: Hostelería | D47: 0,001 | E47: kg CO2 /€
A48: Calculadora de Flandes
B49: Combustible | C49: Diesel | K49: Combustible | L49: Diesel
C51: Gasolina | D51: =M51*1000 -> 2.41555 | E51: kgCO2/l | L51: Gasolina | M51: 0,00241555 | N51: TonCO2/l
D52: =M52*1000 -> 0.14358 | E52: kgCO2/km | M52: 0,00014358 | N52: TonCO2/km
C53: GLP | D53: 1.60947 | E53: kgCO2/l | L53: GLP | M53: 0,00160947 | N53: TonCO2/l
D54: 0.15295 | E54: kgCO2/km | M54: 0,00015295 | N54: TonCO2/km
B55: Electricidad | C55: electricidad | D55: 0.4 | E55: kgCO2/kWh | K55: Electricidad | L55: electricidad | M55: 0,00040000 | N55: TonCO2/kWh
C56: gas natural | D56: 0.20088 | E56: kgCO2/kWh | L56: gas natural | M56: 0,00020088 | N56: TonCO2/kWh
C57: combustible ligero | D57: 0.26388 | E57: kgCO2/kWh | L57: combustible ligero | M57: 0,00026388 | N57: TonCO2/kWh
B58: Transporte | C58: camion | D58: 1.01 | E58: kgCO2/km | K58: Transporte | L58: camion | M58: 0,00101000 | N58: TonCO2/km
C59: avión | D59: 1.04 | E59: kgCO2/km | L59: avión | M59: 0,00104000 | N59: TonCO2/km
C60: bote | D60: 0.06 | E60: kgCO2/km | L60: bote | M60: 0,00006000 | N60: TonCO2/km
C61: trein | D61: 0.027 | E61: kgCO2/km | L61: trein | M61: 0,00002700 | N61: TonCO2/km
C62: minibus | D62: 0.21 | E62: kgCO2/km | L62: minibus | M62: 0,00021000 | N62: TonCO2/km
C63: carga ligera | D63: 0.21 | E63: kgCO2/km | L63: carga ligera | M63: 0,00021000 | N63: TonCO2/km
C64: Transporte público | D64: 0.065 | E64: kgCO2/km | L64: Transporte público | M64: 0,00006500 | N64: TonCO2/km
C65: personas en avión | D65: 0.27 | E65: kgCO2/km | L65: personas en avión | M65: 0,00027000 | N65: TonCO2/km
B66: Alojamiento y comidas | C66: noche en el hotel | D66: 12 | E66: kgCO2/noche | K66: Alojamiento y comidas | L66: noche en el hotel | M66: 0,01200000 | N66: TonCO2/noche
C67: comida | D67: 1.43 | E67: kgCO2/comida | L67: comida | M67: 0,00143000 | N67: TonCO2/comida
C68: productos locales | D68: =comida*0.8 -> 1.144 | E68: kgCO2/comida
C69: comida vegetariana | D69: 0.858 | E69: kgCO2/comida | L69: comida vegetariana | M69: 0,00085800 | N69: TonCO2/comida
A70: Green Production
B71: Combustible | C71: Fuel | D71: EF | E71: Units | K71: Combustible | L71: Fuel | M71: EF | N71: Units
C72: Natural gas | D72: =M72/H73 -> 1.871680416 | E72: kg CO2/cubic foot | G72: Gallon | H72: 3.7854118 | I72: litros | L72: Natural gas | M72: 0,053 | N72: kg CO2/cubic foot
C73: Fuel Oil | D73: =M73/$H$72 -> 2.697196643 | E73: kgCO2/l | G73: cubic foot | H73: 0.0283168 | I73: m3 | L73: Fuel Oil | M73: 10,21 | N73: kg CO2/gallon
C74: Kerosene | D74: =M74/$H$72 -> 2.68134632 | E74: kgCO2/l | G74: milla | H74: 1.60934 | I74: km | L74: Kerosene | M74: 10,15 | N74: kg CO2/gallon
C75: Propane | D75: 1.476721766 | E75: kgCO2/l | L75: Propane | M75: 5,59 | N75: kg CO2/gallon
C76: Gasoline | D76: 2.31943061 | E76: kgCO2/l | L76: Gasoline | M76: 8,78 | N76: kg CO2/gallon
C77: Diesel Fuel | D77: 2.697196643 | E77: kgCO2/l | L77: Diesel Fuel | M77: 10,21 | N77: kg CO2/gallon
C78: Aviation Gasoline | D78: 2.195269746 | E78: kgCO2/l | L78: Aviation Gasoline | M78: 8,31 | N78: kg CO2/gallon
C79: Jet Fuel | D79: 2.5756775 | E79: kgCO2/l | L79: Jet Fuel | M79: 9,75 | N79: kg CO2/gallon
C80: Kerosene | D80: 2.68134632 | E80: kgCO2/l | L80: Kerosene | M80: 10,15 | N80: kg CO2/gallon
C81: RFO (Ships) | D81: 2.977219017 | E81: kgCO2/l | L81: RFO (Ships) | M81: 11,27 | N81: kg CO2/gallon
C82: Biodiesel (B100) | D82: 2.496425884 | E82: kgCO2/l | L82: Biodiesel (B100) | M82: 9,45 | N82: kg CO2/gallon
C83: B5 | D83: 2.686629761 | E83: kgCO2/l | L83: B5 | M83: 10,17 | N83: kg CO2/gallon
C84: B20 | D84: 2.657570835 | E84: kgCO2/l | L84: B20 | M84: 10,06 | N84: kg CO2/gallon
C85: B40 | D85: 2.617945028 | E85: kgCO2/l | L85: B40 | M85: 9,91 | N85: kg CO2/gallon
C86: B99 | D86: 2.499067605 | E86: kgCO2/l | L86: B99 | M86: 9,46 | N86: kg CO2/gallon
C87: Ethanol (E100) | D87: 1.518989295 | E87: kgCO2/l | L87: Ethanol (E100) | M87: 5,75 | N87: kg CO2/gallon
C88: E85 | D88: 1.637866718 | E88: kgCO2/l | L88: E85 | M88: 6,2 | N88: kg CO2/gallon
C89: LNG | D89: 1.178207349 | E89: kgCO2/l | L89: LNG | M89: 4,46 | N89: kg CO2/gallon
C90: LPG | D90: 1.529556177 | E90: kgCO2/l | L90: LPG | M90: 5,79 | N90: kg CO2/gallon
C91: CNG | D91: 18867.96042 | E91: kgCO2/l | L91: CNG | M91: 71423 | N91: kg CO2/gallon equivalent* (converted from kg CO2/std cubic feet)
B92: Electricidad | D92: 0,298784 | E92: KgCO2/KWh | K92: Electricidad | M92: 0,298784 | N92: Kg CO2/KWh
B93: Tranporte | C93: Avión | D93: Length Classification | E93: EF (kg CO2/passenger mile) | K93: Tranporte | L93: Avión | M93: Length Classification | N93: EF (kg CO2/passenger mile)
D94: =N94/$H$74 -> 0.1801980936 | E94: Short | M94: Short | N94: 0,29
D95: =N95/$H$74 -> 0.1025265015 | E95: Medium | M95: Medium | N95: 0,165
D96: 0.1174394472 | E96: Long | M96: Long | N96: 0,189
D97: 0.1335951384 | E97: Average | M97: Average | N97: 0,215
C98: Helicoptero | D98: =M98*H74/H72 -> 0.7227425032 | E98: km por litro | L98: Helicoptero | M98: 1,7 | N98: miles per gallon
B99: Alojamiento | C99: Economy Hotel | D99: 10,31 | E99: kWh/square foot/yr | K99: Alojamiento | L99: Economy Hotel | M99: 10,31 | N99: kWh/square foot/yr
C100: Midscale Hotel | D100: 16,57 | E100: kWh/square foot/yr | L100: Midscale Hotel | M100: 16,57 | N100: kWh/square foot/yr
C101: Upscale Hotel | D101: 14,96 | E101: kWh/square foot/yr | L101: Upscale Hotel | M101: 14,96 | N101: kWh/square foot/yr
C102: Luxury Hotel | D102: 18,18 | E102: kWh/square foot/yr | L102: Luxury Hotel | M102: 18,18 | N102: kWh/square foot/yr
C103: Apartment/Condo | D103: 11.32 | E103: kWh/yr | L103: Apartment/Condo | M103: 11.32 | N103: kWh/yr
C104: Average House | D104: 6.376 | E104: kWh/yr | L104: Average House | M104: 6.376 | N104: kWh/yr
C105: Large House | D105: 17.498 | E105: kWh/yr | L105: Large House | M105: 17.498 | N105: kWh/yr
C109: Edición de video | D109: =H109*1000 -> 38.9 | E109: kgCO2/dia | H109: 0.0389
C110: Edición de sonido | D110: =H110*1000 -> 30.87 | E110: kgCO2/dia | H110: 0.03087
C111: Foley | D111: 421.6 | E111: kgCO2/dia | H111: 0.4216
C112: Efectos especiales | D112: 0.11 | E112: kgCO2/eur | H112: 0.00011
C113: Laboratorio | D113: 0.275 | E113: kgCO2/eur | H113: 0.000275
C116: Factor de emision de OCCC
C117: Consumo de agua | D117: 0.395 | E117: kg CO2eq/m3
